Workbook

Sheet ITENS
C1: MINISTÉRIO DA INTEGRAÇÃO E DO DESENVOLVIMENTO REGIONAL - MIDR
C2: COMPANHIA DE DESENVOLVIMENTO DOS VALES DO SÃO FRANCISCO E DO PARNAÍBA
C3: ÁREA DE IRRIGAÇÃO E OPERAÇÕES - AI
B5: Contratação de fornecimento, instalação e certificação de sistemas de medição de vazão e telemetria de projetos públicos de irrigação com captação em corpos hídricos da União, conforme a Resolução ANA nº 188/2024 - Automonitoramento.
B8: PLANILHA DE CUSTOS - GRUPO 1
B10: ITEM | C10: FORNECIMENTO/SERVIÇO | D10: UNIDADE | E10: TOTAL | F10: PREÇO UNITÁRIO | G10: PREÇO TOTAL
B11: Item 1 | C11: Instalação e configação de Sensores. Medidor de Vazão Ultrassônico para canal trapezoidal | D11: UND | E11: =E20 -> 7 | F11: =F20 -> 78638.89 | G11: =G20 -> 550472.23
B12: Item 2 | C12: Instalação e configação de Sensores. Medidor de Vazão Eletromagnético em Tubulações | D12: UND | E12: =E28 -> 8 | F12: =F28 -> 59661.7 | G12: =G28 -> 477293.6
B13: Item 3 | C13: Sistema de Telemetria (rádio, GSM ou ETHERNET): Sistema de Processamento e Backup, Interface e Integração com API da ANA. Instalação, Configação e Capacitação. | D13: UND | E13: =E35 -> 6 | F13: =F35 -> 147842.502 | G13: =G35 -> 887055.01
F15: TOTAL | G15: =SUM(G11:G13) -> 1914820.84
B17: DETALHAMENTO DOS ITENS
B19: ITEM | C19: FORNECIMENTO/SERVIÇO | D19: UNIDADE | E19: TOTAL | F19: PREÇO UNITÁRIO | G19: PREÇO TOTAL
B20: Item 1 | C20: Instalação e configação de Sensores. Medidor de Vazão Ultrassônico para canal trapezoidal | D20: UND | E20: =SUM(E21:E24) -> 7 | F20: ='Orçamento Sintético - AL e SE'!I35 -> 78638.89 | G20: =(E20*F20) -> 550472.23
B21: 1.1 | C21: Perímetro Público de Irrigação de Boacica | D21: UND | E21: 2 | F21: =F20 -> 78638.89 | G21: =(E21*F21) -> 157277.78
B22: 1.2 | C22: Perímetro Público de Irrigação de Itiúba | D22: UND | E22: 3 | F22: =F21 -> 78638.89 | G22: =TRUNC(E22*F22,2) -> 235916.67
B23: 1.3 | C23: Perímetro Público de Irrigação de Betume | D23: UND | E23: 1 | F23: =F22 -> 78638.89 | G23: =TRUNC(E23*F23,2) -> 78638.89
B24: 1.4 | C24: Perímetro Público de Irrigação de Cotinguiba-Pindoba | D24: UND | E24: 1 | F24: =F23 -> 78638.89 | G24: =TRUNC(E24*F24,2) -> 78638.89
B27: ITEM | C27: FORNECIMENTO/SERVIÇO | D27: UNIDADE | E27: TOTAL | F27: PREÇO UNITÁRIO | G27: PREÇO TOTAL
B28: Item 2 | C28: Instalação e configação de Sensores. Medidor de Vazão Eletromagnético em Tubulações | D28: UND | E28: =SUM(E29:E31) -> 8 | F28: ='Orçamento Sintético - AL e SE'!I42 -> 59661.7 | G28: =TRUNC(E28*F28,2) -> 477293.6
B29: 2.1 | C29: Perímetro Público de Irrigação de Betume | D29: UND | E29: 5 | F29: =F28 -> 59661.7 | G29: =(E29*F29) -> 298308.5
B30: 2.2 | C30: Perímetro Público de Irrigação de Jacaré-Curituba | D30: UND | E30: 1 | F30: =F29 -> 59661.7 | G30: =(E30*F30) -> 59661.7
B31: 2.3 | C31: Perímetro Público de Irrigação de Propriá | D31: UND | E31: 2 | F31: =F30 -> 59661.7 | G31: =(E31*F31) -> 119323.4
B34: ITEM | C34: FORNECIMENTO/SERVIÇO | D34: UNIDADE | E34: TOTAL | F34: PREÇO UNITÁRIO | G34: PREÇO TOTAL
B35: Item 3 | C35: Sistema de Telemetria (rádio, GSM ou ETHERNET): Sistema de Processamento e Backup, Interface e Integração com API da ANA. Instalação, Configação e Capacitação. | D35: UND | E35: =SUM(E36:E41) -> 6 | F35: ='Orçamento Sintético - AL e SE'!I50 -> 147842.502 | G35: =TRUNC(E35*F35,2) -> 887055.01
B36: 3.1 | C36: =C21 -> Perímetro Público de Irrigação de Boacica | D36: UND | E36: 1 | F36: =F35 -> 147842.502 | G36: =(E36*F36) -> 147842.502
B37: 3.2 | C37: =C22 -> Perímetro Público de Irrigação de Itiúba | D37: UND | E37: 1 | F37: 147842.502 | G37: 147842.502
B38: 3.3 | C38: =C23 -> Perímetro Público de Irrigação de Betume | D38: UND | E38: 1 | F38: 147842.502 | G38: 147842.502
B39: 3.4 | C39: =C24 -> Perímetro Público de Irrigação de Cotinguiba-Pindoba | D39: UND | E39: 1 | F39: 147842.502 | G39: 147842.502
B40: 3.5 | C40: =C30 -> Perímetro Público de Irrigação de Jacaré-Curituba | D40: UND | E40: 1 | F40: 147842.502 | G40: 147842.502
B41: 3.6 | C41: =C31 -> Perímetro Público de Irrigação de Propriá | D41: UND | E41: 1 | F41: 147842.502 | G41: 147842.502
F44: TOTAL | G44: =G20+G28+G35 -> 1914820.84

Sheet Orçamento Sintético - AL e SE
C1: MINISTÉRIO DA INTEGRAÇÃO E DO DESENVOLVIMENTO REGIONAL - MIDR
C2: COMPANHIA DE DESENVOLVIMENTO DOS VALES DO SÃO FRANCISCO E DO PARNAÍBA
C3: ÁREA DE IRRIGAÇÃO E OPERAÇÕES - AI
I4: BASE | K4: AGOSTO/2025
B5: Contratação de fornecimento, instalação e certificação de sistemas de medição de vazão e telemetria de projetos públicos de irrigação com captação em corpos hídricos da União, conforme a Resolução ANA nº 188/2024 - Automonitoramento. | I5: VALOR TOTAL | K5: =J27 -> 1914820.84
B6: Instalação e certificação de sistemas de medição de vazão e telemetria de projetos públicos de irrigação com captação em corpos hídricos da União, conforme a Resolução ANA nº 188/2024 - Automonitoramento. Projetos: Boacica e Itiúba, situados em Alagoas; Protejos: Betume, Cotinguiba-Pindoba, Jacaré-Curitiba e Propriá, situados em Sergipe. | I6: BDI SERVIÇO | K6: ='B.D.I SERVIÇOS (SEM DES.)'!F31 -> 0.2463
I7: BDI MATERIAL | K7: ='B.D.I MATERIAIS (SEM DES.)'!F31 -> 0.126
B9: Item | C9: Código | D9: Banco | E9: Descrição | F9: Und | G9: Quantidade Total | H9: Valor Unit | I9: Valor Unit com BDI | J9: Total | K9: Peso (%) | N9: MÊS 1 | Q9: MÊS 2 | T9: MÊS 3 | W9: MÊS 4 | Z9: MÊS 5
B10: 1 | E10: CUSTOS DE ADMINISTRAÇÃO | I10: =J11 + J12 + J13 + J14 -> 114369.86 | J10: =SUM(J11:J14) -> 114369.86 | K10: =J10 /$J$27 -> 0.05972875248
B11: 1.1 | C11: CIS-0001 | D11: Próprio | E11: PASSAGENS AÉREAS | F11: UN | G11: 3 | H11: ='Cotação Voos SE'!C106 -> 1501.75 | I11: =H11*(1+$K$6) -> 1871.631025 | J11: =TRUNC(G11 * I11,2) -> 5614.89 | K11: 0.002932331779
B12: 1.2 | C12: CIS-0002 | D12: Próprio | E12: Hospedagem | F12: MÊS | G12: 6 | H12: ='CPU HOSPEDAGEM'!C13 -> 7510.716667 | I12: =H12*(1+$K$6) -> 9360.606182 | J12: =TRUNC(G12 * I12,2) -> 56163.63 | K12: 0.02933101041
B13: 1.3 | C13: CIS-0003 | D13: Próprio | E13: ESCRITÓRIO | F13: M2 X MÊS | G13: =6*18 -> 108 | H13: =Dnit!D4+Dnit!D5 -> 186.95 | I13: =H13*(1+$K$6) -> 232.995785 | J13: =TRUNC(G13 * I13,2) -> 25163.54
B14: 1.4 | C14: CODE | D14: SINAPI | E14: VEÍCULO LEVE | F14: MÊS | G14: =6*2 -> 12 | H14: ='CPU-VEICULO_Leve'!D7 -> 1833.94855 | I14: =H14*(1+$K$6) -> 2285.650077 | J14: =TRUNC(G14 * I14,2) -> 27427.8 | K14: 0.01432395106
B15: 2 | E15: INSTALAÇÃO DOS SENSORES | I15: =J16 + J17+J18+J19 + J20 -> 951519.31 | J15: =SUM(J16:J20) -> 951519.31 | K15: 0.4969234145
B16: 2.1 | C16: CIS-0002 | D16: Próprio | E16: =VLOOKUP(C16,'Orçamento Analítico '!B:J,3,0) -> PROJETO E INSTALAÇÃO E CONFIGURAÇÃO DE SENSOR PARA CANAL TRAPEZOIDAL E MONTAGEM DE BASE | F16: UN | G16: 7 | H16: =VLOOKUP(C16,'Orçamento Analítico '!B:J,8,0) -> 10201.4 | I16: =H16*(1+$K$6) -> 12714.00482 | J16: =TRUNC(G16 * I16,2) -> 88998.03 | K16: 0.04647851545 | M16: =O16+R16+U16+X16+AA16+AD16 -> 88998.03 | N16: 2 | O16: =($J$16/7)*N16 -> 25428.00857 | Q16: 2 | R16: =($J$16/7)*2 -> 25428.00857 | T16: 3 | U16: =($J$16/7)*T16 -> 38142.01286
B17: 2.2 | C17: INS-001 | D17: Próprio | E17: =VLOOKUP(C17,'Orçamento Analítico '!B:J,3,0) -> SISTEMA DE MEDIÇÃO DE VAZÃO PARA CANAL TRAPEZOIDAL. MEDIDOR ULTRASSÔNICO | F17: UN | G17: 7 | H17: =VLOOKUP(C17,'Orçamento Analítico '!B:J,8,0) -> 42750 | I17: =H17*(1+$K$7) -> 48136.5 | J17: =TRUNC(G17 * I17,2) -> 336955.5 | K17: 0.175972338 | M17: =O17+R17+U17+X17+AA17+AD17 -> 336955.5 | N17: 2 | O17: =($J$17/7)*N17 -> 96273 | Q17: 2 | R17: =($J$17/7)*Q17 -> 96273 | T17: 3 | U17: =($J$17/7)*T17 -> 144409.5
B18: 2.3 | C18: CIS-0003 | D18: Próprio | E18: =VLOOKUP(C18,'Orçamento Analítico '!B:J,3,0) -> PROJETO E INSTALAÇÃO E CONFIGURAÇÃO DE SENSOR DE VAZÃO EM TUBULAÇÕES | F18: UN | G18: 8 | H18: =VLOOKUP(C18,'Orçamento Analítico '!B:J,8,0) -> 10201.4 | I18: =H18*(1+$K$6) -> 12714.00482 | J18: =TRUNC(G18 * I18,2) -> 101712.03 | K18: =J18 /$J$27 -> 0.05311830114 | M18: =O18+R18+U18+X18+AA18+AD18 -> 101712.03 | T18: 3 | U18: =($J$18/8)*T18 -> 38142.01125 | W18: 3 | X18: =($J$18/G18)*W18 -> 38142.01125 | Z18: 2 | AA18: =(J18/G18)*Z18 -> 25428.0075
B19: 2.4 | C19: INS-002 | D19: Próprio | E19: =VLOOKUP(C19,'Orçamento Analítico '!B:J,3,0) -> SISTEMA DE MEDIÇÃO DE VAZÃO PARA CONDUTO FORÇADO. MEDIDOR ELETROMAGNÉTICO. | F19: UN | G19: 8 | H19: =VLOOKUP(C19,'Orçamento Analítico '!B:J,8,0) -> 26500.95833 | I19: =H19*(1+$K$7) -> 29840.07908 | J19: =TRUNC(G19 * I19,2) -> 238720.63 | K19: 0.1246699561 | M19: =O19+R19+U19+X19+AA19+AD19 -> 238720.63 | T19: 3 | U19: =(J19/G19)*T19 -> 89520.23625 | W19: 3 | X19: =(J19/G19)*W19 -> 89520.23625 | Z19: 2 | AA19: =(J19/G19)*Z19 -> 59680.1575
B20: 2.5 | C20: CIS-0004 | D20: Próprio | E20: =VLOOKUP(C20,'Orçamento Analítico '!B:J,3,0) -> INSTALAÇÃO DE CABEAMENTO DE COMANDO E COMUNICAÇÃO ENTRE SENSOR TUBULAÇÃO/CANAL TRAPEZOIDAL E TRANSDUTOR/EMISSOR | F20: UN | G20: 15 | H20: =VLOOKUP(C20,'Orçamento Analítico '!B:J,8,0) -> 9903.08 | I20: =H20*(1+$K$6) -> 12342.2086 | J20: =TRUNC(G20 * I20,2) -> 185133.12 | K20: =J20 /$J$27 -> 0.0966843039 | M20: =O20+R20+U20+X20+AA20+AD20 -> 185133.12 | N20: 2 | O20: =($J$20/15)*N20 -> 24684.416 | Q20: 2 | R20: =($J$20/15)*Q20 -> 24684.416 | T20: 6 | U20: =(J20/G20)*T20 -> 74053.248 | W20: 3 | X20: =(J20/G20)*W20 -> 37026.624 | Z20: 2 | AA20: =(J20/G20)*Z20 -> 24684.416
B21: 3 | E21: TELEMETRIA | I21: =J22 + J23 + J24 -> 790105.83 | J21: =SUM(J22:J24) -> 790105.83 | K21: 0.4126265045
B22: 3.1 | C22: INS-003 | D22: Próprio | E22: =VLOOKUP(C22,'Orçamento Analítico '!B:J,3,0) -> SISTEMA DE TELEMETRIA (RÁDIO, GSM OU ETHERNET), SISTEMA DE PROCESSAMENTO E BACKUP, INTERFACE E INTEGRAÇÃO COM API DA ANA | F22: UN | G22: 6 | H22: =VLOOKUP(C22,'Orçamento Analítico '!B:J,8,0) -> 94906.74171 | I22: =H22*(1+$K$7) -> 106864.9912 | J22: =TRUNC(G22 * I22,2) -> 641189.94 | K22: 0.3348563618 | M22: =O22+R22+U22+X22+AA22+AD22 -> 641189.94 | N22: 0 | Q22: 2 | R22: =(J22/G22)*Q22 -> 213729.98 | T22: 1 | U22: =(J22/G22)*T22 -> 106864.99 | W22: 1 | X22: =(J22/G22)*W22 -> 106864.99 | Z22: 1 | AA22: =(J22/G22)*Z22 -> 106864.99 | AC22: 1 | AD22: =(J22/G22)*AC22 -> 106864.99
B23: 3.2 | C23: CIS-0006 | D23: Próprio | E23: =VLOOKUP(C23,'Orçamento Analítico '!B:J,3,0) -> INSTALAÇÃO E CONFIGURAÇÃO DO PAINEL | F23: UN | G23: 6 | H23: =VLOOKUP(C23,'Orçamento Analítico '!B:J,8,0) -> 10244.96 | I23: =H23*(1+$K$6) -> 12768.29365 | J23: =TRUNC(G23 * I23,2) -> 76609.76 | K23: 0.04000883968 | M23: =O23+R23+U23+X23+AA23+AD23 -> 76609.76 | N23: 0 | Q23: 2 | R23: =(J23/G23)*Q23 -> 25536.58667 | T23: 1 | U23: =(J23/G23)*T23 -> 12768.29333 | W23: 1 | X23: =(J23/G23)*W23 -> 12768.29333 | Z23: 1 | AA23: =(J23/G23)*Z23 -> 12768.29333 | AC23: 1 | AD23: =(J23/G23)*AC23 -> 12768.29333
B24: 3.3 | C24: CIS-0007 | D24: Próprio | E24: =VLOOKUP(C24,'Orçamento Analítico '!B:J,3,0) -> INSTALAÇÃO E CONFIGURAÇÃO DA ESTAÇÃO DE TRABALHO COM COMUNICAÇÃO DE DADOS COM A ANA | F24: UN | G24: 6 | H24: =VLOOKUP(C24,'Orçamento Analítico '!B:J,8,0) -> 9669.44 | I24: =H24*(1+$K$6) -> 12051.02307 | J24: =TRUNC(G24 * I24,2) -> 72306.13 | K24: 0.03776130304 | M24: =O24+R24+U24+X24+AA24+AD24 -> 72306.13 | N24: 0 | Q24: 2 | R24: =(J24/G24)*Q24 -> 24102.04333 | T24: 1 | U24: =(J24/G24)*T24 -> 12051.02167 | W24: 1 | X24: =(J24/G24)*W24 -> 12051.02167 | Z24: 1 | AA24: =(J24/G24)*Z24 -> 12051.02167 | AC24: 1 | AD24: =(J24/G24)*AC24 -> 12051.02167
B25: 4 | E25: CAPACITAÇÃO E TREINAMENTO | I25: =J26 -> 58825.84 | J25: =SUM(J26) -> 58825.84 | K25: 0.03072132848
B26: 4.1 | C26: INS-004 | D26: Próprio | E26: =VLOOKUP(C26,'Orçamento Analítico '!B:J,3,0) -> CAPACITAÇÃO E TREINAMENTO | F26: UN | G26: 6 | H26: =VLOOKUP(C26,'Orçamento Analítico '!B:J,8,0) -> 8707.2 | I26: =H26*(1+$K$7) -> 9804.3072 | J26: =TRUNC(G26 * I26,2) -> 58825.84 | K26: 0.03072132848 | M26: =O26+R26+U26+X26+AA26+AD26 -> 58825.84 | Z26: 3 | AA26: =(J26/G26)*Z26 -> 29412.92 | AC26: 3 | AD26: =TRUNC(I26 * AC26,2) -> 29412.92
B27: VALOR TOTAL DA PLANILHA | J27: =J10 + J15 + J21 +J25 -> 1914820.84 | O27: =SUM(O10:O25) -> 146385.4246 | R27: =SUM(R10:R25) -> 409754.0346 | U27: =SUM(U10:U25) -> 515951.3134 | X27: =SUM(X10:X25) -> 296373.1765 | AA27: =SUM(AA10:AA26) -> 270889.806 | AD27: =SUM(AD10:AD26) -> 161097.225
E29: DETALHAMENTO DE CUSTOS POR ITENS | F29: QUANT. | G29: TOTAL | H29: POR ITEM | I29: PREÇO UNIT | K29: PREÇO TOTAL
D30: ITEM 1 | E30: Custos de Administração - Instalação de Sensores. Medidor Ultrassônico | G30: =I10 -> 114369.86 | H30: =G30/3 -> 38123.28667 | I30: =TRUNC((H30/F31),2) -> 5446.18 | AD30: =SUM(O27:AD27) -> 1800450.98
E31: =E16 -> PROJETO E INSTALAÇÃO E CONFIGURAÇÃO DE SENSOR PARA CANAL TRAPEZOIDAL E MONTAGEM DE BASE | F31: 7 | I31: =I16 -> 12714.00482 | AD31: =J10+AD30 -> 1914820.84
E32: =E17 -> SISTEMA DE MEDIÇÃO DE VAZÃO PARA CANAL TRAPEZOIDAL. MEDIDOR ULTRASSÔNICO | I32: =I17 -> 48136.5
E33: =E20 -> INSTALAÇÃO DE CABEAMENTO DE COMANDO E COMUNICAÇÃO ENTRE SENSOR TUBULAÇÃO/CANAL TRAPEZOIDAL E TRANSDUTOR/EMISSOR | I33: =I20 -> 12342.2086
I34: =SUM(I30:I33) -> 78638.89342 | K34: =TRUNC(F31*I34,2) -> 550472.25
H35: Valor unitário | I35: 78638.89
D37: ITEM 2 | E37: Custos de Administração - Instalação de Sensores. Medidor eletromagnético | G37: =I10 -> 114369.86 | H37: =G37/3 -> 38123.28667 | I37: =TRUNC((H37/F38),2) -> 4765.41
E38: =E18 -> PROJETO E INSTALAÇÃO E CONFIGURAÇÃO DE SENSOR DE VAZÃO EM TUBULAÇÕES | F38: 8 | I38: =I18 -> 12714.00482
E39: =E19 -> SISTEMA DE MEDIÇÃO DE VAZÃO PARA CONDUTO FORÇADO. MEDIDOR ELETROMAGNÉTICO. | I39: =I19 -> 29840.07908
E40: =E20 -> INSTALAÇÃO DE CABEAMENTO DE COMANDO E COMUNICAÇÃO ENTRE SENSOR TUBULAÇÃO/CANAL TRAPEZOIDAL E TRANSDUTOR/EMISSOR | I40: =I20 -> 12342.2086
I41: =SUM(I37:I40) -> 59661.70251 | K41: =TRUNC(F38*I41,2) -> 477293.62
H42: Valor unitário | I42: 59661.7
D44: ITEM 3 | E44: Custos de Administração - Telemetria | G44: =J10 -> 114369.86 | H44: =G44/3 -> 38123.28667 | I44: =TRUNC((H44/F45),2) -> 6353.88
E45: =E22 -> SISTEMA DE TELEMETRIA (RÁDIO, GSM OU ETHERNET), SISTEMA DE PROCESSAMENTO E BACKUP, INTERFACE E INTEGRAÇÃO COM API DA ANA | F45: 6 | I45: =I22 -> 106864.9912
E46: =E23 -> INSTALAÇÃO E CONFIGURAÇÃO DO PAINEL | I46: =I23 -> 12768.29365
E47: =E24 -> INSTALAÇÃO E CONFIGURAÇÃO DA ESTAÇÃO DE TRABALHO COM COMUNICAÇÃO DE DADOS COM A ANA | I47: =I24 -> 12051.02307
E48: =E26 -> CAPACITAÇÃO E TREINAMENTO | I48: =I26 -> 9804.3072
I49: =SUM(I44:I48) -> 147842.4951 | K49: =TRUNC(F45*I49,2) -> 887054.97
H50: Valor unitário | I50: 147842.502
K51: =K34+K41+K49 -> 1914820.84

Sheet Orçamento Analítico
A1: MINISTÉRIO DA INTEGRAÇÃO E DO DESENVOLVIMENTO REGIONAL - MIDR
A2: COMPANHIA DE DESENVOLVIMENTO DOS VALES DO SÃO FRANCISCO E DO PARNAÍBA
A3: ÁREA DE IRRIGAÇÃO E OPERAÇÕES- AI
B5: Contratação de fornecimento, instalação e certificação de sistemas de medição de vazão e telemetria de projetos públicos de irrigação com captação em corpos hídricos da União, conforme a Resolução ANA nº 188/2024 - Automonitoramento. | I5: Bancos
A6: OBJETO: | B6: ='Orçamento Sintético - AL e SE'!B6 -> Instalação e certificação de sistemas de medição de vazão e telemetria de projetos públicos de irrigação com captação em corpos hídricos da União, conforme a Resolução ANA nº 188/2024 - Automonitoramento. Projetos: Boacica e Itiúba, situados em Alagoas; Protejos: Betume, Cotinguiba-Pindoba, Jacaré-Curitiba e Propriá, situados em Sergipe. | I6: SINAPI - 07/2025 - Sergipe
A7: Planilha Orçamentária Analítica | L7: =44+22 -> 66
A8: 1 | D8: SERVIÇOS PRELIMINARES E CANTEIRO DE OBRAS | J8: 498754.78
A11: 1.2 | B11: Código | C11: Banco | D11: Descrição | E11: Tipo | G11: Und | H11: Quant. | I11: Valor Unit | J11: Total
A12: Composição | B12: CIS-0002 | C12: Próprio | D12: PROJETO E INSTALAÇÃO E CONFIGURAÇÃO DE SENSOR PARA CANAL TRAPEZOIDAL E MONTAGEM DE BASE | E12: MÃO DE OBRA | G12: UN | H12: 1 | I12: =SUM(J13:J16) -> 10201.4 | J12: =SUM(J13:J16) -> 10201.4
A13: Composição | B13: 90778 | C13: SINAPI | D13: ENGENHEIRO PLENO COM ENCARGOS COMPLEMENTARES | E13: Serviços | G13: H | H13: 44 | I13: =IF(C13="SINAPI", VLOOKUP(B13,'SINAPI COMP - SE'!B:F,4,0),"") -> 134.32 | J13: =I13*H13 -> 5910.08 | L13: 7 | M13: =J12*L13 -> 71409.8
A14: Composição | B14: 88279 | C14: SINAPI | D14: =VLOOKUP(B14,'SINAPI COMP - SE'!B:F,2,0) -> MONTADOR ELETROMECÂNICO COM ENCARGOS COMPLEMENTARES | E14: Serviços | G14: H | H14: 44 | I14: =IF(C14="SINAPI", VLOOKUP(B14,'SINAPI COMP - SE'!B:F,4,0),"") -> 41.73 | J14: =I14*H14 -> 1836.12
A15: Composição | B15: 88243 | C15: SINAPI | D15: =VLOOKUP(B15,'SINAPI COMP - SE'!B:F,2,0) -> AJUDANTE ESPECIALIZADO COM ENCARGOS COMPLEMENTARES | E15: Serviços | G15: H | H15: 44 | I15: =IF(C15="SINAPI", VLOOKUP(B15,'SINAPI COMP - SE'!B:F,4,0),"") -> 21.84 | J15: =I15*H15 -> 960.96
B16: 90776 | C16: SINAPI | D16: =VLOOKUP(B16,'SINAPI COMP - SE'!B:F,2,0) -> ENCARREGADO GERAL COM ENCARGOS COMPLEMENTARES | E16: Serviços | G16: H | H16: 44 | I16: =IF(C16="SINAPI", VLOOKUP(B16,'SINAPI COMP - SE'!B:F,4,0),"") -> 33.96 | J16: =I16*H16 -> 1494.24
A19: 1.3 | B19: Código | C19: Banco | D19: Descrição | E19: Tipo | G19: Und | H19: Quant. | I19: Valor Unit | J19: Total
A20: Composição | B20: CIS-0003 | C20: Próprio | D20: PROJETO E INSTALAÇÃO E CONFIGURAÇÃO DE SENSOR DE VAZÃO EM TUBULAÇÕES | E20: MÃO DE OBRA | G20: UN | H20: 1 | I20: =SUM(J21:J24) -> 10201.4 | J20: =SUM(J21:J24) -> 10201.4
A21: Composição | B21: 90778 | C21: SINAPI | D21: ENGENHEIRO PLENO COM ENCARGOS COMPLEMENTARES | E21: Serviços | G21: H | H21: 44 | I21: =IF(C21="SINAPI", VLOOKUP(B21,'SINAPI COMP - SE'!B:F,4,0),"") -> 134.32 | J21: =I21*H21 -> 5910.08 | L21: 6 | M21: =I20*L21 -> 61208.4
A22: Composição | B22: 88279 | C22: SINAPI | D22: =VLOOKUP(B22,'SINAPI COMP - SE'!B:F,2,0) -> MONTADOR ELETROMECÂNICO COM ENCARGOS COMPLEMENTARES | E22: Serviços | G22: H | H22: 44 | I22: =IF(C22="SINAPI", VLOOKUP(B22,'SINAPI COMP - SE'!B:F,4,0),"") -> 41.73 | J22: =I22*H22 -> 1836.12
A23: Composição | B23: 88243 | C23: SINAPI | D23: =VLOOKUP(B23,'SINAPI COMP - SE'!B:F,2,0) -> AJUDANTE ESPECIALIZADO COM ENCARGOS COMPLEMENTARES | E23: Serviços | G23: H | H23: 44 | I23: =IF(C23="SINAPI", VLOOKUP(B23,'SINAPI COMP - SE'!B:F,4,0),"") -> 21.84 | J23: =I23*H23 -> 960.96 | M23: =M13+M21 -> 132618.2
B24: 90776 | C24: SINAPI | D24: =VLOOKUP(B24,'SINAPI COMP - SE'!B:F,2,0) -> ENCARREGADO GERAL COM ENCARGOS COMPLEMENTARES | E24: Serviços | G24: H | H24: 44 | I24: =IF(C24="SINAPI", VLOOKUP(B24,'SINAPI COMP - SE'!B:F,4,0),"") -> 33.96 | J24: =I24*H24 -> 1494.24
A27: 1.4 | B27: Código | C27: Banco | D27: Descrição | E27: Tipo | G27: Und | H27: Quant. | I27: Valor Unit | J27: Total
A28: Composição | B28: CIS-0004 | C28: SINAPI | D28: INSTALAÇÃO DE CABEAMENTO DE COMANDO E COMUNICAÇÃO ENTRE SENSOR TUBULAÇÃO/CANAL TRAPEZOIDAL E TRANSDUTOR/EMISSOR | E28: MÃO DE OBRA | G28: UN | H28: 1 | I28: =SUM(J29:J32) -> 9903.08 | J28: =SUM(J29:J32) -> 9903.08 | M28: 22682.51
A29: Composição | B29: 90778 | C29: SINAPI | D29: ENGENHEIRO PLENO COM ENCARGOS COMPLEMENTARES | E29: Serviços | G29: H | H29: 44 | I29: =IF(C29="SINAPI", VLOOKUP(B29,'SINAPI COMP - SE'!B:F,4,0),"") -> 134.32 | J29: =I29*H29 -> 5910.08 | M29: =M28*6 -> 136095.06
A30: Composição | B30: 88266 | C30: SINAPI | D30: =VLOOKUP(B30,'SINAPI COMP - SE'!B:F,2,0) -> ELETROTÉCNICO COM ENCARGOS COMPLEMENTARES | E30: Serviços | G30: H | H30: 44 | I30: =IF(C30="SINAPI", VLOOKUP(B30,'SINAPI COMP - SE'!B:F,4,0),"") -> 34.95 | J30: =I30*H30 -> 1537.8
A31: Composição | B31: 90776 | C31: SINAPI | D31: =VLOOKUP(B31,'SINAPI COMP - SE'!B:F,2,0) -> ENCARREGADO GERAL COM ENCARGOS COMPLEMENTARES | E31: Serviços | G31: H | H31: 44 | I31: =IF(C31="SINAPI", VLOOKUP(B31,'SINAPI COMP - SE'!B:F,4,0),"") -> 33.96 | J31: =I31*H31 -> 1494.24 | M31: =M28*3 -> 68047.53
A32: Composição | B32: 88243 | C32: SINAPI | D32: =VLOOKUP(B32,'SINAPI COMP - SE'!B:F,2,0) -> AJUDANTE ESPECIALIZADO COM ENCARGOS COMPLEMENTARES | E32: Serviços | G32: H | H32: 44 | I32: =IF(C32="SINAPI", VLOOKUP(B32,'SINAPI COMP - SE'!B:F,4,0),"") -> 21.84 | J32: =I32*H32 -> 960.96
A36: 1.6 | B36: Código | C36: Banco | D36: Descrição | E36: Tipo | G36: Und | H36: Quant. | I36: Valor Unit | J36: Total
A37: Composição | B37: CIS-0006 | C37: Próprio | D37: INSTALAÇÃO E CONFIGURAÇÃO DO PAINEL | E37: MÃO DE OBRA | G37: UN | H37: 1 | I37: =SUM(J38:J41) -> 10244.96 | J37: =SUM(J38:J41) -> 10244.96
A38: Composição | B38: 90778 | C38: SINAPI | D38: ENGENHEIRO PLENO COM ENCARGOS COMPLEMENTARES | E38: Serviços | G38: H | H38: 44 | I38: =IF(C38="SINAPI", VLOOKUP(B38,'SINAPI COMP - SE'!B:F,4,0),"") -> 134.32 | J38: =I38*H38 -> 5910.08
A39: Composição | B39: 88266 | C39: SINAPI | D39: =VLOOKUP(B39,'SINAPI COMP - SE'!B:F,2,0) -> ELETROTÉCNICO COM ENCARGOS COMPLEMENTARES | E39: Serviços | G39: H | H39: 44 | I39: =IF(C39="SINAPI", VLOOKUP(B39,'SINAPI COMP - SE'!B:F,4,0),"") -> 34.95 | J39: =I39*H39 -> 1537.8
A40: Composição | B40: 88279 | C40: SINAPI | D40: =VLOOKUP(B40,'SINAPI COMP - SE'!B:F,2,0) -> MONTADOR ELETROMECÂNICO COM ENCARGOS COMPLEMENTARES | E40: Serviços | G40: H | H40: 44 | I40: =IF(C40="SINAPI", VLOOKUP(B40,'SINAPI COMP - SE'!B:F,4,0),"") -> 41.73 | J40: =I40*H40 -> 1836.12
A41: Composição | B41: 88243 | C41: SINAPI | D41: =VLOOKUP(B41,'SINAPI COMP - SE'!B:F,2,0) -> AJUDANTE ESPECIALIZADO COM ENCARGOS COMPLEMENTARES | E41: Serviços | G41: H | H41: 44 | I41: =IF(C41="SINAPI", VLOOKUP(B41,'SINAPI COMP - SE'!B:F,4,0),"") -> 21.84 | J41: =I41*H41 -> 960.96
A44: 2.3 | B44: Código | C44: Banco | D44: Descrição | E44: Tipo | G44: Und | H44: Quant. | I44: Valor Unit | J44: Total
A45: Composição | B45: CIS-0007 | C45: SINAPI | D45: INSTALAÇÃO E CONFIGURAÇÃO DA ESTAÇÃO DE TRABALHO COM COMUNICAÇÃO DE DADOS COM A ANA | E45: MÃO DE OBRA | G45: UN | H45: 1 | I45: =SUM(J46:J47) -> 9669.44 | J45: =SUM(J46:J47) -> 9669.44
A46: Composição | B46: 90778 | C46: SINAPI | D46: ENGENHEIRO PLENO COM ENCARGOS COMPLEMENTARES | E46: Serviços | G46: H | H46: 44 | I46: =IF(C46="SINAPI", VLOOKUP(B46,'SINAPI COMP - SE'!B:F,4,0),"") -> 134.32 | J46: =I46*H46 -> 5910.08
B47: 10991 | C47: EMOP | D47: MAO-DE-OBRA DE PROGRAMADOR DE INFORMATIC A SENIOR, PARA SERVICOS DE CONSULTORIA, INLUSIVE ENCARGOS SOCIAIS | E47: Serviços | G47: H | H47: 44 | I47: 85.44 | J47: =I47*H47 -> 3759.36
A48: Composição Auxiliar | B48: 88316 | C48: SINAPI | D48: SERVENTE COM ENCARGOS COMPLEMENTARES | E48: SEDI - SERVIÇOS DIVERSOS | G48: H | H48: 0.7866 | I48: =IF(C48="SINAPI", IF( IF(A48="Insumo", VLOOKUP(B48,#REF!,5,0), VLOOKUP(B48,'SINAPI COMP - SE'!B:F,4,0))=0,VLOOKUP(B48,#REF!,2,0),IF(A48="Insumo", VLOOKUP(B48,#REF!,5,0),VLOOKUP(B48,'SINAPI COMP - SE'!B:F,4,0))), VLOOKUP(B48,#REF!,2,0)) -> 21.7 | J48: =I48*H48 -> 17.06922
B53: Código | C53: Banco | D53: Descrição | E53: Tipo | G53: Und | H53: Quant. | I53: Valor Unit | J53: Total
A54: Insumo | B54: INS-001 | C54: Próprio | D54: SISTEMA DE MEDIÇÃO DE VAZÃO PARA CANAL TRAPEZOIDAL. MEDIDOR ULTRASSÔNICO | E54: Material | G54: UN | H54: 1 | I54: =RESUMOS!A2 -> 42750 | J54: =I54*H54 -> 42750
B57: Código | C57: Banco | D57: Descrição | E57: Tipo | G57: Und | H57: Quant. | I57: Valor Unit | J57: Total
A58: Insumo | B58: INS-002 | C58: Próprio | D58: SISTEMA DE MEDIÇÃO DE VAZÃO PARA CONDUTO FORÇADO. MEDIDOR ELETROMAGNÉTICO. | E58: Material | G58: UN | H58: 1 | I58: =RESUMOS!B2 -> 26500.95833 | J58: =I58*H58 -> 26500.95833
B61: Código | C61: Banco | D61: Descrição | E61: Tipo | G61: Und | H61: Quant. | I61: Valor Unit | J61: Total
A62: Insumo | B62: INS-003 | C62: Próprio | D62: SISTEMA DE TELEMETRIA (RÁDIO, GSM OU ETHERNET), SISTEMA DE PROCESSAMENTO E BACKUP, INTERFACE E INTEGRAÇÃO COM API DA ANA | E62: Material | G62: UN | H62: 1 | I62: =RESUMOS!C2 -> 94906.74171 | J62: =I62*H62 -> 94906.74171
B65: Código | C65: Banco | D65: Descrição | E65: Tipo | G65: Und | H65: Quant. | I65: Valor Unit | J65: Total
A66: Insumo | B66: INS-004 | C66: SBC | D66: CAPACITAÇÃO E TREINAMENTO | E66: Material | G66: UN | H66: 1 | I66: =RESUMOS!D2 -> 8707.2 | J66: =I66*H66 -> 8707.2

Sheet Cronograma Físico-Financeiro
C1: MINISTÉRIO DA INTEGRAÇÃO E DO DESENVOLVIMENTO REGIONAL - MIDR
C2: COMPANHIA DE DESENVOLVIMENTO DOS VALES DO SÃO FRANCISCO E DO PARNAÍBA
C3: ÁREA DE IRRIGAÇÃO E OPERAÇÕES - AI
B5: Contratação de fornecimento, instalação e certificação de sistemas de medição de vazão e telemetria de projetos públicos de irrigação com captação em corpos hídricos da União, conforme a Resolução ANA nº 188/2024 - Automonitoramento.
A6: OBJETO: | B6: Contratação de fornecimento, instalação e certificação de sistemas de medição de vazão e telemetria de projetos públicos de irrigação com captação em corpos hídricos da União, conforme a Resolução ANA nº 188/2024 - Automonitoramento.
A8: CRONOGRAMA FÍSICO-FINANCEIRO
A10: ITEM | B10: ESPECIFICAÇÃO DOS SERVIÇOS | C10: VALOR TOTAL (R$) | D10: Mês 01 | E10: Mês 02 | F10: Mês 03 | G10: Mês 04 | H10: Mês 05 | I10: Mês 06 | J10: Total
A11: 01.01 | B11: ='Orçamento Sintético - AL e SE'!E10 -> CUSTOS DE ADMINISTRAÇÃO | C11: ='Orçamento Sintético - AL e SE'!J10 -> 114369.86 | D11: =$C$11*D18 -> 9298.826072 | E11: 26028.76284 | F11: 32774.72152 | G11: 18826.48241 | H11: 17207.70492 | I11: 10233.36224 | J11: =SUM(D11:I11) -> 114369.86
A12: 01.02 | B12: ='Orçamento Sintético - AL e SE'!E15 -> INSTALAÇÃO DOS SENSORES | C12: ='Orçamento Sintético - AL e SE'!I15 -> 951519.31 | D12: =SUM('Orçamento Sintético - AL e SE'!O16:O20) -> 146385.4246 | E12: =SUM('Orçamento Sintético - AL e SE'!R16:R20) -> 146385.4246 | F12: =SUM('Orçamento Sintético - AL e SE'!U16:U20) -> 384267.0084 | G12: =SUM('Orçamento Sintético - AL e SE'!X18:X20) -> 164688.8715 | H12: =SUM('Orçamento Sintético - AL e SE'!AA18:AA20) -> 109792.581 | I12: =SUM('Orçamento Sintético - AL e SE'!AD18:AD20) -> 0 | J12: 951519.31
A13: 01.03 | B13: ='Orçamento Sintético - AL e SE'!E21 -> TELEMETRIA | C13: ='Orçamento Sintético - AL e SE'!J21 -> 790105.83 | D13: 0 | E13: =SUM('Orçamento Sintético - AL e SE'!R22:R24) -> 263368.61 | F13: =SUM('Orçamento Sintético - AL e SE'!U22:U24) -> 131684.305 | G13: =SUM('Orçamento Sintético - AL e SE'!X22:X24) -> 131684.305 | H13: =SUM('Orçamento Sintético - AL e SE'!AA22:AA24) -> 131684.305 | I13: =SUM('Orçamento Sintético - AL e SE'!AD22:AD24) -> 131684.305 | J13: 790105.83
A14: 01.04 | B14: ='Orçamento Sintético - AL e SE'!E25 -> CAPACITAÇÃO E TREINAMENTO | C14: ='Orçamento Sintético - AL e SE'!J25 -> 58825.84 | D14: 0 | E14: 0 | F14: 0 | G14: 0 | H14: =SUM('Orçamento Sintético - AL e SE'!AA26) -> 29412.92 | I14: =SUM('Orçamento Sintético - AL e SE'!AD26) -> 29412.92 | J14: 58825.84
B15: VALOR TOTAL DA PLANILHA | C15: =SUM(C11:C14) -> 1914820.84 | D15: 155684.2506 | E15: 435782.7974 | F15: 548726.0349 | G15: 315199.6589 | H15: 288097.5109 | I15: 171330.5872 | J15: 1914820.84
B16: PERCENTUAL EXECUTADO | C16: =C15/C15 -> 1 | D16: =D15/$C$15 -> 0.08130486539 | E16: 0.2275841104 | F16: 0.2865678206 | G16: 0.1646105225 | H16: 0.1504566406 | I16: 0.08947604061 | J16: 1
C18: =SUM(C12:C14) -> 1800450.98 | D18: =(SUM(D12:D14)/C18) -> 0.08130486539 | E18: =(SUM(E12:E14)/C18) -> 0.2275841104 | F18: =(SUM(F12:F14)/C18) -> 0.2865678206 | G18: =(SUM(G12:G14)/C18) -> 0.1646105225 | H18: =(SUM(H12:H14)/C18) -> 0.1504566406 | I18: =(SUM(I12:I14)/C18) -> 0.08947604061 | J18: =SUM(D18:I18) -> 1
C19: =C11+C18 -> 1914820.84

Sheet B.D.I SERVIÇOS (SEM DES.)
A4: Ministério da Integração e do Desenvolvimento Regional
A5: Companhia de Desenvolvimento do Vale do São Francisco e Parnaíba
A6: Codevasf/Sede
A8: DETALHAMENTO DO BDI - SERVIÇOS - BA
C12: Item | D12: Descrição | E12: Preço de Venda (%) | F12: Custo Direto (%)
C14: 1 | D14: Administração Central (A) | F14: 0.038
C16: 2 | D16: Impostos e Taxas (I) | F16: 0.0865
C17: 2.1 | D17: ISS | E17: 0.035
C18: 2.2 | D18: PIS | E18: 0.0065
C19: 2.3 | D19: Cofins | E19: 0.03
C20: 2.4 | D20: CPRB (INSS) | E20: 0
C22: 3 | D22: Risco, seguro e garantia (R) | F22: 0.016
C23: 3.1 | D23: Risco | E23: 0.012
C24: 3.2 | D24: Seguro + garantia | E24: 0.0042
C27: 4 | D27: Despesas Financeiras (DF) | F27: 0.0095
C29: 5 | D29: Lucro (L) | F29: 0.07
C31: BDI* (%): | F31: =ROUND(((((1+(F14+F22))*(1+F27)*(1+F29)/(1-F16))-1)),4) -> 0.2463
B33: Considerações: | C33: Acórdão nº 2622/2013 - TCU /Plenário
C34: (*) BDI (%) = (((1+(AC+S+R+G))*(1+DF)*(1+L)/(1-I))-1)*100

Sheet B.D.I MATERIAIS (SEM DES.)
A4: Ministério da Integração e do Desenvolvimento Regional
A5: Companhia de Desenvolvimento do Vale do São Francisco e Parnaíba
A6: Codevasf/Sede
A8: DETALHAMENTO DO BDI - FORNECIMENTO DE MATERIAIS - BA
C12: Item | D12: Descrição | E12: Preço de Venda (%) | F12: Custo Direto (%)
C14: 1 | D14: Administração Central (A) | F14: 0.0159
C16: 2 | D16: Impostos e Taxas (I) | F16: =E17+E18+E19+E20 -> 0.0365
C17: 2.1 | D17: ISS | E17: 0
C18: 2.2 | D18: PIS | E18: 0.0065
C19: 2.3 | D19: Cofins | E19: 0.03
C20: 2.4 | D20: CPRB (INSS) | E20: 0
C22: 3 | D22: Risco, seguro e garantia (R) | F22: 0.0086
C23: 3.1 | D23: Risco | E23: 0.0115
C24: 3.2 | D24: Seguro + garantia | E24: 0.008
C27: 4 | D27: Despesas Financeiras (DF) | F27: 0.0085
C29: 5 | D29: Lucro (L) | F29: 0.05
C31: BDI* (%): | F31: =ROUND(((((1+(F14+F22))*(1+F27)*(1+F29)/(1-F16))-1)),4) -> 0.126
B33: Considerações: | C33: Acórdão nº 2622/2013 - TCU /Plenário
C34: (*) BDI (%) = (((1+(AC+S+R+G))*(1+DF)*(1+L)/(1-I))-1)*100

Sheet COMPOSIÇÕES (hidden)
B1: MINISTÉRIO DA INTEGRAÇÃO E DO DESENVOLVIMENTO REGIONAL - MIDR
B2: COMPANHIA DE DESENVOLVIMENTO DOS VALES DO SÃO FRANCISCO E DO PARNAÍBA
B3: ÁREA DE REVITALIZAÇÃO E DESENVOLVIMENTO TERRITORIAL
A5: OBJETO: | B5: TRANSPORTE E INSTALAÇÃO DE CISTERNAS PARA CAPTAÇÃO DA ÁGUA DA CHUVA – RIO GRANDE DO NORTE
A7: COMPOSICÕES DE CUSTOS UNITÁRIOS DE SERVICOS
A9: ITEM | B9: Fonte | C9: Código | D9: DESCRIÇÃO | E9: Unidade | F9: Quantidade | G9: Preço unitário | H9: Preço total
A11: 01.01.01 | C11: CPU0001 | D11: MOBILIZAÇÃO E DESMOBILIZAÇÃO DE PESSOAL E EQUIPAMENTOS | E11: UN | H11: =H14 -> 25228.81
B12: Sinapi Ser | C12: 73467 | D12: CAMINHÃO TOCO, PBT 14.300 KG, CARGA ÚTIL MÁX. 9.710 KG, DIST. ENTRE EIXOS 3,56 M, POTÊNCIA 185 CV, INCLUSIVE CARROCERIA FIXA ABERTA DE MADEI RA P/ TRANSPORTE GERAL DE CARGA SECA, DIMEN. APROX. 2,50 X 6,50 X 0,50 M - CHP DIURNO. AF_06/2014 | E12: CHP | F12: 84.351898 | G12: =VLOOKUP(C12,'Sinapi-Ser'!A:D,4,FALSE()) -> 254.27 | H12: =ROUND(F12*G12,2) -> 21448.16
B13: Sinapi Ser | C13: 88316 | D13: SERVENTE COM ENCARGOS COMPLEMENTARES | E13: H | F13: =F12*2 -> 168.703796 | G13: =VLOOKUP(C13,'Sinapi-Ser'!A:D,4,FALSE()) -> 22.41 | H13: =ROUND(F13*G13,2) -> 3780.65
C14: 01.01.01 | D14: Custo Direto Total | H14: =SUM(H12:H13) -> 25228.81
A16: 01.01.02 | C16: CPU0002 | D16: INSTALAÇÃO DE CANTEIRO DE OBRAS (LOCAÇÃO DE IMÓVEL) | E16: UN | H16: =H19 -> 42282.8
B17: DNIT | C17: B8951 | D17: Imóvel comercial | E17: m2xmês | F17: =100*7 -> 700 | G17: =VLOOKUP(C17,Dnit!A:E,4,FALSE()) -> 49.4 | H17: =ROUND(F17*G17,2) -> 34580
B18: DNIT | C18: B8959 | D18: Custos diversos | E18: ocupantexmês | F18: =8*7 -> 56 | G18: =VLOOKUP(C18,Dnit!A:E,4,FALSE()) -> 137.55 | H18: =ROUND(F18*G18,2) -> 7702.8
C19: 01.01.02 | D19: Custo Direto Total | H19: =SUM(H17:H18) -> 42282.8
A21: 01.01.03 | C21: CPU0003 | D21: ADMINISTRAÇÃO LOCAL E MANUTENÇÃO DO CANTEIRO DE OBRAS | E21: UN | H21: =H27 -> 339189.62
B22: Cotação | C22: COT-0009 | D22: Veículo leve - 53 kW (sem motorista) | E22: mês | F22: 7 | G22: =VLOOKUP(C22,Cotação!A:D,4,FALSE) -> 2418.15 | H22: =ROUND(F22*G22,2) -> 16927.05
B23: Cotação | C23: COT-0010 | D23: Veículo picape 4x4 (sem motorista) | E23: mês | F23: =F22 -> 7 | G23: =VLOOKUP(C23,Cotação!A:D,4,FALSE) -> 7795 | H23: =ROUND(F23*G23,2) -> 54565
B24: Sinapi Ser | C24: 93565 | D24: ENGENHEIRO CIVIL DE OBRAS JUNIOR COM ENCARGOS COMPLEMENTARES | E24: mês | F24: 7 | G24: =VLOOKUP(C24,'Sinapi-Ser'!A:D,4,FALSE()) -> 22725.53 | H24: =ROUND(F24*G24,2) -> 159078.71
B25: Sinapi Ser | C25: 100321 | D25: TÉCNICO EM SEGURANÇA DO TRABALHO COM ENCARGOS COMPLEMENTARES | E25: mês | F25: 7 | G25: =VLOOKUP(C25,'Sinapi-Ser'!A:D,4,FALSE()) -> 8263.67 | H25: =ROUND(F25*G25,2) -> 57845.69
B26: Sinapi Ser | C26: 93572 | D26: ENCARREGADO GERAL DE OBRAS COM ENCARGOS COMPLEMENTARES | E26: mês | F26: 7 | G26: =VLOOKUP(C26,'Sinapi-Ser'!A:D,4,FALSE()) -> 7253.31 | H26: =ROUND(F26*G26,2) -> 50773.17
C27: 01.01.03 | D27: Custo Direto Total | H27: =SUM(H22:H26) -> 339189.62
C29: CPU0004 | D29: PLACA DE OBRA EM CHAPA DE AÇO GALVANIZADO | E29: M2 | H29: =H37 -> 138.37
B30: Sinapi Ins | C30: 4417 | D30: SARRAFO DE MADEIRA NAO APARELHADA *2.5 X 7* CM. MACARANDUBA. ANGELIM OU EQUIVALENTE DA REGIAO | E30: M | F30: 1 | G30: =VLOOKUP(C30,'Sinapi-Ins'!A:D,4,FALSE()) -> 8.43 | H30: =ROUND(F30*G30,2) -> 8.43
B31: Sinapi Ins | C31: 4491 | D31: PONTALETE DE MADEIRA NAO APARELHADA *7.5 X 7.5* CM (3 X 3 ") PINUS. MISTA OU EQUIVALENTE DA REGIAO | E31: M | F31: 4 | G31: =VLOOKUP(C31,'Sinapi-Ins'!A:D,4,FALSE()) -> 13.12 | H31: 52.48
B32: Sinapi Ins | C32: 4813 | D32: PLACA DE OBRA (PARA CONSTRUCAO CIVIL) EM CHAPA GALVANIZADA *N. 22*. ADESIVADA. DE *2.0 X 1.125* M | E32: M2 | F32: 1 | G32: =VLOOKUP(C32,'Sinapi-Ins'!A:D,4,FALSE()) -> 0 | H32: 0
B33: Sinapi Ins | C33: 5075 | D33: PREGO DE ACO POLIDO COM CABECA 18 X 30 (2 3/4 X 10) | E33: KG | F33: 0.11 | G33: =VLOOKUP(C33,'Sinapi-Ins'!A:D,4,FALSE()) -> 22.38 | H33: 2.46
B34: Sinapi Ser | C34: 88262 | D34: CARPINTEIRO DE FORMAS COM ENCARGOS COMPLEMENTARES | E34: H | F34: 1 | G34: =VLOOKUP(C34,'Sinapi-Ser'!A:D,4,FALSE()) -> 26.1 | H34: 26.1
B35: Sinapi Ser | C35: 88316 | D35: SERVENTE COM ENCARGOS COMPLEMENTARES | E35: H | F35: 2 | G35: =VLOOKUP(C35,'Sinapi-Ser'!A:D,4,FALSE()) -> 22.41 | H35: 44.82
B36: Sinapi Ser | C36: 94962 | D36: CONCRETO MAGRO PARA LASTRO. TRAÇO 1:4.5:4.5 (EM MASSA SECA DE CIMENTO/ AREIA MÉDIA/ BRITA 1) - PREPARO MECÂNICO COM BETONEIRA 400 L. AF_05/2021 | E36: M3 | F36: 0.01 | G36: =VLOOKUP(C36,'Sinapi-Ser'!A:D,4,FALSE()) -> 407.65 | H36: 4.08
C37: 01.01.05 | D37: Custo Direto Total | H37: =SUM(H30:H36) -> 138.37
A39: 01.02.02 | C39: CPU0005 | D39: REGULARIZAÇÃO DO FUNDO DA ESCAVAÇÃO COM SOLO-CIMENTO (TRAÇO 1:20 – ESP=10CM), INCLUSIVE PREPARAÇÃO DO SOLO-CIMENTO COM APROVEITAMENTO DO MATERIAL ESCAVADO PENEIRADO | E39: M3 | H39: =H42 -> 307.76
B40: Sinapi Ins | C40: 1379 | D40: CIMENTO PORTLAND COMPOSTO CP II-32 | E40: KG | F40: 57.12 | G40: =VLOOKUP(C40,'Sinapi-Ins'!A:D,4,FALSE()) -> 0.68 | H40: =ROUND(F40*G40,2) -> 38.84
B41: Sinapi Ser | C41: 88316 | D41: SERVENTE COM ENCARGOS COMPLEMENTARES | E41: H | F41: 12 | G41: =VLOOKUP(C41,'Sinapi-Ser'!A:D,4,FALSE()) -> 22.41 | H41: =ROUND(F41*G41,2) -> 268.92
C42: 01.02.02 | D42: Custo Direto Total | H42: =SUM(H40:H41) -> 307.76
A44: 01.02.04 | C44: CPU0006 | D44: REATERRO DAS LATERAIS DA CISTERNA, COMPACTADO MANUALMENTE, COM MATERIAL DE EMPRÉSTIMO | E44: M3 | H44: =H48 -> 178.99
B45: Sinapi Ins | C45: 370 | D45: AREIA MEDIA - POSTO JAZIDA/FORNECEDOR (RETIRADO NA JAZIDA, SEM TRANSPORTE) | E45: M3 | F45: 1.1 | G45: =VLOOKUP(C45,'Sinapi-Ins'!A:D,4,FALSE()) -> 100 | H45: =ROUND(F45*G45,2) -> 110
B46: Sinapi Ser | C46: 97912 | D46: TRANSPORTE COM CAMINHÃO BASCULANTE DE 6 M3, EM VIA URBANA EM LEITO NATURAL (UNIDADE: M3XKM). AF_07/2020 | E46: M3xKM | F46: =F45*10 -> 11 | G46: =VLOOKUP(C46,'Sinapi-Ser'!A:D,4,FALSE()) -> 3.84 | H46: =ROUND(F46*G46,2) -> 42.24
B47: Sinapi Ser | C47: 93382 | D47: REATERRO MANUAL DE VALAS, COM COMPACTADOR DE SOLOS DE PERCUSSÃO. AF 08/2023 | E47: M3 | F47: 1 | G47: =VLOOKUP(C47,'Sinapi-Ser'!A:D,4,FALSE()) -> 26.75 | H47: =ROUND(F47*G47,2) -> 26.75
C48: 01.02.03 | D48: Custo Direto Total | H48: =SUM(H45:H47) -> 178.99
A50: 01.02.05 | C50: CPU0007 | D50: ESPALHAMENTO DO MATERIAL ESCAVADO NÃO UTILIZADO PARA ATERRO | E50: M3 | H50: =H52 -> 7.47
B51: Sinapi Ser | C51: 88316 | D51: SERVENTE COM ENCARGOS COMPLEMENTARES | E51: H | F51: =20/60 -> 0.3333333333 | G51: =VLOOKUP(C51,'Sinapi-Ser'!A:D,4,FALSE()) -> 22.41 | H51: =ROUND(F51*G51,2) -> 7.47
C52: 01.02.06 | D52: Custo Direto Total | H52: =SUM(H51) -> 7.47
A54: 01.03.01 | C54: CPU0008 | D54: ASSENTAMENTO DE TUBOS E CONEXÕES | E54: M | H54: =H57 -> 5.15
B55: Sinapi Ser | C55: 88267 | D55: ENCANADOR OU BOMBEIRO HIDRÁULICO COM ENCARGOS COMPLEMENTARES | E55: H | F55: 0.1074 | G55: =VLOOKUP(C55,'Sinapi-Ser'!A:D,4,FALSE()) -> 25.51 | H55: =ROUND(F55*G55,2) -> 2.74
B56: Sinapi Ser | C56: 88316 | D56: SERVENTE COM ENCARGOS COMPLEMENTARES | E56: H | F56: =F55 -> 0.1074 | G56: =VLOOKUP(C56,'Sinapi-Ser'!A:D,4,FALSE()) -> 22.41 | H56: =ROUND(F56*G56,2) -> 2.41
C57: 01.03.01 | D57: Custo Direto Total | H57: =SUM(H55:H56) -> 5.15
A59: 01.03.02 | C59: CPU0009 | D59: CONFECÇÃO E ASSENTAMENTO DE CALHA EM CHAPA DE AÇO GALVANIZADO Nº 26, DESENVOLVIMENTO DE 30CM, FIXADA NA ESTRUTURA DE MADEIRA DO TELHADO, INCLUSO TRANSPORTE VERTICAL E MATERIAL PARA CONFECÇÃO DA CALHA | E59: M | H59: =H65 -> 38.26
B60: Sinapi Ins | C60: 1109 | D60: CALHA QUADRADA DE CHAPA DE ACO GALVANIZADA NUM 26, CORTE 30 CM (SINAPI INS 1109 ADAPTADO) | E60: M | F60: 1.05 | G60: =VLOOKUP(C60,'Sinapi-Ins'!A:D,4,FALSE()) -> 27.29 | H60: =ROUND(F60*G60,2) -> 28.65
B61: Sinapi Ins | C61: 142 | D61: SELANTE ELASTICO MONOCOMPONENTE A BASE DE POLIURETANO (PU) PARA JUNTAS DIVERSAS | E61: 310ML | F61: 0.0038 | G61: =VLOOKUP(C61,'Sinapi-Ins'!A:D,4,FALSE()) -> 33.47 | H61: =ROUND(F61*G61,2) -> 0.13
B62: Sinapi Ins | C62: 5104 | D62: REBITE DE ALUMINIO VAZADO DE REPUXO. 3.2 X 8 MM (1KG = 1025 UNIDADES) | E62: KG | F62: 0.0012 | G62: =VLOOKUP(C62,'Sinapi-Ins'!A:D,4,FALSE()) -> 0 | H62: =ROUND(F62*G62,2) -> 0
B63: Sinapi Ser | C63: 88316 | D63: SERVENTE COM ENCARGOS COMPLEMENTARES | E63: H | F63: 0.25 | G63: =VLOOKUP(C63,'Sinapi-Ser'!A:D,4,FALSE()) -> 22.41 | H63: =ROUND(F63*G63,2) -> 5.6
B64: Sinapi Ser | C64: 88323 | D64: TELHADISTA COM ENCARGOS COMPLEMENTARES | E64: H | F64: 0.15 | G64: =VLOOKUP(C64,'Sinapi-Ser'!A:D,4,FALSE()) -> 25.86 | H64: =ROUND(F64*G64,2) -> 3.88
C65: 01.03.02 | D65: Custo Direto Total | H65: =SUM(H60:H64) -> 38.26
A67: 01.03.03 | C67: CPU0010 | D67: INSTALAÇÃO DA BOMBA MANUAL, INCLUSIVE CONJUNTO DE SUCÇÃO FLUTUANTE | E67: UN | H67: =H69 -> 15.69
B68: Sinapi Ser | C68: 88316 | D68: SERVENTE COM ENCARGOS COMPLEMENTARES | E68: H | F68: 0.7 | G68: =VLOOKUP(C68,'Sinapi-Ser'!A:D,4,FALSE()) -> 22.41 | H68: =ROUND(F68*G68,2) -> 15.69
C69: 01.03.03 | D69: Custo Direto Total | H69: =SUM(H68) -> 15.69
A71: 01.03.04 | C71: CPU0011 | D71: PINTURA DO LOGOTIPO DA CODEVASF NO CORPO DA CISTERNA | E71: UN | H71: =H74 -> 8.24
B72: Sinapi Ins | C72: 7304 | D72: TINTA EPOXI BASE AGUA PREMIUM, BRANCA | E72: L | F72: =10.46/1000 -> 0.01046 | G72: =VLOOKUP(C72,'Sinapi-Ins'!A:D,4,FALSE()) -> 75.9 | H72: =ROUND(F72*G72,2) -> 0.79
B73: Sinapi Ser | C73: 88312 | D73: PINTOR PARA TINTA EPÓXI COM ENCARGOS COMPLEMENTARES | E73: H | F73: =15/60 -> 0.25 | G73: =VLOOKUP(C73,'Sinapi-Ser'!A:D,4,FALSE()) -> 29.79 | H73: =ROUND(F73*G73,2) -> 7.45
C74: 01.03.04 | D74: Custo Direto Total | H74: =SUM(H72:H73) -> 8.24
A76: 01.03.05 | C76: CPU0012 | D76: BLOCO DE ANCORAGEM 25 X 30 X 25CM | E76: UN | H76: =H82 -> 37.26
B77: Sinapi Ser | C77: 96543 | D77: ARMAÇÃO DE BLOCO, VIGA BALDRAME E SAPATA UTILIZANDO AÇO CA-60 DE 5 MM - MONTAGEM. AF_06/2017 | E77: KG | F77: =40*F78 -> 0.655755 | G77: =VLOOKUP(C77,'Sinapi-Ser'!A:D,4,FALSE()) -> 21.04 | H77: =ROUND(F77*G77,2) -> 13.8
B78: Sinapi Ser | C78: 94975 | D78: CONCRETO FCK = 15MPA. TRAÇO 1:3.4:3.5 (EM MASSA SECA DE CIMENTO/ AREIA MÉDIA/ BRITA 1) - PREPARO MANUAL. AF_05/2021 | E78: M3 | F78: =0.25*0.25*0.3-3.1415*0.05*0.05*0.3 -> 0.016393875 | G78: =VLOOKUP(C78,'Sinapi-Ser'!A:D,4,FALSE()) -> 499.26 | H78: =ROUND(F78*G78,2) -> 8.18
B79: Sinapi Ser | C79: 97086 | D79: FABRICAÇÃO. MONTAGEM E DESMONTAGEM DE FORMA PARA RADIER, PISO DE CONCRETO OU LAJE SOBRE SOLO, EM MADEIRA SERRADA. 4 UTILIZAÇÕES. AF_09/2021 | E79: M2 | F79: =(2*0.25*0.3+2*0.25*0.25)/4 -> 0.06875 | G79: =VLOOKUP(C79,'Sinapi-Ser'!A:D,4,FALSE()) -> 134.86 | H79: =ROUND(F79*G79,2) -> 9.27
B80: Sinapi Ser | C80: 88309 | D80: PEDREIRO COM ENCARGOS COMPLEMENTARES | E80: H | F80: 0.1 | G80: =VLOOKUP(C80,'Sinapi-Ser'!A:D,4,FALSE()) -> 26.5 | H80: =ROUND(F80*G80,2) -> 2.65
B81: Sinapi Ser | C81: 88316 | D81: SERVENTE COM ENCARGOS COMPLEMENTARES | E81: H | F81: 0.15 | G81: =VLOOKUP(C81,'Sinapi-Ser'!A:D,4,FALSE()) -> 22.41 | H81: =ROUND(F81*G81,2) -> 3.36
C82: 01.03.04 | D82: Custo Direto Total | H82: =SUM(H77:H81) -> 37.26
A84: 01.04.01 | C84: CPU0013 | D84: TRANSPORTE COMERCIAL DA FÁBRICA PARA O LOCAL DE ARMAZENAMENTOEM RODOVIA PAVIMENTADA | E84: UNXKM | H84: =H87 -> 
B85: SICRO3 | C85: E9665 | D85: CAVALO MECÂNICO COM SEMIRREBOQUE COM CAPACIDADE DE 22 T - 240 KW | E85: CHP | F85: 0.003825 | G85: =VLOOKUP(C85,Dnit!A:D,4,FALSE()) ->  | H85: =ROUND(F85*G85,2) ->  | J85: *Os valores da quantidade vem do MC Transporte | L85: C20
B86: Sinapi Ser | C86: 88316 | D86: SERVENTE COM ENCARGOS COMPLEMENTARES | E86: H | F86: =F85 -> 0.003825 | G86: =VLOOKUP(C86,'Sinapi-Ser'!A:D,4,FALSE()) -> 22.41 | H86: =ROUND(F86*G86,2) -> 0.09 | J86: *Os valores da quantidade vem do MC Transporte
D87: Custo Direto Total | H87: =SUM(H85:H86) -> 
A89: 01.04.02 | C89: CPU0014 | D89: TRANSPORTE COMERCIAL DO LOCAL DE ARMAZENAMENTO AO MUNICÍPIO DE INSTALAÇÃO EM RODOVIA PAVIMENTADA | E89: UNXKM | H89: =H92 -> 
B90: SICRO3 | C90: E9665 | D90: CAVALO MECÂNICO COM SEMIRREBOQUE COM CAPACIDADE DE 22 T - 240 KW | E90: CHP | F90: 0.003825 | G90: =VLOOKUP(C90,Dnit!A:D,4,FALSE()) ->  | H90: =ROUND(F90*G90,2) ->  | J90: *Os valores da quantidade vem do MC Transporte | L90: c34
B91: Sinapi Ser | C91: 88316 | D91: SERVENTE COM ENCARGOS COMPLEMENTARES | E91: H | F91: =F90 -> 0.003825 | G91: =VLOOKUP(C91,'Sinapi-Ser'!A:D,4,FALSE()) -> 22.41 | H91: =ROUND(F91*G91,2) -> 0.09 | J91: *Os valores da quantidade vem do MC Transporte
D92: Custo Direto Total | H92: =SUM(H90:H91) -> 
A94: 01.04.03 | C94: CPU0015 | D94: TRANSPORTE COMERCIAL COM CAMINHAO CARROCERIA 9 T, RODOVIA PAVIMENTADA, NO MUNICÍPIO DE INSTALAÇÃO | E94: UNXKM | H94: =H97 -> 5.56
B95: Sinapi Ser | C95: 73467 | D95: CAMINHÃO TOCO, PBT 14.300 KG, CARGA ÚTIL MÁX. 9.710 KG, DIST. ENTRE EIXOS 3,56 M, POTÊNCIA 185 CV, INCLUSIVE CARROCERIA FIXA ABERTA DE MADEI RA P/ TRANSPORTE GERAL DE CARGA SECA, DIMEN. APROX. 2,50 X 6,50 X 0,50 M - CHP DIURNO. AF_06/2014 | E95: CHP | F95: 0.02008 | G95: =VLOOKUP(C95,'Sinapi-Ser'!A:D,4,FALSE()) -> 254.27 | H95: =ROUND(F95*G95,2) -> 5.11 | J95: *Os valores da quantidade vem do MC Transporte | L95: c46
B96: Sinapi Ser | C96: 88316 | D96: SERVENTE COM ENCARGOS COMPLEMENTARES | E96: H | F96: =F95 -> 0.02008 | G96: =VLOOKUP(C96,'Sinapi-Ser'!A:D,4,FALSE()) -> 22.41 | H96: =ROUND(F96*G96,2) -> 0.45 | J96: *Os valores da quantidade vem do MC Transporte
C97: 01.04.02 | D97: Custo Direto Total | H97: =SUM(H95:H96) -> 5.56
A99: 01.04.04 | C99: CPU0016 | D99: TRANSPORTE COMERCIAL COM CAMINHAO CARROCERIA 9 T, RODOVIA EM LEITO NATURAL, NO MUNICÍPIO DE INSTALAÇÃO | E99: UNXKM | H99: =H102 -> 8.33
B100: Sinapi Ser | C100: 73467 | D100: CAMINHÃO TOCO, PBT 14.300 KG, CARGA ÚTIL MÁX. 9.710 KG, DIST. ENTRE EIXOS 3,56 M, POTÊNCIA 185 CV, INCLUSIVE CARROCERIA FIXA ABERTA DE MADEI RA P/ TRANSPORTE GERAL DE CARGA SECA, DIMEN. APROX. 2,50 X 6,50 X 0,50 M - CHP DIURNO. AF_06/2014 | E100: CHP | F100: 0.03012 | G100: =VLOOKUP(C100,'Sinapi-Ser'!A:D,4,FALSE()) -> 254.27 | H100: =ROUND(F100*G100,2) -> 7.66 | J100: *Os valores da quantidade vem do MC Transporte | L100: c58
B101: Sinapi Ser | C101: 88316 | D101: SERVENTE COM ENCARGOS COMPLEMENTARES | E101: H | F101: =F100 -> 0.03012 | G101: =VLOOKUP(C101,'Sinapi-Ser'!A:D,4,FALSE()) -> 22.41 | H101: =ROUND(F101*G101,2) -> 0.67 | J101: *Os valores da quantidade vem do MC Transporte
C102: 01.04.03 | D102: Custo Direto Total | H102: =SUM(H100:H101) -> 8.33

Sheet Sinapi-Ser (hidden)
A1: CODIGO DA COMPOSICAO | B1: DESCRICAO DA COMPOSICAO | C1: UNIDADE | D1: CUSTO TOTAL | F1: PCI.817.01 - CUSTO DE COMPOSIÇÕES - SINTÉTICO DATA DE EMISSÃO: 14/08/2024 23:52:58 DATA DE RT: 14/08/2024
A2: 104658 | B2: PISO PODOTÁTIL DE ALERTA OU DIRECIONAL, DE CONCRETO, ASSENTADO SOBRE ARGAMASSA. AF_03/2024 | C2: M2 | D2: 155.85 | F2: ENCARGOS SOCIAIS SOBRE PREÇOS DA MÃO-DE-OBRA: 115,21%(HORA) 70,86%(MÊS)
A3: 105002 | B3: RAMPA DE ACESSIBILIDADE EM CONCRETO MOLDADO IN LOCO, EM CALÇADA NOVA COM LARGURA MAIOR OU IGUAL À 3,00 M, FCK 25MPA, COM PISO PODOTÁTIL. AF_03/2024 | C3: UN | D3: 719.54 | F3: ABRANGÊNCIA : NACIONAL LOCALIDADE : NATAL DATA DE PREÇO : 04/2025 REFERÊNCIA COLETA : MEDIANO
A4: 105004 | B4: RAMPA DE ACESSIBILIDADE EM CONCRETO MOLDADO IN LOCO, EM CALÇADA NOVA COM LARGURA MENOR À 3,00 M, FCK 25MPA, COM PISO PODOTÁTIL. AF_03/2024 | C4: M2 | D4: 121.36
A5: 105003 | B5: RAMPA DE ACESSIBILIDADE EM CONCRETO MOLDADO IN LOCO, EM CALÇADA PRÉ EXISTENTE COM LARGURA MAIOR OU IGUAL À 3,00 M, FCK 25MPA, COM PISO PODOTÁTIL. AF_03/2024 | C5: UN | D5: 1200
A6: 105005 | B6: RAMPA DE ACESSIBILIDADE EM CONCRETO MOLDADO IN LOCO, EM CALÇADA PRÉ EXISTENTE COM LARGURA MENOR À 3,00 M, FCK 25MPA, COM PISO PODOTÁTIL. AF_03/2024 | C6: M2 | D6: 210.32
A7: 105006 | B7: RAMPA DE ACESSIBILIDADE EM CONCRETO PRÉ MOLDADO, EM CALÇADA NOVA COM LARGURA MAIOR OU IGUAL À 3,00 M, FCK 25MPA, COM PISO PODOTÁTIL. AF_03/2024 | C7: UN | D7: 0
A8: 104999 | B8: RAMPA DE ACESSIBILIDADE EM CONCRETO PRÉ MOLDADO, EM CALÇADA PRÉ EXISTENTE COM LARGURA MAIOR OU IGUAL À 3,00 M, FCK 25MPA, COM PISO PODOTÁTIL. AF_03/2024 | C8: UN | D8: 0
A9: 105000 | B9: RAMPA DE ACESSIBILIDADE PARA ACESSO A EDIFICAÇÕES COM INCLINAÇÃO DE 8,33% EM CONCRETO MOLDADO IN LOCO, COM LARGURA DE 1,20M, FCK 25MPA, NÃO ARMADA, COM JUNTA A CADA 2M COM CORTE À SECO. AF_03/2024 | C9: M | D9: 1305.45
A10: 105001 | B10: RAMPA DE ACESSIBILIDADE PARA ACESSO A EDIFICAÇÕES COM INCLINAÇÃO DE 8,33% EM CONCRETO MOLDADO IN LOCO, COM LARGURA DE 1,50M, FCK 25MPA, NÃO ARMADA, COM JUNTA A CADA 2M COM CORTE À SECO. AF_03/2024 | C10: M | D10: 1340.1
A11: 89306 | B11: ALVENARIA ESTRUTURAL DE BLOCOS CERÂMICOS 14X19X29, (ESPESSURA DE 14 CM), UTILIZANDO COLHER DE PEDREIRO E ARGAMASSA DE ASSENTAMENTO COM PREPARO EM BETONEIRA. AF_03/2023 | C11: M2 | D11: 92.23
A12: 89307 | B12: ALVENARIA ESTRUTURAL DE BLOCOS CERÂMICOS 14X19X29, (ESPESSURA DE 14 CM), UTILIZANDO COLHER DE PEDREIRO E ARGAMASSA DE ASSENTAMENTO COM PREPARO MANUAL. AF_03/2023 | C12: M2 | D12: 94.33
A13: 89290 | B13: ALVENARIA ESTRUTURAL DE BLOCOS CERÂMICOS 14X19X29, (ESPESSURA DE 14 CM), UTILIZANDO PALHETA E ARGAMASSA DE ASSENTAMENTO COM PREPARO EM BETONEIRA. AF_03/2023 | C13: M2 | D13: 76.79
A14: 89291 | B14: ALVENARIA ESTRUTURAL DE BLOCOS CERÂMICOS 14X19X29, (ESPESSURA DE 14 CM), UTILIZANDO PALHETA E ARGAMASSA DE ASSENTAMENTO COM PREPARO MANUAL. AF_03/2023 | C14: M2 | D14: 78.35
A15: 89298 | B15: ALVENARIA ESTRUTURAL DE BLOCOS CERÂMICOS 14X19X39, (ESPESSURA DE 14 CM), UTILIZANDO COLHER DE PEDREIRO E ARGAMASSA DE ASSENTAMENTO COM PREPARO EM BETONEIRA. AF_03/2023 | C15: M2 | D15: 79.96
A16: 89299 | B16: ALVENARIA ESTRUTURAL DE BLOCOS CERÂMICOS 14X19X39, (ESPESSURA DE 14 CM), UTILIZANDO COLHER DE PEDREIRO E ARGAMASSA DE ASSENTAMENTO COM PREPARO MANUAL. AF_03/2023 | C16: M2 | D16: 81.84
A17: 89282 | B17: ALVENARIA ESTRUTURAL DE BLOCOS CERÂMICOS 14X19X39, (ESPESSURA DE 14 CM), UTILIZANDO PALHETA E ARGAMASSA DE ASSENTAMENTO COM PREPARO EM BETONEIRA. AF_03/2023 | C17: M2 | D17: 69.09
A18: 89283 | B18: ALVENARIA ESTRUTURAL DE BLOCOS CERÂMICOS 14X19X39, (ESPESSURA DE 14 CM), UTILIZANDO PALHETA E ARGAMASSA DE ASSENTAMENTO COM PREPARO MANUAL. AF_03/2023 | C18: M2 | D18: 70.5
A19: 89480 | B19: ALVENARIA DE BLOCOS DE CONCRETO ESTRUTURAL 14X19X29 CM (ESPESSURA 14 CM), FBK = 14 MPA, UTILIZANDO COLHER DE PEDREIRO. AF_10/2022 | C19: M2 | D19: 168.64
A20: 89464 | B20: ALVENARIA DE BLOCOS DE CONCRETO ESTRUTURAL 14X19X29 CM (ESPESSURA 14 CM), FBK = 14,0 MPA, UTILIZANDO PALHETA. AF_10/2022 | C20: M2 | D20: 149.32
A21: 89478 | B21: ALVENARIA DE BLOCOS DE CONCRETO ESTRUTURAL 14X19X29 CM (ESPESSURA 14 CM), FBK = 4,5 MPA, UTILIZANDO COLHER DE PEDREIRO. AF_10/2022 | C21: M2 | D21: 143.84
A22: 89462 | B22: ALVENARIA DE BLOCOS DE CONCRETO ESTRUTURAL 14X19X29 CM (ESPESSURA 14 CM), FBK = 4,5 MPA, UTILIZANDO PALHETA. AF_10/2022 | C22: M2 | D22: 125.64
A23: 104444 | B23: ALVENARIA DE BLOCOS DE CONCRETO ESTRUTURAL 14X19X29 CM (ESPESSURA 14 CM), FBK = 8 MPA, UTILIZANDO COLHER DE PEDREIRO. AF_10/2022 | C23: M2 | D23: 0
A24: 104442 | B24: ALVENARIA DE BLOCOS DE CONCRETO ESTRUTURAL 14X19X29 CM (ESPESSURA 14 CM), FBK = 8 MPA, UTILIZANDO PALHETA. AF_10/2022 | C24: M2 | D24: 0
A25: 89472 | B25: ALVENARIA DE BLOCOS DE CONCRETO ESTRUTURAL 14X19X39 CM (ESPESSURA 14 CM), FBK = 14 MPA, UTILIZANDO COLHER DE PEDREIRO. AF_10/2022 | C25: M2 | D25: 130.28
A26: 89455 | B26: ALVENARIA DE BLOCOS DE CONCRETO ESTRUTURAL 14X19X39 CM (ESPESSURA 14 CM), FBK = 14 MPA, UTILIZANDO PALHETA. AF_10/2022 | C26: M2 | D26: 118.17
A27: 89470 | B27: ALVENARIA DE BLOCOS DE CONCRETO ESTRUTURAL 14X19X39 CM (ESPESSURA 14 CM), FBK = 4,5 MPA, UTILIZANDO COLHER DE PEDREIRO. AF_10/2022 | C27: M2 | D27: 107.34
A28: 89453 | B28: ALVENARIA DE BLOCOS DE CONCRETO ESTRUTURAL 14X19X39 CM (ESPESSURA 14 CM), FBK = 4,5 MPA, UTILIZANDO PALHETA. AF_10/2022 | C28: M2 | D28: 96.32
A29: 104443 | B29: ALVENARIA DE BLOCOS DE CONCRETO ESTRUTURAL 14X19X39 CM (ESPESSURA 14 CM), FBK = 8 MPA, UTILIZANDO COLHER DE PEDREIRO. AF_10/2022 | C29: M2 | D29: 0
A30: 104441 | B30: ALVENARIA DE BLOCOS DE CONCRETO ESTRUTURAL 14X19X39 CM (ESPESSURA 14 CM), FBK = 8 MPA, UTILIZANDO PALHETA. AF_10/2022 | C30: M2 | D30: 0
A31: 103354 | B31: ALVENARIA DE VEDAÇÃO DE BLOCOS CERÂMICOS FURADOS NA HORIZONTAL DE 11,5X14X24 CM (ESPESSURA 11,5 CM) E ARGAMASSA DE ASSENTAMENTO COM PREPARO EM BETONEIRA. AF_12/2021 | C31: M2 | D31: 84.65
A32: 103355 | B32: ALVENARIA DE VEDAÇÃO DE BLOCOS CERÂMICOS FURADOS NA HORIZONTAL DE 11,5X14X24 CM (ESPESSURA 11,5 CM) E ARGAMASSA DE ASSENTAMENTO COM PREPARO MANUAL. AF_12/2021 | C32: M2 | D32: 85.9
A33: 103330 | B33: ALVENARIA DE VEDAÇÃO DE BLOCOS CERÂMICOS FURADOS NA HORIZONTAL DE 11,5X19X19 CM (ESPESSURA 11,5 CM) E ARGAMASSA DE ASSENTAMENTO COM PREPARO EM BETONEIRA. AF_12/2021 | C33: M2 | D33: 78.77
A34: 103331 | B34: ALVENARIA DE VEDAÇÃO DE BLOCOS CERÂMICOS FURADOS NA HORIZONTAL DE 11,5X19X19 CM (ESPESSURA 11,5 CM) E ARGAMASSA DE ASSENTAMENTO COM PREPARO MANUAL. AF_12/2021 | C34: M2 | D34: 79.95
A35: 103358 | B35: ALVENARIA DE VEDAÇÃO DE BLOCOS CERÂMICOS FURADOS NA HORIZONTAL DE 11,5X19X29 CM (ESPESSURA 11,5 CM) E ARGAMASSA DE ASSENTAMENTO COM PREPARO EM BETONEIRA. AF_12/2021 | C35: M2 | D35: 66.58
A36: 103359 | B36: ALVENARIA DE VEDAÇÃO DE BLOCOS CERÂMICOS FURADOS NA HORIZONTAL DE 11,5X19X29 CM (ESPESSURA 11,5 CM) E ARGAMASSA DE ASSENTAMENTO COM PREPARO MANUAL. AF_12/2021 | C36: M2 | D36: 67.58
A37: 103366 | B37: ALVENARIA DE VEDAÇÃO DE BLOCOS CERÂMICOS FURADOS NA HORIZONTAL DE 11,5X19X39 CM (ESPESSURA 11,5 CM) E ARGAMASSA DE ASSENTAMENTO COM PREPARO EM BETONEIRA. AF_12/2021 | C37: M2 | D37: 58.52
A38: 103367 | B38: ALVENARIA DE VEDAÇÃO DE BLOCOS CERÂMICOS FURADOS NA HORIZONTAL DE 11,5X19X39 CM (ESPESSURA 11,5 CM) E ARGAMASSA DE ASSENTAMENTO COM PREPARO MANUAL. AF_12/2021 | C38: M2 | D38: 59.43
A39: 103360 | B39: ALVENARIA DE VEDAÇÃO DE BLOCOS CERÂMICOS FURADOS NA HORIZONTAL DE 14X19X29 CM (ESPESSURA 14 CM) E ARGAMASSA DE ASSENTAMENTO COM PREPARO EM BETONEIRA. AF_12/2021 | C39: M2 | D39: 77.79
A40: 103361 | B40: ALVENARIA DE VEDAÇÃO DE BLOCOS CERÂMICOS FURADOS NA HORIZONTAL DE 14X19X29 CM (ESPESSURA 14 CM) E ARGAMASSA DE ASSENTAMENTO COM PREPARO MANUAL. AF_12/2021 | C40: M2 | D40: 79.06
A41: 103368 | B41: ALVENARIA DE VEDAÇÃO DE BLOCOS CERÂMICOS FURADOS NA HORIZONTAL DE 14X19X39 CM (ESPESSURA 14 CM) E ARGAMASSA DE ASSENTAMENTO COM PREPARO EM BETONEIRA. AF_12/2021 | C41: M2 | D41: 66.05
A42: 103369 | B42: ALVENARIA DE VEDAÇÃO DE BLOCOS CERÂMICOS FURADOS NA HORIZONTAL DE 14X19X39 CM (ESPESSURA 14 CM) E ARGAMASSA DE ASSENTAMENTO COM PREPARO MANUAL. AF_12/2021 | C42: M2 | D42: 67.2
A43: 103334 | B43: ALVENARIA DE VEDAÇÃO DE BLOCOS CERÂMICOS FURADOS NA HORIZONTAL DE 14X9X19 CM (ESPESSURA 14 CM, BLOCO DEITADO) E ARGAMASSA DE ASSENTAMENTO COM PREPARO EM BETONEIRA. AF_12/2021 | C43: M2 | D43: 137.28
A44: 103335 | B44: ALVENARIA DE VEDAÇÃO DE BLOCOS CERÂMICOS FURADOS NA HORIZONTAL DE 14X9X19 CM (ESPESSURA 14 CM, BLOCO DEITADO) E ARGAMASSA DE ASSENTAMENTO COM PREPARO MANUAL. AF_12/2021 | C44: M2 | D44: 139.48
A45: 103362 | B45: ALVENARIA DE VEDAÇÃO DE BLOCOS CERÂMICOS FURADOS NA HORIZONTAL DE 19X19X29 CM (ESPESSURA 19 CM) E ARGAMASSA DE ASSENTAMENTO COM PREPARO EM BETONEIRA. AF_12/2021 | C45: M2 | D45: 94.63
A46: 103363 | B46: ALVENARIA DE VEDAÇÃO DE BLOCOS CERÂMICOS FURADOS NA HORIZONTAL DE 19X19X29 CM (ESPESSURA 19 CM) E ARGAMASSA DE ASSENTAMENTO COM PREPARO MANUAL. AF_12/2021 | C46: M2 | D46: 96.06
A47: 103370 | B47: ALVENARIA DE VEDAÇÃO DE BLOCOS CERÂMICOS FURADOS NA HORIZONTAL DE 19X19X39 CM (ESPESSURA 19 CM) E ARGAMASSA DE ASSENTAMENTO COM PREPARO EM BETONEIRA. AF_12/2021 | C47: M2 | D47: 83.92
A48: 103371 | B48: ALVENARIA DE VEDAÇÃO DE BLOCOS CERÂMICOS FURADOS NA HORIZONTAL DE 19X19X39 CM (ESPESSURA 19 CM) E ARGAMASSA DE ASSENTAMENTO COM PREPARO MANUAL. AF_12/2021 | C48: M2 | D48: 85.21
A49: 103332 | B49: ALVENARIA DE VEDAÇÃO DE BLOCOS CERÂMICOS FURADOS NA HORIZONTAL DE 9X14X19 CM (ESPESSURA 9 CM) E ARGAMASSA DE ASSENTAMENTO COM PREPARO EM BETONEIRA. AF_12/2021 | C49: M2 | D49: 114.43
A50: 103333 | B50: ALVENARIA DE VEDAÇÃO DE BLOCOS CERÂMICOS FURADOS NA HORIZONTAL DE 9X14X19 CM (ESPESSURA 9 CM) E ARGAMASSA DE ASSENTAMENTO COM PREPARO MANUAL. AF_12/2021 | C50: M2 | D50: 115.7
A51: 103352 | B51: ALVENARIA DE VEDAÇÃO DE BLOCOS CERÂMICOS FURADOS NA HORIZONTAL DE 9X14X24 CM (ESPESSURA 9 CM) E ARGAMASSA DE ASSENTAMENTO COM PREPARO EM BETONEIRA. AF_12/2021 | C51: M2 | D51: 98.25
A52: 103353 | B52: ALVENARIA DE VEDAÇÃO DE BLOCOS CERÂMICOS FURADOS NA HORIZONTAL DE 9X14X24 CM (ESPESSURA 9 CM) E ARGAMASSA DE ASSENTAMENTO COM PREPARO MANUAL. AF_12/2021 | C52: M2 | D52: 99.41
A53: 103328 | B53: ALVENARIA DE VEDAÇÃO DE BLOCOS CERÂMICOS FURADOS NA HORIZONTAL DE 9X19X19 CM (ESPESSURA 9 CM) E ARGAMASSA DE ASSENTAMENTO COM PREPARO EM BETONEIRA. AF_12/2021 | C53: M2 | D53: 89.99
A54: 103329 | B54: ALVENARIA DE VEDAÇÃO DE BLOCOS CERÂMICOS FURADOS NA HORIZONTAL DE 9X19X19 CM (ESPESSURA 9 CM) E ARGAMASSA DE ASSENTAMENTO COM PREPARO MANUAL. AF_12/2021 | C54: M2 | D54: 91.09
A55: 103356 | B55: ALVENARIA DE VEDAÇÃO DE BLOCOS CERÂMICOS FURADOS NA HORIZONTAL DE 9X19X29 CM (ESPESSURA 9 CM) E ARGAMASSA DE ASSENTAMENTO COM PREPARO EM BETONEIRA. AF_12/2021 | C55: M2 | D55: 58.44
A56: 103357 | B56: ALVENARIA DE VEDAÇÃO DE BLOCOS CERÂMICOS FURADOS NA HORIZONTAL DE 9X19X29 CM (ESPESSURA 9 CM) E ARGAMASSA DE ASSENTAMENTO COM PREPARO MANUAL. AF_12/2021 | C56: M2 | D56: 59.37
A57: 103364 | B57: ALVENARIA DE VEDAÇÃO DE BLOCOS CERÂMICOS FURADOS NA HORIZONTAL DE 9X19X39 CM (ESPESSURA 9 CM) E ARGAMASSA DE ASSENTAMENTO COM PREPARO EM BETONEIRA. AF_12/2021 | C57: M2 | D57: 48.76
A58: 103365 | B58: ALVENARIA DE VEDAÇÃO DE BLOCOS CERÂMICOS FURADOS NA HORIZONTAL DE 9X19X39 CM (ESPESSURA 9 CM) E ARGAMASSA DE ASSENTAMENTO COM PREPARO MANUAL. AF_12/2021 | C58: M2 | D58: 49.37
A59: 103350 | B59: ALVENARIA DE VEDAÇÃO DE BLOCOS CERÂMICOS FURADOS NA HORIZONTAL DE 9X9X19 CM (ESPESSURA 9 CM) E ARGAMASSA DE ASSENTAMENTO COM PREPARO EM BETONEIRA. AF_12/2021 | C59: M2 | D59: 166.88
A60: 103351 | B60: ALVENARIA DE VEDAÇÃO DE BLOCOS CERÂMICOS FURADOS NA HORIZONTAL DE 9X9X19 CM (ESPESSURA 9 CM) E ARGAMASSA DE ASSENTAMENTO COM PREPARO MANUAL. AF_12/2021 | C60: M2 | D60: 168.5
A61: 103344 | B61: ALVENARIA DE VEDAÇÃO DE BLOCOS CERÂMICOS FURADOS NA VERTICAL DE 11,5X19X29 CM (ESPESSURA 11,5 CM) E ARGAMASSA DE ASSENTAMENTO COM PREPARO EM BETONEIRA. AF_12/2021 | C61: M2 | D61: 78.89
A62: 103345 | B62: ALVENARIA DE VEDAÇÃO DE BLOCOS CERÂMICOS FURADOS NA VERTICAL DE 11,5X19X29 CM (ESPESSURA 11,5 CM) E ARGAMASSA DE ASSENTAMENTO COM PREPARO MANUAL. AF_12/2021 | C62: M2 | D62: 80.36
A63: 103348 | B63: ALVENARIA DE VEDAÇÃO DE BLOCOS CERÂMICOS FURADOS NA VERTICAL DE 11,5X19X39 CM (ESPESSURA 11,5 CM) E ARGAMASSA DE ASSENTAMENTO COM PREPARO EM BETONEIRA. AF_12/2021 | C63: M2 | D63: 66.62
A64: 103349 | B64: ALVENARIA DE VEDAÇÃO DE BLOCOS CERÂMICOS FURADOS NA VERTICAL DE 11,5X19X39 CM (ESPESSURA 11,5 CM) E ARGAMASSA DE ASSENTAMENTO COM PREPARO MANUAL. AF_12/2021 | C64: M2 | D64: 67.96
A65: 103346 | B65: ALVENARIA DE VEDAÇÃO DE BLOCOS CERÂMICOS FURADOS NA VERTICAL DE 14X19X29 CM (ESPESSURA 14 CM) E ARGAMASSA DE ASSENTAMENTO COM PREPARO EM BETONEIRA. AF_12/2021 | C65: M2 | D65: 87.63
A66: 103347 | B66: ALVENARIA DE VEDAÇÃO DE BLOCOS CERÂMICOS FURADOS NA VERTICAL DE 14X19X29 CM (ESPESSURA 14 CM) E ARGAMASSA DE ASSENTAMENTO COM PREPARO MANUAL. AF_12/2021 | C66: M2 | D66: 89.19
A67: 103324 | B67: ALVENARIA DE VEDAÇÃO DE BLOCOS CERÂMICOS FURADOS NA VERTICAL DE 14X19X39 CM (ESPESSURA 14 CM) E ARGAMASSA DE ASSENTAMENTO COM PREPARO EM BETONEIRA. AF_12/2021 | C67: M2 | D67: 75.58
A68: 103325 | B68: ALVENARIA DE VEDAÇÃO DE BLOCOS CERÂMICOS FURADOS NA VERTICAL DE 14X19X39 CM (ESPESSURA 14 CM) E ARGAMASSA DE ASSENTAMENTO COM PREPARO MANUAL. AF_12/2021 | C68: M2 | D68: 77.01
A69: 103326 | B69: ALVENARIA DE VEDAÇÃO DE BLOCOS CERÂMICOS FURADOS NA VERTICAL DE 19X19X39 CM (ESPESSURA 19 CM) E ARGAMASSA DE ASSENTAMENTO COM PREPARO EM BETONEIRA. AF_12/2021 | C69: M2 | D69: 88.94
A70: 103327 | B70: ALVENARIA DE VEDAÇÃO DE BLOCOS CERÂMICOS FURADOS NA VERTICAL DE 19X19X39 CM (ESPESSURA 19 CM) E ARGAMASSA DE ASSENTAMENTO COM PREPARO MANUAL. AF_12/2021 | C70: M2 | D70: 90.6
A71: 103322 | B71: ALVENARIA DE VEDAÇÃO DE BLOCOS CERÂMICOS FURADOS NA VERTICAL DE 9X19X39 CM (ESPESSURA 9 CM) E ARGAMASSA DE ASSENTAMENTO COM PREPARO EM BETONEIRA. AF_12/2021 | C71: M2 | D71: 56.6
A72: 103323 | B72: ALVENARIA DE VEDAÇÃO DE BLOCOS CERÂMICOS FURADOS NA VERTICAL DE 9X19X39 CM (ESPESSURA 9 CM) E ARGAMASSA DE ASSENTAMENTO COM PREPARO MANUAL. AF_12/2021 | C72: M2 | D72: 57.85
A73: 103338 | B73: ALVENARIA DE VEDAÇÃO DE BLOCOS VAZADOS DE CONCRETO APARENTE DE 14X19X39 CM (ESPESSURA 14 CM) E ARGAMASSA DE ASSENTAMENTO COM PREPARO EM BETONEIRA. AF_12/2021 | C73: M2 | D73: 119.36
A74: 103339 | B74: ALVENARIA DE VEDAÇÃO DE BLOCOS VAZADOS DE CONCRETO APARENTE DE 14X19X39 CM (ESPESSURA 14 CM) E ARGAMASSA DE ASSENTAMENTO COM PREPARO MANUAL. AF_12/2021 | C74: M2 | D74: 120.59
A75: 103340 | B75: ALVENARIA DE VEDAÇÃO DE BLOCOS VAZADOS DE CONCRETO APARENTE DE 19X19X39 CM (ESPESSURA 19 CM) E ARGAMASSA DE ASSENTAMENTO COM PREPARO EM BETONEIRA. AF_12/2021 | C75: M2 | D75: 145.01
A76: 103341 | B76: ALVENARIA DE VEDAÇÃO DE BLOCOS VAZADOS DE CONCRETO APARENTE DE 19X19X39 CM (ESPESSURA 19 CM) E ARGAMASSA DE ASSENTAMENTO COM PREPARO MANUAL. AF_12/2021 | C76: M2 | D76: 146.56
A77: 103336 | B77: ALVENARIA DE VEDAÇÃO DE BLOCOS VAZADOS DE CONCRETO APARENTE DE 9X19X39 CM (ESPESSURA 9 CM) E ARGAMASSA DE ASSENTAMENTO COM PREPARO EM BETONEIRA. AF_12/2021 | C77: M2 | D77: 91.05
A78: 103337 | B78: ALVENARIA DE VEDAÇÃO DE BLOCOS VAZADOS DE CONCRETO APARENTE DE 9X19X39 CM (ESPESSURA 9 CM) E ARGAMASSA DE ASSENTAMENTO COM PREPARO MANUAL. AF_12/2021 | C78: M2 | D78: 92.1
A79: 103342 | B79: ALVENARIA DE VEDAÇÃO DE BLOCOS VAZADOS DE CONCRETO DE 14X19X29 CM (ESPESSURA 14 CM) E ARGAMASSA DE ASSENTAMENTO COM PREPARO EM BETONEIRA. AF_12/2021 | C79: M2 | D79: 123.93
A80: 103343 | B80: ALVENARIA DE VEDAÇÃO DE BLOCOS VAZADOS DE CONCRETO DE 14X19X29 CM (ESPESSURA 14 CM) E ARGAMASSA DE ASSENTAMENTO COM PREPARO MANUAL. AF_12/2021 | C80: M2 | D80: 125.29
A81: 103318 | B81: ALVENARIA DE VEDAÇÃO DE BLOCOS VAZADOS DE CONCRETO DE 14X19X39 CM (ESPESSURA 14 CM) E ARGAMASSA DE ASSENTAMENTO COM PREPARO EM BETONEIRA. AF_12/2021 | C81: M2 | D81: 105.73
A82: 103319 | B82: ALVENARIA DE VEDAÇÃO DE BLOCOS VAZADOS DE CONCRETO DE 14X19X39 CM (ESPESSURA 14 CM) E ARGAMASSA DE ASSENTAMENTO COM PREPARO MANUAL. AF_12/2021 | C82: M2 | D82: 106.96
A83: 103320 | B83: ALVENARIA DE VEDAÇÃO DE BLOCOS VAZADOS DE CONCRETO DE 19X19X39 CM (ESPESSURA 19 CM) E ARGAMASSA DE ASSENTAMENTO COM PREPARO EM BETONEIRA. AF_12/2021 | C83: M2 | D83: 127.43
A84: 103321 | B84: ALVENARIA DE VEDAÇÃO DE BLOCOS VAZADOS DE CONCRETO DE 19X19X39 CM (ESPESSURA 19 CM) E ARGAMASSA DE ASSENTAMENTO COM PREPARO MANUAL. AF_12/2021 | C84: M2 | D84: 128.98
A85: 103316 | B85: ALVENARIA DE VEDAÇÃO DE BLOCOS VAZADOS DE CONCRETO DE 9X19X39 CM (ESPESSURA 9 CM) E ARGAMASSA DE ASSENTAMENTO COM PREPARO EM BETONEIRA. AF_12/2021 | C85: M2 | D85: 81.79
A86: 103317 | B86: ALVENARIA DE VEDAÇÃO DE BLOCOS VAZADOS DE CONCRETO DE 9X19X39 CM (ESPESSURA 9 CM) E ARGAMASSA DE ASSENTAMENTO COM PREPARO MANUAL. AF_12/2021 | C86: M2 | D86: 82.84
A87: 101166 | B87: ALVENARIA DE EMBASAMENTO COM BLOCO ESTRUTURAL DE CERÂMICA, DE 14X19X29CM E ARGAMASSA DE ASSENTAMENTO COM PREPARO EM BETONEIRA. AF_05/2020 | C87: M3 | D87: 632.66
A88: 101165 | B88: ALVENARIA DE EMBASAMENTO COM BLOCO ESTRUTURAL DE CONCRETO, DE 14X19X29CM E ARGAMASSA DE ASSENTAMENTO COM PREPARO EM BETONEIRA. AF_05/2020 | C88: M3 | D88: 1047.37
A89: 101163 | B89: ALVENARIA DE VEDAÇÃO COM BLOCO DE VIDRO VAZADO, TIPO VENEZIANA, DE 6X20X20CM E ARGAMASSA DE ASSENTAMENTO COM PREPARO EM BETONEIRA. AF_05/2020 | C89: M2 | D89: 665.25
A90: 101164 | B90: ALVENARIA DE VEDAÇÃO COM BLOCO DE VIDRO, TIPO CANELADO, DE 8X19X19CM E ARGAMASSA DE ASSENTAMENTO COM PREPARO EM BETONEIRA. AF_05/2020 | C90: M2 | D90: 674.79
A91: 101162 | B91: ALVENARIA DE VEDAÇÃO COM ELEMENTO VAZADO DE CERÂMICA (COBOGÓ) DE 7X20X20CM E ARGAMASSA DE ASSENTAMENTO COM PREPARO EM BETONEIRA. AF_05/2020 | C91: M2 | D91: 149.28
A92: 101161 | B92: ALVENARIA DE VEDAÇÃO COM ELEMENTO VAZADO DE CONCRETO (COBOGÓ) DE 7X50X50CM E ARGAMASSA DE ASSENTAMENTO COM PREPARO EM BETONEIRA. AF_05/2020 | C92: M2 | D92: 248.63
A93: 101160 | B93: ALVENARIA DE VEDAÇÃO DE BLOCO DE SOLO-CIMENTO (TIJOLO ECOLÓGICO) DE 7X15X30CM (ESPESSURA 15CM). AF_05/2020 | C93: M2 | D93: 0
A94: 101159 | B94: ALVENARIA DE VEDAÇÃO DE BLOCOS CERÂMICOS MACIÇOS DE 5X10X20CM (ESPESSURA 10CM) E ARGAMASSA DE ASSENTAMENTO COM PREPARO EM BETONEIRA. AF_05/2020 | C94: M2 | D94: 128.78
A95: 101154 | B95: ALVENARIA DE VEDAÇÃO DE BLOCOS DE CONCRETO CELULAR DE 10X30X60CM (ESPESSURA 10CM) E ARGAMASSA DE ASSENTAMENTO COM PREPARO EM BETONEIRA. AF_05/2020 | C95: M2 | D95: 135.27
A96: 101155 | B96: ALVENARIA DE VEDAÇÃO DE BLOCOS DE CONCRETO CELULAR DE 15X30X60CM (ESPESSURA 15CM) E ARGAMASSA DE ASSENTAMENTO COM PREPARO EM BETONEIRA. AF_05/2020 | C96: M2 | D96: 190.98
A97: 101156 | B97: ALVENARIA DE VEDAÇÃO DE BLOCOS DE CONCRETO CELULAR DE 20X30X60CM (ESPESSURA 20CM) E ARGAMASSA DE ASSENTAMENTO COM PREPARO EM BETONEIRA. AF_05/2020 | C97: M2 | D97: 281.39
A98: 101158 | B98: ALVENARIA DE VEDAÇÃO DE BLOCOS DE GESSO DE 10X50X66CM (ESPESSURA 10CM). AF_05/2020 | C98: M2 | D98: 93.11
A99: 101157 | B99: ALVENARIA DE VEDAÇÃO DE BLOCOS DE GESSO DE 7X50X66CM (ESPESSURA 7CM). AF_05/2020 | C99: M2 | D99: 70.85
A100: 87382 | B100: ARGAMASSA INDUSTRIALIZADA MULTIUSO PARA REVESTIMENTOS E ASSENTAMENTO DA ALVENARIA, PREPARO COM MISTURADOR DE EIXO HORIZONTAL DE 160 KG. AF_08/2019 | C100: M3 | D100: 1816.69
A101: 87383 | B101: ARGAMASSA INDUSTRIALIZADA MULTIUSO PARA REVESTIMENTOS E ASSENTAMENTO DA ALVENARIA, PREPARO COM MISTURADOR DE EIXO HORIZONTAL DE 300 KG. AF_08/2019 | C101: M3 | D101: 1808.41
A102: 87384 | B102: ARGAMASSA INDUSTRIALIZADA MULTIUSO PARA REVESTIMENTOS E ASSENTAMENTO DA ALVENARIA, PREPARO COM MISTURADOR DE EIXO HORIZONTAL DE 600 KG. AF_08/2019 | C102: M3 | D102: 1794.86
A103: 87398 | B103: ARGAMASSA INDUSTRIALIZADA MULTIUSO PARA REVESTIMENTOS E ASSENTAMENTO DA ALVENARIA, PREPARO MANUAL. AF_08/2019 | C103: M3 | D103: 2020.94
A104: 87395 | B104: ARGAMASSA INDUSTRIALIZADA PARA CHAPISCO COLANTE, PREPARO COM MISTURADOR DE EIXO HORIZONTAL DE 160 KG. AF_08/2019 | C104: M3 | D104: 3544.21
A105: 87396 | B105: ARGAMASSA INDUSTRIALIZADA PARA CHAPISCO COLANTE, PREPARO COM MISTURADOR DE EIXO HORIZONTAL DE 300 KG. AF_08/2019 | C105: M3 | D105: 3560.7
A106: 87397 | B106: ARGAMASSA INDUSTRIALIZADA PARA CHAPISCO COLANTE, PREPARO COM MISTURADOR DE EIXO HORIZONTAL DE 600 KG. AF_08/2019 | C106: M3 | D106: 3576.29
A107: 87402 | B107: ARGAMASSA INDUSTRIALIZADA PARA CHAPISCO COLANTE, PREPARO MANUAL. AF_08/2019 | C107: M3 | D107: 3804.97
A108: 87391 | B108: ARGAMASSA INDUSTRIALIZADA PARA CHAPISCO ROLADO, PREPARO COM MISTURADOR DE EIXO HORIZONTAL DE 160 KG. AF_08/2019 | C108: M3 | D108: 5616.48
A109: 87393 | B109: ARGAMASSA INDUSTRIALIZADA PARA CHAPISCO ROLADO, PREPARO COM MISTURADOR DE EIXO HORIZONTAL DE 300 KG. AF_08/2019 | C109: M3 | D109: 5660.81
A110: 87394 | B110: ARGAMASSA INDUSTRIALIZADA PARA CHAPISCO ROLADO, PREPARO COM MISTURADOR DE EIXO HORIZONTAL DE 600 KG. AF_08/2019 | C110: M3 | D110: 5702.98
A111: 87401 | B111: ARGAMASSA INDUSTRIALIZADA PARA CHAPISCO ROLADO, PREPARO MANUAL. AF_08/2019 | C111: M3 | D111: 5919.67
A112: 87407 | B112: ARGAMASSA INDUSTRIALIZADA PARA REVESTIMENTOS, MISTURA E PROJEÇÃO DE 1,5 M³/H DE ARGAMASSA. AF_08/2019 | C112: M3 | D112: 1852.64
A113: 87408 | B113: ARGAMASSA INDUSTRIALIZADA PARA REVESTIMENTOS, MISTURA E PROJEÇÃO DE 2 M³/H DE ARGAMASSA. AF_08/2019 | C113: M3 | D113: 1835.17
A114: 87404 | B114: ARGAMASSA PARA REVESTIMENTO DECORATIVO MONOCAMADA (MONOCAPA), MISTURA E PROJEÇÃO DE 1,5 M3/H DE ARGAMASSA. AF_08/2019 | C114: M3 | D114: 5248.32
A115: 87405 | B115: ARGAMASSA PARA REVESTIMENTO DECORATIVO MONOCAMADA (MONOCAPA), MISTURA E PROJEÇÃO DE 2 M3/H DE ARGAMASSA. AF_08/2019 | C115: M3 | D115: 5252.85
A116: 87388 | B116: ARGAMASSA PARA REVESTIMENTO DECORATIVO MONOCAMADA (MONOCAPA), PREPARO COM MISTURADOR DE EIXO HORIZONTAL DE 160 KG. AF_08/2019 | C116: M3 | D116: 5042.02
A117: 87389 | B117: ARGAMASSA PARA REVESTIMENTO DECORATIVO MONOCAMADA (MONOCAPA), PREPARO COM MISTURADOR DE EIXO HORIZONTAL DE 300 KG. AF_08/2019 | C117: M3 | D117: 5056.4
A118: 87390 | B118: ARGAMASSA PARA REVESTIMENTO DECORATIVO MONOCAMADA (MONOCAPA), PREPARO COM MISTURADOR DE EIXO HORIZONTAL DE 600 KG. AF_08/2019 | C118: M3 | D118: 5076.29
A119: 87385 | B119: ARGAMASSA PRONTA PARA CONTRAPISO, PREPARO COM MISTURADOR DE EIXO HORIZONTAL DE 160 KG. AF_08/2019 | C119: M3 | D119: 2130.99
A120: 87386 | B120: ARGAMASSA PRONTA PARA CONTRAPISO, PREPARO COM MISTURADOR DE EIXO HORIZONTAL DE 300 KG. AF_08/2019 | C120: M3 | D120: 2116.32
A121: 87387 | B121: ARGAMASSA PRONTA PARA CONTRAPISO, PREPARO COM MISTURADOR DE EIXO HORIZONTAL DE 600 KG. AF_08/2019 | C121: M3 | D121: 2104.44
A122: 87399 | B122: ARGAMASSA PRONTA PARA CONTRAPISO, PREPARO MANUAL. AF_08/2019 | C122: M3 | D122: 2336
A123: 88627 | B123: ARGAMASSA TRAÇO 1:0,5:4,5 (EM VOLUME DE CIMENTO, CAL E AREIA MÉDIA ÚMIDA) PARA ASSENTAMENTO DE ALVENARIA, PREPARO MANUAL. AF_08/2019 | C123: M3 | D123: 604.83
A124: 100463 | B124: ARGAMASSA TRAÇO 1:0,5:4,5 (EM VOLUME DE CIMENTO, CAL E AREIA MÉDIA ÚMIDA), PREPARO MECÂNICO COM BETONEIRA 250 L. AF_08/2019 | C124: M3 | D124: 0
A125: 88626 | B125: ARGAMASSA TRAÇO 1:0,5:4,5 (EM VOLUME DE CIMENTO, CAL E AREIA MÉDIA ÚMIDA), PREPARO MECÂNICO COM BETONEIRA 400 L. AF_08/2019 | C125: M3 | D125: 512.77
A126: 100488 | B126: ARGAMASSA TRAÇO 1:0,5:4,5 (EM VOLUME DE CIMENTO, CAL E AREIA MÉDIA ÚMIDA), PREPARO MECÂNICO COM BETONEIRA 600 L. AF_08/2019 | C126: M3 | D126: 498.79
A127: 100464 | B127: ARGAMASSA TRAÇO 1:0,5:4,5 (EM VOLUME DE CIMENTO, CAL E AREIA MÉDIA ÚMIDA), PREPARO MECÂNICO COM MISTURADOR DE EIXO HORIZONTAL DE 160 KG. AF_08/2019 | C127: M3 | D127: 545.63
A128: 100465 | B128: ARGAMASSA TRAÇO 1:0,5:4,5 (EM VOLUME DE CIMENTO, CAL E AREIA MÉDIA ÚMIDA), PREPARO MECÂNICO COM MISTURADOR DE EIXO HORIZONTAL DE 300 KG. AF_08/2019 | C128: M3 | D128: 499.54
A129: 100466 | B129: ARGAMASSA TRAÇO 1:0,5:4,5 (EM VOLUME DE CIMENTO, CAL E AREIA MÉDIA ÚMIDA), PREPARO MECÂNICO COM MISTURADOR DE EIXO HORIZONTAL DE 600 KG. AF_08/2019 | C129: M3 | D129: 474.62
A130: 87368 | B130: ARGAMASSA TRAÇO 1:1,5:7,5 (EM VOLUME DE CIMENTO, CAL E AREIA MÉDIA ÚMIDA) PARA EMBOÇO/MASSA ÚNICA/ASSENTAMENTO DE ALVENARIA DE VEDAÇÃO, PREPARO MANUAL. AF_08/2019 | C130: M3 | D130: 628.98
A131: 100450 | B131: ARGAMASSA TRAÇO 1:1,5:7,5 (EM VOLUME DE CIMENTO, CAL E AREIA MÉDIA ÚMIDA) PARA EMBOÇO/MASSA ÚNICA/ASSENTAMENTO DE ALVENARIA DE VEDAÇÃO, PREPARO MECÂNICO COM BETONEIRA 250 L. AF_08/2019 | C131: M3 | D131: 0
A132: 87289 | B132: ARGAMASSA TRAÇO 1:1,5:7,5 (EM VOLUME DE CIMENTO, CAL E AREIA MÉDIA ÚMIDA) PARA EMBOÇO/MASSA ÚNICA/ASSENTAMENTO DE ALVENARIA DE VEDAÇÃO, PREPARO MECÂNICO COM BETONEIRA 400 L. AF_08/2019 | C132: M3 | D132: 513.21
A133: 87290 | B133: ARGAMASSA TRAÇO 1:1,5:7,5 (EM VOLUME DE CIMENTO, CAL E AREIA MÉDIA ÚMIDA) PARA EMBOÇO/MASSA ÚNICA/ASSENTAMENTO DE ALVENARIA DE VEDAÇÃO, PREPARO MECÂNICO COM BETONEIRA 600 L. AF_08/2019 | C133: M3 | D133: 497.96
A134: 87333 | B134: ARGAMASSA TRAÇO 1:1,5:7,5 (EM VOLUME DE CIMENTO, CAL E AREIA MÉDIA ÚMIDA) PARA EMBOÇO/MASSA ÚNICA/ASSENTAMENTO DE ALVENARIA DE VEDAÇÃO, PREPARO MECÂNICO COM MISTURADOR DE EIXO HORIZONTAL DE 300 KG. AF_08/2019 | C134: M3 | D134: 521.47
A135: 87334 | B135: ARGAMASSA TRAÇO 1:1,5:7,5 (EM VOLUME DE CIMENTO, CAL E AREIA MÉDIA ÚMIDA) PARA EMBOÇO/MASSA ÚNICA/ASSENTAMENTO DE ALVENARIA DE VEDAÇÃO, PREPARO MECÂNICO COM MISTURADOR DE EIXO HORIZONTAL DE 600 KG. AF_08/2019 | C135: M3 | D135: 474.75
A136: 105515 | B136: ARGAMASSA TRAÇO 1:1,93 (EM VOLUME DE CIMENTO E AREIA MÉDIA ÚMIDA), FCK 20MPA, PREPARO MECÂNICO COM MISTURADOR DUPLO HORIZONTAL DE ALTA TURBULÊNCIA. AF_03/2020 | C136: M3 | D136: 778.25
A137: 87367 | B137: ARGAMASSA TRAÇO 1:1:6 (EM VOLUME DE CIMENTO, CAL E AREIA MÉDIA ÚMIDA) PARA EMBOÇO/MASSA ÚNICA/ASSENTAMENTO DE ALVENARIA DE VEDAÇÃO, PREPARO MANUAL. AF_08/2019 | C137: M3 | D137: 644.68
A138: 100449 | B138: ARGAMASSA TRAÇO 1:1:6 (EM VOLUME DE CIMENTO, CAL E AREIA MÉDIA ÚMIDA) PARA EMBOÇO/MASSA ÚNICA/ASSENTAMENTO DE ALVENARIA DE VEDAÇÃO, PREPARO MECÂNICO COM BETONEIRA 250 L. AF_08/2019 | C138: M3 | D138: 0
A139: 87286 | B139: ARGAMASSA TRAÇO 1:1:6 (EM VOLUME DE CIMENTO, CAL E AREIA MÉDIA ÚMIDA) PARA EMBOÇO/MASSA ÚNICA/ASSENTAMENTO DE ALVENARIA DE VEDAÇÃO, PREPARO MECÂNICO COM BETONEIRA 400 L. AF_08/2019 | C139: M3 | D139: 535.22
A140: 87287 | B140: ARGAMASSA TRAÇO 1:1:6 (EM VOLUME DE CIMENTO, CAL E AREIA MÉDIA ÚMIDA) PARA EMBOÇO/MASSA ÚNICA/ASSENTAMENTO DE ALVENARIA DE VEDAÇÃO, PREPARO MECÂNICO COM BETONEIRA 600 L. AF_08/2019 | C140: M3 | D140: 508.57
A141: 87331 | B141: ARGAMASSA TRAÇO 1:1:6 (EM VOLUME DE CIMENTO, CAL E AREIA MÉDIA ÚMIDA) PARA EMBOÇO/MASSA ÚNICA/ASSENTAMENTO DE ALVENARIA DE VEDAÇÃO, PREPARO MECÂNICO COM MISTURADOR DE EIXO HORIZONTAL DE 300 KG. AF_08/2019 | C141: M3 | D141: 562.89
A142: 87332 | B142: ARGAMASSA TRAÇO 1:1:6 (EM VOLUME DE CIMENTO, CAL E AREIA MÉDIA ÚMIDA) PARA EMBOÇO/MASSA ÚNICA/ASSENTAMENTO DE ALVENARIA DE VEDAÇÃO, PREPARO MECÂNICO COM MISTURADOR DE EIXO HORIZONTAL DE 600 KG. AF_08/2019 | C142: M3 | D142: 487.26
A143: 87369 | B143: ARGAMASSA TRAÇO 1:2:8 (EM VOLUME DE CIMENTO, CAL E AREIA MÉDIA ÚMIDA) PARA EMBOÇO/MASSA ÚNICA/ASSENTAMENTO DE ALVENARIA DE VEDAÇÃO, PREPARO MANUAL. AF_08/2019 | C143: M3 | D143: 639.12
A144: 100451 | B144: ARGAMASSA TRAÇO 1:2:8 (EM VOLUME DE CIMENTO, CAL E AREIA MÉDIA ÚMIDA) PARA EMBOÇO/MASSA ÚNICA/ASSENTAMENTO DE ALVENARIA DE VEDAÇÃO, PREPARO MECÂNICO COM BETONEIRA 250 L. AF_08/2019 | C144: M3 | D144: 0
A145: 87292 | B145: ARGAMASSA TRAÇO 1:2:8 (EM VOLUME DE CIMENTO, CAL E AREIA MÉDIA ÚMIDA) PARA EMBOÇO/MASSA ÚNICA/ASSENTAMENTO DE ALVENARIA DE VEDAÇÃO, PREPARO MECÂNICO COM BETONEIRA 400 L. AF_08/2019 | C145: M3 | D145: 518.61
A146: 87335 | B146: ARGAMASSA TRAÇO 1:2:8 (EM VOLUME DE CIMENTO, CAL E AREIA MÉDIA ÚMIDA) PARA EMBOÇO/MASSA ÚNICA/ASSENTAMENTO DE ALVENARIA DE VEDAÇÃO, PREPARO MECÂNICO COM MISTURADOR DE EIXO HORIZONTAL DE 300 KG. AF_08/2019 | C146: M3 | D146: 512.29
A147: 87336 | B147: ARGAMASSA TRAÇO 1:2:8 (EM VOLUME DE CIMENTO, CAL E AREIA MÉDIA ÚMIDA) PARA EMBOÇO/MASSA ÚNICA/ASSENTAMENTO DE ALVENARIA DE VEDAÇÃO, PREPARO MECÂNICO COM MISTURADOR DE EIXO HORIZONTAL DE 600 KG. AF_08/2019 | C147: M3 | D147: 485.81
A148: 87370 | B148: ARGAMASSA TRAÇO 1:2:9 (EM VOLUME DE CIMENTO, CAL E AREIA MÉDIA ÚMIDA) PARA EMBOÇO/MASSA ÚNICA/ASSENTAMENTO DE ALVENARIA DE VEDAÇÃO, PREPARO MANUAL. AF_08/2019 | C148: M3 | D148: 619.02
A149: 100452 | B149: ARGAMASSA TRAÇO 1:2:9 (EM VOLUME DE CIMENTO, CAL E AREIA MÉDIA ÚMIDA) PARA EMBOÇO/MASSA ÚNICA/ASSENTAMENTO DE ALVENARIA DE VEDAÇÃO, PREPARO MECÂNICO COM BETONEIRA 250 L. AF_08/2019 | C149: M3 | D149: 0
A150: 88715 | B150: ARGAMASSA TRAÇO 1:2:9 (EM VOLUME DE CIMENTO, CAL E AREIA MÉDIA ÚMIDA) PARA EMBOÇO/MASSA ÚNICA/ASSENTAMENTO DE ALVENARIA DE VEDAÇÃO, PREPARO MECÂNICO COM BETONEIRA 400 L. AF_08/2019 | C150: M3 | D150: 490.66
A151: 87294 | B151: ARGAMASSA TRAÇO 1:2:9 (EM VOLUME DE CIMENTO, CAL E AREIA MÉDIA ÚMIDA) PARA EMBOÇO/MASSA ÚNICA/ASSENTAMENTO DE ALVENARIA DE VEDAÇÃO, PREPARO MECÂNICO COM BETONEIRA 600 L. AF_08/2019 | C151: M3 | D151: 494.9
A152: 87337 | B152: ARGAMASSA TRAÇO 1:2:9 (EM VOLUME DE CIMENTO, CAL E AREIA MÉDIA ÚMIDA) PARA EMBOÇO/MASSA ÚNICA/ASSENTAMENTO DE ALVENARIA DE VEDAÇÃO, PREPARO MECÂNICO COM MISTURADOR DE EIXO HORIZONTAL DE 300 KG. AF_08/2019 | C152: M3 | D152: 503.16
A153: 100487 | B153: ARGAMASSA TRAÇO 1:2:9 (EM VOLUME DE CIMENTO, CAL E AREIA MÉDIA ÚMIDA) PARA EMBOÇO/MASSA ÚNICA/ASSENTAMENTO DE ALVENARIA DE VEDAÇÃO, PREPARO MECÂNICO COM MISTURADOR DE EIXO HORIZONTAL DE 600 KG. AF_08/2019 | C153: M3 | D153: 461.05
A154: 87380 | B154: ARGAMASSA TRAÇO 1:3 (EM VOLUME DE CIMENTO E AREIA GROSSA ÚMIDA) COM ADIÇÃO DE EMULSÃO POLIMÉRICA PARA CHAPISCO ROLADO, PREPARO MANUAL. AF_08/2019 | C154: M3 | D154: 3757.85
A155: 100461 | B155: ARGAMASSA TRAÇO 1:3 (EM VOLUME DE CIMENTO E AREIA GROSSA ÚMIDA) COM ADIÇÃO DE EMULSÃO POLIMÉRICA PARA CHAPISCO ROLADO, PREPARO MECÂNICO COM BETONEIRA 250 L. AF_08/2019 | C155: M3 | D155: 0
A156: 87322 | B156: ARGAMASSA TRAÇO 1:3 (EM VOLUME DE CIMENTO E AREIA GROSSA ÚMIDA) COM ADIÇÃO DE EMULSÃO POLIMÉRICA PARA CHAPISCO ROLADO, PREPARO MECÂNICO COM BETONEIRA 400 L. AF_08/2019 | C156: M3 | D156: 3674.07
A157: 87323 | B157: ARGAMASSA TRAÇO 1:3 (EM VOLUME DE CIMENTO E AREIA GROSSA ÚMIDA) COM ADIÇÃO DE EMULSÃO POLIMÉRICA PARA CHAPISCO ROLADO, PREPARO MECÂNICO COM BETONEIRA 600 L. AF_08/2019 | C157: M3 | D157: 3666.48
A158: 87360 | B158: ARGAMASSA TRAÇO 1:3 (EM VOLUME DE CIMENTO E AREIA GROSSA ÚMIDA) COM ADIÇÃO DE EMULSÃO POLIMÉRICA PARA CHAPISCO ROLADO, PREPARO MECÂNICO COM MISTURADOR DE EIXO HORIZONTAL DE 160 KG. AF_08/2019 | C158: M3 | D158: 3640.88
A159: 87361 | B159: ARGAMASSA TRAÇO 1:3 (EM VOLUME DE CIMENTO E AREIA GROSSA ÚMIDA) COM ADIÇÃO DE EMULSÃO POLIMÉRICA PARA CHAPISCO ROLADO, PREPARO MECÂNICO COM MISTURADOR DE EIXO HORIZONTAL DE 300 KG. AF_08/2019 | C159: M3 | D159: 3585.96
A160: 87362 | B160: ARGAMASSA TRAÇO 1:3 (EM VOLUME DE CIMENTO E AREIA GROSSA ÚMIDA) COM ADIÇÃO DE EMULSÃO POLIMÉRICA PARA CHAPISCO ROLADO, PREPARO MECÂNICO COM MISTURADOR DE EIXO HORIZONTAL DE 600 KG. AF_08/2019 | C160: M3 | D160: 3578.98
A161: 87377 | B161: ARGAMASSA TRAÇO 1:3 (EM VOLUME DE CIMENTO E AREIA GROSSA ÚMIDA) PARA CHAPISCO CONVENCIONAL, PREPARO MANUAL. AF_08/2019 | C161: M3 | D161: 629.55
A162: 100458 | B162: ARGAMASSA TRAÇO 1:3 (EM VOLUME DE CIMENTO E AREIA GROSSA ÚMIDA) PARA CHAPISCO CONVENCIONAL, PREPARO MECÂNICO COM BETONEIRA 250 L. AF_08/2019 | C162: M3 | D162: 0
A163: 87313 | B163: ARGAMASSA TRAÇO 1:3 (EM VOLUME DE CIMENTO E AREIA GROSSA ÚMIDA) PARA CHAPISCO CONVENCIONAL, PREPARO MECÂNICO COM BETONEIRA 400 L. AF_08/2019 | C163: M3 | D163: 502.83
A164: 87314 | B164: ARGAMASSA TRAÇO 1:3 (EM VOLUME DE CIMENTO E AREIA GROSSA ÚMIDA) PARA CHAPISCO CONVENCIONAL, PREPARO MECÂNICO COM BETONEIRA 600 L. AF_08/2019 | C164: M3 | D164: 489.48
A165: 87352 | B165: ARGAMASSA TRAÇO 1:3 (EM VOLUME DE CIMENTO E AREIA GROSSA ÚMIDA) PARA CHAPISCO CONVENCIONAL, PREPARO MECÂNICO COM MISTURADOR DE EIXO HORIZONTAL DE 160 KG. AF_08/2019 | C165: M3 | D165: 601.05
A166: 87353 | B166: ARGAMASSA TRAÇO 1:3 (EM VOLUME DE CIMENTO E AREIA GROSSA ÚMIDA) PARA CHAPISCO CONVENCIONAL, PREPARO MECÂNICO COM MISTURADOR DE EIXO HORIZONTAL DE 300 KG. AF_08/2019 | C166: M3 | D166: 510.18
A167: 87354 | B167: ARGAMASSA TRAÇO 1:3 (EM VOLUME DE CIMENTO E AREIA GROSSA ÚMIDA) PARA CHAPISCO CONVENCIONAL, PREPARO MECÂNICO COM MISTURADOR DE EIXO HORIZONTAL DE 600 KG. AF_08/2019 | C167: M3 | D167: 466.67
A168: 100480 | B168: ARGAMASSA TRAÇO 1:3 (EM VOLUME DE CIMENTO E AREIA MÉDIA ÚMIDA) COM ADIÇÃO DE IMPERMEABILIZANTE, PREPARO MANUAL. AF_08/2019 | C168: M3 | D168: 772.35
A169: 100476 | B169: ARGAMASSA TRAÇO 1:3 (EM VOLUME DE CIMENTO E AREIA MÉDIA ÚMIDA) COM ADIÇÃO DE IMPERMEABILIZANTE, PREPARO MECÂNICO COM BETONEIRA 250 L. AF_08/2019 | C169: M3 | D169: 0
A170: 100475 | B170: ARGAMASSA TRAÇO 1:3 (EM VOLUME DE CIMENTO E AREIA MÉDIA ÚMIDA) COM ADIÇÃO DE IMPERMEABILIZANTE, PREPARO MECÂNICO COM BETONEIRA 400 L. AF_08/2019 | C170: M3 | D170: 675.37
A171: 100491 | B171: ARGAMASSA TRAÇO 1:3 (EM VOLUME DE CIMENTO E AREIA MÉDIA ÚMIDA) COM ADIÇÃO DE IMPERMEABILIZANTE, PREPARO MECÂNICO COM BETONEIRA 600 L. AF_08/2019 | C171: M3 | D171: 670.93
A172: 100477 | B172: ARGAMASSA TRAÇO 1:3 (EM VOLUME DE CIMENTO E AREIA MÉDIA ÚMIDA) COM ADIÇÃO DE IMPERMEABILIZANTE, PREPARO MECÂNICO COM MISTURADOR DE EIXO HORIZONTAL DE 160 KG. AF_08/2019 | C172: M3 | D172: 752.96
A173: 100478 | B173: ARGAMASSA TRAÇO 1:3 (EM VOLUME DE CIMENTO E AREIA MÉDIA ÚMIDA) COM ADIÇÃO DE IMPERMEABILIZANTE, PREPARO MECÂNICO COM MISTURADOR DE EIXO HORIZONTAL DE 300 KG. AF_08/2019 | C173: M3 | D173: 662.45
A174: 100479 | B174: ARGAMASSA TRAÇO 1:3 (EM VOLUME DE CIMENTO E AREIA MÉDIA ÚMIDA) COM ADIÇÃO DE IMPERMEABILIZANTE, PREPARO MECÂNICO COM MISTURADOR DE EIXO HORIZONTAL DE 600 KG. AF_08/2019 | C174: M3 | D174: 640.71
A175: 87372 | B175: ARGAMASSA TRAÇO 1:3 (EM VOLUME DE CIMENTO E AREIA MÉDIA ÚMIDA) PARA CONTRAPISO, PREPARO MANUAL. AF_08/2019 | C175: M3 | D175: 769.31
A176: 100453 | B176: ARGAMASSA TRAÇO 1:3 (EM VOLUME DE CIMENTO E AREIA MÉDIA ÚMIDA) PARA CONTRAPISO, PREPARO MECÂNICO COM BETONEIRA 250 L. AF_08/2019 | C176: M3 | D176: 0
A177: 87298 | B177: ARGAMASSA TRAÇO 1:3 (EM VOLUME DE CIMENTO E AREIA MÉDIA ÚMIDA) PARA CONTRAPISO, PREPARO MECÂNICO COM BETONEIRA 400 L. AF_08/2019 | C177: M3 | D177: 636.34
A178: 87299 | B178: ARGAMASSA TRAÇO 1:3 (EM VOLUME DE CIMENTO E AREIA MÉDIA ÚMIDA) PARA CONTRAPISO, PREPARO MECÂNICO COM BETONEIRA 600 L. AF_08/2019 | C178: M3 | D178: 425.52
A179: 87339 | B179: ARGAMASSA TRAÇO 1:3 (EM VOLUME DE CIMENTO E AREIA MÉDIA ÚMIDA) PARA CONTRAPISO, PREPARO MECÂNICO COM MISTURADOR DE EIXO HORIZONTAL DE 160 KG. AF_08/2019 | C179: M3 | D179: 785.06
A180: 87340 | B180: ARGAMASSA TRAÇO 1:3 (EM VOLUME DE CIMENTO E AREIA MÉDIA ÚMIDA) PARA CONTRAPISO, PREPARO MECÂNICO COM MISTURADOR DE EIXO HORIZONTAL DE 300 KG. AF_08/2019 | C180: M3 | D180: 637.43
A181: 87341 | B181: ARGAMASSA TRAÇO 1:3 (EM VOLUME DE CIMENTO E AREIA MÉDIA ÚMIDA) PARA CONTRAPISO, PREPARO MECÂNICO COM MISTURADOR DE EIXO HORIZONTAL DE 600 KG. AF_08/2019 | C181: M3 | D181: 598.09
A182: 88629 | B182: ARGAMASSA TRAÇO 1:3 (EM VOLUME DE CIMENTO E AREIA MÉDIA ÚMIDA), PREPARO MANUAL. AF_08/2019 | C182: M3 | D182: 627.46
A183: 100467 | B183: ARGAMASSA TRAÇO 1:3 (EM VOLUME DE CIMENTO E AREIA MÉDIA ÚMIDA), PREPARO MECÂNICO COM BETONEIRA 250 L. AF_08/2019 | C183: M3 | D183: 0
A184: 88628 | B184: ARGAMASSA TRAÇO 1:3 (EM VOLUME DE CIMENTO E AREIA MÉDIA ÚMIDA), PREPARO MECÂNICO COM BETONEIRA 400 L. AF_08/2019 | C184: M3 | D184: 528.22
A185: 100489 | B185: ARGAMASSA TRAÇO 1:3 (EM VOLUME DE CIMENTO E AREIA MÉDIA ÚMIDA), PREPARO MECÂNICO COM BETONEIRA 600 L. AF_08/2019 | C185: M3 | D185: 522.87
A186: 100468 | B186: ARGAMASSA TRAÇO 1:3 (EM VOLUME DE CIMENTO E AREIA MÉDIA ÚMIDA), PREPARO MECÂNICO COM MISTURADOR DE EIXO HORIZONTAL DE 160 KG. AF_08/2019 | C186: M3 | D186: 658.72
A187: 100469 | B187: ARGAMASSA TRAÇO 1:3 (EM VOLUME DE CIMENTO E AREIA MÉDIA ÚMIDA), PREPARO MECÂNICO COM MISTURADOR DE EIXO HORIZONTAL DE 300 KG. AF_08/2019 | C187: M3 | D187: 518.69
A188: 100470 | B188: ARGAMASSA TRAÇO 1:3 (EM VOLUME DE CIMENTO E AREIA MÉDIA ÚMIDA), PREPARO MECÂNICO COM MISTURADOR DE EIXO HORIZONTAL DE 600 KG. AF_08/2019 | C188: M3 | D188: 473.15
A189: 87371 | B189: ARGAMASSA TRAÇO 1:3:12 (EM VOLUME DE CIMENTO, CAL E AREIA MÉDIA ÚMIDA) PARA EMBOÇO/MASSA ÚNICA/ASSENTAMENTO DE ALVENARIA DE VEDAÇÃO, PREPARO MANUAL. AF_08/2019 | C189: M3 | D189: 604.78
A190: 87295 | B190: ARGAMASSA TRAÇO 1:3:12 (EM VOLUME DE CIMENTO, CAL E AREIA MÉDIA ÚMIDA) PARA EMBOÇO/MASSA ÚNICA/ASSENTAMENTO DE ALVENARIA DE VEDAÇÃO, PREPARO MECÂNICO COM BETONEIRA 400 L. AF_08/2019 | C190: M3 | D190: 513.62
A191: 87296 | B191: ARGAMASSA TRAÇO 1:3:12 (EM VOLUME DE CIMENTO, CAL E AREIA MÉDIA ÚMIDA) PARA EMBOÇO/MASSA ÚNICA/ASSENTAMENTO DE ALVENARIA DE VEDAÇÃO, PREPARO MECÂNICO COM BETONEIRA 600 L. AF_08/2019 | C191: M3 | D191: 475.59
A192: 87338 | B192: ARGAMASSA TRAÇO 1:3:12 (EM VOLUME DE CIMENTO, CAL E AREIA MÉDIA ÚMIDA) PARA EMBOÇO/MASSA ÚNICA/ASSENTAMENTO DE ALVENARIA DE VEDAÇÃO, PREPARO MECÂNICO COM MISTURADOR DE EIXO HORIZONTAL DE 600 KG. AF_08/2019 | C192: M3 | D192: 477.41
A193: 88630 | B193: ARGAMASSA TRAÇO 1:4 (CIMENTO E AREIA MÉDIA), PREPARO MECÂNICO COM BETONEIRA 400 L. AF_08/2019 | C193: M3 | D193: 455.09
A194: 87381 | B194: ARGAMASSA TRAÇO 1:4 (EM VOLUME DE CIMENTO E AREIA GROSSA ÚMIDA) COM ADIÇÃO DE EMULSÃO POLIMÉRICA PARA CHAPISCO ROLADO, PREPARO MANUAL. AF_08/2019 | C194: M3 | D194: 3700.64
A195: 100462 | B195: ARGAMASSA TRAÇO 1:4 (EM VOLUME DE CIMENTO E AREIA GROSSA ÚMIDA) COM ADIÇÃO DE EMULSÃO POLIMÉRICA PARA CHAPISCO ROLADO, PREPARO MECÂNICO COM BETONEIRA 250 L. AF_08/2019 | C195: M3 | D195: 0
A196: 87325 | B196: ARGAMASSA TRAÇO 1:4 (EM VOLUME DE CIMENTO E AREIA GROSSA ÚMIDA) COM ADIÇÃO DE EMULSÃO POLIMÉRICA PARA CHAPISCO ROLADO, PREPARO MECÂNICO COM BETONEIRA 400 L. AF_08/2019 | C196: M3 | D196: 3597.6
A197: 87326 | B197: ARGAMASSA TRAÇO 1:4 (EM VOLUME DE CIMENTO E AREIA GROSSA ÚMIDA) COM ADIÇÃO DE EMULSÃO POLIMÉRICA PARA CHAPISCO ROLADO, PREPARO MECÂNICO COM BETONEIRA 600 L. AF_08/2019 | C197: M3 | D197: 3598.85
A198: 87363 | B198: ARGAMASSA TRAÇO 1:4 (EM VOLUME DE CIMENTO E AREIA GROSSA ÚMIDA) COM ADIÇÃO DE EMULSÃO POLIMÉRICA PARA CHAPISCO ROLADO, PREPARO MECÂNICO COM MISTURADOR DE EIXO HORIZONTAL DE 300 KG. AF_08/2019 | C198: M3 | D198: 3572.7
A199: 87364 | B199: ARGAMASSA TRAÇO 1:4 (EM VOLUME DE CIMENTO E AREIA GROSSA ÚMIDA) COM ADIÇÃO DE EMULSÃO POLIMÉRICA PARA CHAPISCO ROLADO, PREPARO MECÂNICO COM MISTURADOR DE EIXO HORIZONTAL DE 600 KG. AF_08/2019 | C199: M3 | D199: 3532.39
A200: 87378 | B200: ARGAMASSA TRAÇO 1:4 (EM VOLUME DE CIMENTO E AREIA GROSSA ÚMIDA) PARA CHAPISCO CONVENCIONAL, PREPARO MANUAL. AF_08/2019 | C200: M3 | D200: 572.67
... 9524 more rows

Sheet Sinapi-Ins (hidden)
A1: CODIGO | B1: DESCRICAO DO INSUMO | C1: UNIDADE DE MEDIDA | D1: PRECO MEDIANO R$ | F1: PRECOS DE INSUMOS - BANCO NACIONAL
A2: 45333 | B2: ABERTURA PARA ENCAIXE DE CUBA OU LAVATORIO EM BANCADA DE MARMORE/ GRANITO OU OUTRO TIPO DE PEDRA NATURAL | C2: UN | F2: MES DE COLETA: 04/2025
A3: 11270 | B3: ABRACADEIRA DE LATAO PARA FIXACAO DE CABO PARA-RAIO, DIMENSOES 32 X 24 X 24 MM | C3: UN | F3: LOCALIDADE: 0910 - NATAL
A4: 412 | B4: ABRACADEIRA DE NYLON PARA AMARRACAO DE CABOS, COMPRIMENTO DE *230* X *7,6* MM | C4: UN | D4: 1.08 | F4: ENCARGOS SOCIAIS (%) HORISTA 115,21 MENSALISTA 70,86
A5: 414 | B5: ABRACADEIRA DE NYLON PARA AMARRACAO DE CABOS, COMPRIMENTO DE 100 X 2,5 MM | C5: UN | D5: 0.06
A6: 410 | B6: ABRACADEIRA DE NYLON PARA AMARRACAO DE CABOS, COMPRIMENTO DE 150 X *3,6* MM | C6: UN | D6: 0.16
A7: 411 | B7: ABRACADEIRA DE NYLON PARA AMARRACAO DE CABOS, COMPRIMENTO DE 200 X *4,6* MM | C7: UN | D7: 0.21
A8: 408 | B8: ABRACADEIRA DE NYLON PARA AMARRACAO DE CABOS, COMPRIMENTO DE 390 X *4,6* MM | C8: UN | D8: 1.04
A9: 39131 | B9: ABRACADEIRA EM ACO PARA AMARRACAO DE ELETRODUTOS, TIPO D, COM 1 1/2" E CUNHA DE FIXACAO | C9: UN | D9: 4.86
A10: 394 | B10: ABRACADEIRA EM ACO PARA AMARRACAO DE ELETRODUTOS, TIPO D, COM 1 1/2" E PARAFUSO DE FIXACAO | C10: UN | D10: 4.92
A11: 39130 | B11: ABRACADEIRA EM ACO PARA AMARRACAO DE ELETRODUTOS, TIPO D, COM 1 1/4" E CUNHA DE FIXACAO | C11: UN | D11: 4.44
A12: 395 | B12: ABRACADEIRA EM ACO PARA AMARRACAO DE ELETRODUTOS, TIPO D, COM 1 1/4" E PARAFUSO DE FIXACAO | C12: UN | D12: 4.74
A13: 39129 | B13: ABRACADEIRA EM ACO PARA AMARRACAO DE ELETRODUTOS, TIPO D, COM 1" E CUNHA DE FIXACAO | C13: UN | D13: 2.73
A14: 393 | B14: ABRACADEIRA EM ACO PARA AMARRACAO DE ELETRODUTOS, TIPO D, COM 1" E PARAFUSO DE FIXACAO | C14: UN | D14: 2.86
A15: 39127 | B15: ABRACADEIRA EM ACO PARA AMARRACAO DE ELETRODUTOS, TIPO D, COM 1/2" E CUNHA DE FIXACAO | C15: UN | D15: 2.34
A16: 392 | B16: ABRACADEIRA EM ACO PARA AMARRACAO DE ELETRODUTOS, TIPO D, COM 1/2" E PARAFUSO DE FIXACAO | C16: UN | D16: 2.4
A17: 39133 | B17: ABRACADEIRA EM ACO PARA AMARRACAO DE ELETRODUTOS, TIPO D, COM 2 1/2" E CUNHA DE FIXACAO | C17: UN | D17: 6.38
A18: 397 | B18: ABRACADEIRA EM ACO PARA AMARRACAO DE ELETRODUTOS, TIPO D, COM 2 1/2" E PARAFUSO DE FIXACAO | C18: UN | D18: 7.05
A19: 39132 | B19: ABRACADEIRA EM ACO PARA AMARRACAO DE ELETRODUTOS, TIPO D, COM 2" E CUNHA DE FIXACAO | C19: UN | D19: 5.11
A20: 396 | B20: ABRACADEIRA EM ACO PARA AMARRACAO DE ELETRODUTOS, TIPO D, COM 2" E PARAFUSO DE FIXACAO | C20: UN | D20: 5.47
A21: 39135 | B21: ABRACADEIRA EM ACO PARA AMARRACAO DE ELETRODUTOS, TIPO D, COM 3 1/2" E CUNHA DE FIXACAO | C21: UN | D21: 10.22
A22: 39134 | B22: ABRACADEIRA EM ACO PARA AMARRACAO DE ELETRODUTOS, TIPO D, COM 3" E CUNHA DE FIXACAO | C22: UN | D22: 8.51
A23: 398 | B23: ABRACADEIRA EM ACO PARA AMARRACAO DE ELETRODUTOS, TIPO D, COM 3" E PARAFUSO DE FIXACAO | C23: UN | D23: 7.84
A24: 39128 | B24: ABRACADEIRA EM ACO PARA AMARRACAO DE ELETRODUTOS, TIPO D, COM 3/4" E CUNHA DE FIXACAO | C24: UN | D24: 2.55
A25: 400 | B25: ABRACADEIRA EM ACO PARA AMARRACAO DE ELETRODUTOS, TIPO D, COM 3/4" E PARAFUSO DE FIXACAO | C25: UN | D25: 2.49
A26: 39125 | B26: ABRACADEIRA EM ACO PARA AMARRACAO DE ELETRODUTOS, TIPO D, COM 3/8" E PARAFUSO DE FIXACAO | C26: UN | D26: 2.55
A27: 39126 | B27: ABRACADEIRA EM ACO PARA AMARRACAO DE ELETRODUTOS, TIPO D, COM 4" E CUNHA DE FIXACAO | C27: UN | D27: 11.5
A28: 399 | B28: ABRACADEIRA EM ACO PARA AMARRACAO DE ELETRODUTOS, TIPO D, COM 4" E PARAFUSO DE FIXACAO | C28: UN | D28: 10.13
A29: 39158 | B29: ABRACADEIRA EM ACO PARA AMARRACAO DE ELETRODUTOS, TIPO ECONOMICA (GOTA), COM 8" | C29: UN | D29: 27.2
A30: 39141 | B30: ABRACADEIRA EM ACO PARA AMARRACAO DE ELETRODUTOS, TIPO U SIMPLES, COM 1 1/2" | C30: UN | D30: 1.97
A31: 39140 | B31: ABRACADEIRA EM ACO PARA AMARRACAO DE ELETRODUTOS, TIPO U SIMPLES, COM 1 1/4" | C31: UN | D31: 1.79
A32: 39139 | B32: ABRACADEIRA EM ACO PARA AMARRACAO DE ELETRODUTOS, TIPO U SIMPLES, COM 1" | C32: UN | D32: 1.49
A33: 39137 | B33: ABRACADEIRA EM ACO PARA AMARRACAO DE ELETRODUTOS, TIPO U SIMPLES, COM 1/2" | C33: UN | D33: 1.03
A34: 39143 | B34: ABRACADEIRA EM ACO PARA AMARRACAO DE ELETRODUTOS, TIPO U SIMPLES, COM 2 1/2" | C34: UN | D34: 4.07
A35: 39142 | B35: ABRACADEIRA EM ACO PARA AMARRACAO DE ELETRODUTOS, TIPO U SIMPLES, COM 2" | C35: UN | D35: 2.92
A36: 39144 | B36: ABRACADEIRA EM ACO PARA AMARRACAO DE ELETRODUTOS, TIPO U SIMPLES, COM 3" | C36: UN | D36: 4.74
A37: 39138 | B37: ABRACADEIRA EM ACO PARA AMARRACAO DE ELETRODUTOS, TIPO U SIMPLES, COM 3/4" | C37: UN | D37: 1.09
A38: 39136 | B38: ABRACADEIRA EM ACO PARA AMARRACAO DE ELETRODUTOS, TIPO U SIMPLES, COM 3/8" | C38: UN | D38: 0.73
A39: 39145 | B39: ABRACADEIRA EM ACO PARA AMARRACAO DE ELETRODUTOS, TIPO U SIMPLES, COM 4" | C39: UN | D39: 7.81
A40: 12615 | B40: ABRACADEIRA PVC, PARA CALHA PLUVIAL, DIAMETRO ENTRE *80 E 100* MM, PARA DRENAGEM PLUVIAL PREDIAL | C40: UN | D40: 11.75
A41: 11927 | B41: ABRACADEIRA, GALVANIZADA/ZINCADA, ROSCA SEM FIM, PARAFUSO INOX, LARGURA FITA *12,6 A *14 MM, D = 2" A 2 1/2" | C41: UN
A42: 11928 | B42: ABRACADEIRA, GALVANIZADA/ZINCADA, ROSCA SEM FIM, PARAFUSO INOX, LARGURA FITA *12,6 A *14 MM, D = 3" A 3 3/4" | C42: UN
A43: 11929 | B43: ABRACADEIRA, GALVANIZADA/ZINCADA, ROSCA SEM FIM, PARAFUSO INOX, LARGURA FITA *12,6 A *14 MM, D = 4" A 4 3/4" | C43: UN
A44: 36801 | B44: ACABAMENTO DE METAL CROMADO PARA REGISTRO PEQUENO, DE PAREDE, 1/2" OU 3/4" | C44: UN | D44: 26.91
A45: 36246 | B45: ACABAMENTO SIMPLES/CONVENCIONAL PARA FORRO PVC, TIPO "U" OU "C", COR BRANCA, COMPRIMENTO 6 M | C45: M | D45: 3.83
A46: 37600 | B46: ACESSORIO DE LIGACAO NAO ELETRICO PARA CARGAS EXPLOSIVAS, TUBO DE 6 M | C46: UN
A47: 37599 | B47: ACESSORIO INICIADOR NAO ELETRICO, TUBO DE 6 M, TEMPO DE RETARDO DE *160* MS | C47: UN
A48: 1 | B48: ACETILENO - RECARGA DE GAS PARA CILINDRO (NAO INCLUI TROCA/MANUTENCAO DO CILINDRO) | C48: KG
A49: 3 | B49: ACIDO CLORIDRICO / ACIDO MURIATICO, DILUICAO 10% A 12% PARA USO EM LIMPEZA | C49: L | D49: 18
A50: 43054 | B50: ACO CA-25, 10,0 MM, OU 12,5 MM, OU 16,0 MM, OU 20,0 MM, OU 25,0 MM, VERGALHAO | C50: KG | D50: 9.56
A51: 42402 | B51: ACO CA-25, 16,0 MM, BARRA DE TRANSFERENCIA | C51: KG | D51: 9.14
A52: 42403 | B52: ACO CA-25, 20,0 MM, BARRA DE TRANSFERENCIA | C52: KG | D52: 11.72
A53: 42404 | B53: ACO CA-25, 25,0 MM, BARRA DE TRANSFERENCIA | C53: KG | D53: 11.66
A54: 42405 | B54: ACO CA-25, 32,0 MM, BARRA DE TRANSFERENCIA | C54: KG | D54: 12.42
A55: 34341 | B55: ACO CA-25, 32,0 MM, VERGALHAO | C55: KG | D55: 10.78
A56: 43053 | B56: ACO CA-25, 6,3 MM OU 8,0 MM, VERGALHAO | C56: KG | D56: 8.54
A57: 43058 | B57: ACO CA-50, 10,0 MM, OU 12,5 MM, OU 16,0 MM, OU 20,0 MM, DOBRADO E CORTADO | C57: KG | D57: 8.86
A58: 34 | B58: ACO CA-50, 10,0 MM, VERGALHAO | C58: KG | D58: 8.9
A59: 43055 | B59: ACO CA-50, 12,5 MM OU 16,0 MM, VERGALHAO | C59: KG | D59: 7.71
A60: 43056 | B60: ACO CA-50, 20,0 MM OU 25,0 MM, VERGALHAO | C60: KG | D60: 8.89
A61: 43057 | B61: ACO CA-50, 32,0 MM, VERGALHAO | C61: KG | D61: 9.77
A62: 34449 | B62: ACO CA-50, 6,3 MM, DOBRADO E CORTADO | C62: KG | D62: 10.44
A63: 32 | B63: ACO CA-50, 6,3 MM, VERGALHAO | C63: KG | D63: 9.39
A64: 33 | B64: ACO CA-50, 8,0 MM, VERGALHAO | C64: KG | D64: 9.44
A65: 43061 | B65: ACO CA-60, 4,2 MM OU 5,0 MM, DOBRADO E CORTADO | C65: KG | D65: 8.82
A66: 43059 | B66: ACO CA-60, 4,2 MM, OU 5,0 MM, OU 6,0 MM, OU 7,0 MM, VERGALHAO | C66: KG | D66: 8.42
A67: 43062 | B67: ACO CA-60, 6,0 MM OU 7,0 MM, DOBRADO E CORTADO | C67: KG | D67: 9.33
A68: 43060 | B68: ACO CA-60, 8,0 MM OU 9,5 MM, VERGALHAO | C68: KG | D68: 7.34
A69: 40410 | B69: ACOPLAMENTO RIGIDO EM FERRO FUNDIDO PARA SISTEMA DE TUBULACAO RANHURADA, DN 50 MM (2") | C69: UN
A70: 40411 | B70: ACOPLAMENTO RIGIDO EM FERRO FUNDIDO PARA SISTEMA DE TUBULACAO RANHURADA, DN 65 MM (2 1/2") | C70: UN
A71: 40412 | B71: ACOPLAMENTO RIGIDO EM FERRO FUNDIDO PARA SISTEMA DE TUBULACAO RANHURADA, DN 80 MM (3") | C71: UN
A72: 44254 | B72: ADAPTADOR CPVC, ROSCAVEL, COM FLANGES E ANEL DE VEDACAO, 15 MM, CAIXA D'AGUA PARA AGUA QUENTE | C72: UN | D72: 26.63
A73: 44255 | B73: ADAPTADOR CPVC, ROSCAVEL, COM FLANGES E ANEL DE VEDACAO, 22 MM, CAIXA D'AGUA PARA AGUA QUENTE | C73: UN | D73: 29.52
A74: 44256 | B74: ADAPTADOR CPVC, ROSCAVEL, COM FLANGES E ANEL DE VEDACAO, 28 MM, CAIXA D'AGUA PARA AGUA QUENTE | C74: UN | D74: 33.34
A75: 44257 | B75: ADAPTADOR CPVC, ROSCAVEL, COM FLANGES E ANEL DE VEDACAO, 35 MM, CAIXA D'AGUA PARA AGUA QUENTE | C75: UN | D75: 52.74
A76: 44258 | B76: ADAPTADOR CPVC, ROSCAVEL, COM FLANGES E ANEL DE VEDACAO, 42 MM, CAIXA D'AGUA PARA AGUA QUENTE | C76: UN | D76: 60.28
A77: 44259 | B77: ADAPTADOR CPVC, ROSCAVEL, COM FLANGES E ANEL DE VEDACAO, 54 MM, CAIXA D'AGUA PARA AGUA QUENTE | C77: UN | D77: 82.74
A78: 37997 | B78: ADAPTADOR CPVC, SOLDAVEL, 15 MM, PARA AGUA QUENTE | C78: UN | D78: 15.87
A79: 37998 | B79: ADAPTADOR CPVC, SOLDAVEL, 22 MM, PARA AGUA QUENTE | C79: UN | D79: 21.24
A80: 55 | B80: ADAPTADOR DE COMPRESSAO EM POLIPROPILENO (PP), PARA TUBO EM PEAD, 20 MM X 1/2", PARA LIGACAO PREDIAL DE AGUA (NTS 179) | C80: UN
A81: 61 | B81: ADAPTADOR DE COMPRESSAO EM POLIPROPILENO (PP), PARA TUBO EM PEAD, 20 MM X 3/4", PARA LIGACAO PREDIAL DE AGUA (NTS 179) | C81: UN
A82: 62 | B82: ADAPTADOR DE COMPRESSAO EM POLIPROPILENO (PP), PARA TUBO EM PEAD, 32 MM X 1", PARA LIGACAO PREDIAL DE AGUA (NTS 179) | C82: UN
A83: 10899 | B83: ADAPTADOR EM LATAO, ENGATE RAPIDO 2 1/2" X ROSCA INTERNA 5 FIOS 2 1/2", PARA INSTALACAO PREDIAL DE COMBATE A INCENDIO | C83: UN
A84: 10900 | B84: ADAPTADOR EM LATAO, ENGATE RAPIDO1 1/2" X ROSCA INTERNA 5 FIOS 2 1/2", PARA INSTALACAO PREDIAL DE COMBATE A INCENDIO | C84: UN
A85: 47 | B85: ADAPTADOR PVC PBA, BOLSA/ROSCA, JE, DN 100 / DE 110 MM | C85: UN
A86: 48 | B86: ADAPTADOR PVC PBA, BOLSA/ROSCA, JE, DN 50 / DE 60 MM | C86: UN
A87: 46 | B87: ADAPTADOR PVC PBA, BOLSA/ROSCA, JE, DN 75 / DE 85 MM | C87: UN
A88: 52 | B88: ADAPTADOR PVC PBA, PONTA/ROSCA, JE, DN 50 / DE 60 MM | C88: UN
A89: 43 | B89: ADAPTADOR PVC PBA, PONTA/ROSCA, JE, DN 75 / DE 85 MM | C89: UN
A90: 103 | B90: ADAPTADOR PVC SOLDAVEL CURTO COM BOLSA E ROSCA, 110 MM X 4", PARA AGUA FRIA | C90: UN | D90: 40.2
A91: 107 | B91: ADAPTADOR PVC SOLDAVEL CURTO COM BOLSA E ROSCA, 20 MM X 1/2", PARA AGUA FRIA | C91: UN | D91: 0.75
A92: 65 | B92: ADAPTADOR PVC SOLDAVEL CURTO COM BOLSA E ROSCA, 25 MM X 3/4", PARA AGUA FRIA | C92: UN | D92: 0.83
A93: 108 | B93: ADAPTADOR PVC SOLDAVEL CURTO COM BOLSA E ROSCA, 32 MM X 1", PARA AGUA FRIA | C93: UN | D93: 1.66
A94: 110 | B94: ADAPTADOR PVC SOLDAVEL CURTO COM BOLSA E ROSCA, 40 MM X 1 1/2", PARA AGUA FRIA | C94: UN | D94: 5.78
A95: 109 | B95: ADAPTADOR PVC SOLDAVEL CURTO COM BOLSA E ROSCA, 40 MM X 1 1/4", PARA AGUA FRIA | C95: UN | D95: 3.44
A96: 111 | B96: ADAPTADOR PVC SOLDAVEL CURTO COM BOLSA E ROSCA, 50 MM X 1 1/4", PARA AGUA FRIA | C96: UN | D96: 7.82
A97: 112 | B97: ADAPTADOR PVC SOLDAVEL CURTO COM BOLSA E ROSCA, 50 MM X1 1/2", PARA AGUA FRIA | C97: UN | D97: 4.15
A98: 113 | B98: ADAPTADOR PVC SOLDAVEL CURTO COM BOLSA E ROSCA, 60 MM X 2", PARA AGUA FRIA | C98: UN | D98: 10.38
A99: 104 | B99: ADAPTADOR PVC SOLDAVEL CURTO COM BOLSA E ROSCA, 75 MM X 2 1/2", PARA AGUA FRIA | C99: UN | D99: 18.07
A100: 102 | B100: ADAPTADOR PVC SOLDAVEL CURTO COM BOLSA E ROSCA, 85 MM X 3", PARA AGUA FRIA | C100: UN | D100: 24.91
A101: 95 | B101: ADAPTADOR PVC SOLDAVEL, COM FLANGE E ANEL DE VEDACAO, 20 MM X 1/2", PARA CAIXA D'AGUA | C101: UN | D101: 10.53
A102: 96 | B102: ADAPTADOR PVC SOLDAVEL, COM FLANGE E ANEL DE VEDACAO, 25 MM X 3/4", PARA CAIXA D'AGUA | C102: UN | D102: 11.45
A103: 97 | B103: ADAPTADOR PVC SOLDAVEL, COM FLANGE E ANEL DE VEDACAO, 32 MM X 1", PARA CAIXA D'AGUA | C103: UN | D103: 17.23
A104: 98 | B104: ADAPTADOR PVC SOLDAVEL, COM FLANGE E ANEL DE VEDACAO, 40 MM X 1 1/4", PARA CAIXA D'AGUA | C104: UN | D104: 25.79
A105: 99 | B105: ADAPTADOR PVC SOLDAVEL, COM FLANGE E ANEL DE VEDACAO, 50 MM X 1 1/2", PARA CAIXA D'AGUA | C105: UN | D105: 24.37
A106: 60 | B106: ADAPTADOR PVC, COM REGISTRO, PARA PEAD, 20 MM X 3/4", PARA LIGACAO PREDIAL DE AGUA | C106: UN
A107: 72 | B107: ADAPTADOR PVC, ROSCAVEL, COM FLANGES E ANEL DE VEDACAO, 1 1/2", PARA CAIXA D'AGUA | C107: UN | D107: 46.74
A108: 71 | B108: ADAPTADOR PVC, ROSCAVEL, COM FLANGES E ANEL DE VEDACAO, 1", PARA CAIXA D'AGUA | C108: UN | D108: 28.87
A109: 67 | B109: ADAPTADOR PVC, ROSCAVEL, COM FLANGES E ANEL DE VEDACAO, 1/2", PARA CAIXA D'AGUA | C109: UN | D109: 15.11
A110: 73 | B110: ADAPTADOR PVC, ROSCAVEL, COM FLANGES E ANEL DE VEDACAO, 3/4", PARA CAIXA D'AGUA | C110: UN | D110: 14.46
A111: 100 | B111: ADAPTADOR PVC, SOLDAVEL, COM FLANGES E ANEL DE VEDACAO, 60 MM X 2", PARA CAIXA D'AGUA | C111: UN | D111: 42.58
A112: 75 | B112: ADAPTADOR PVC, SOLDAVEL, COM FLANGES LIVRES, 110 MM X 4", PARA CAIXA D'AGUA | C112: UN | D112: 248.28
A113: 83 | B113: ADAPTADOR PVC, SOLDAVEL, COM FLANGES LIVRES, 75 MM X 2 1/2", PARA CAIXA D'AGUA | C113: UN | D113: 198.49
A114: 74 | B114: ADAPTADOR PVC, SOLDAVEL, COM FLANGES LIVRES, 85 MM X 3", PARA CAIXA D'AGUA | C114: UN | D114: 283.78
A115: 106 | B115: ADAPTADOR PVC, SOLDAVEL, LONGO, COM FLANGE LIVRE, 110 MM X 4", PARA CAIXA D'AGUA | C115: UN | D115: 358.86
A116: 88 | B116: ADAPTADOR PVC, SOLDAVEL, LONGO, COM FLANGE LIVRE, 32 MM X 1", PARA CAIXA D'AGUA | C116: UN | D116: 10.08
A117: 82 | B117: ADAPTADOR PVC, SOLDAVEL, LONGO, COM FLANGE LIVRE, 75 MM X 2 1/2", PARA CAIXA D'AGUA | C117: UN | D117: 188.84
A118: 105 | B118: ADAPTADOR PVC, SOLDAVEL, LONGO, COM FLANGE LIVRE, 85 MM X 3", PARA CAIXA D'AGUA | C118: UN | D118: 267.59
A119: 39719 | B119: ADESIVO / COLA DE CONTATO LIQUIDO, A BASE DE RESINAS, PARA COLAGEM DE ESPUMA PARA ISOLAMENTO TERMICO FLEXIVEL | C119: L | D119: 157.72
A120: 3410 | B120: ADESIVO / COLA PARA EPS (ISOPOR) E OUTROS MATERIAIS | C120: KG | D120: 35.48
A121: 4791 | B121: ADESIVO ACRILICO DE BASE AQUOSA / COLA DE CONTATO | C121: KG | D121: 27.91
A122: 157 | B122: ADESIVO ESTRUTURAL A BASE DE RESINA EPOXI PARA INJECAO EM TRINCAS, BICOMPONENTE, BAIXA VISCOSIDADE | C122: KG | D122: 145.29
A123: 156 | B123: ADESIVO ESTRUTURAL A BASE DE RESINA EPOXI, BICOMPONENTE, FLUIDO | C123: KG | D123: 51.73
A124: 131 | B124: ADESIVO ESTRUTURAL A BASE DE RESINA EPOXI, BICOMPONENTE, PASTOSO (TIXOTROPICO) | C124: KG | D124: 44.24
A125: 21114 | B125: ADESIVO PARA TUBOS CPVC, *75* G | C125: UN | D125: 31.09
A126: 119 | B126: ADESIVO PLASTICO PARA PVC, BISNAGA COM 75 GR | C126: UN | D126: 7.88
A127: 122 | B127: ADESIVO PLASTICO PARA PVC, FRASCO COM *850* GR | C127: UN | D127: 60.63
A128: 20080 | B128: ADESIVO PLASTICO PARA PVC, FRASCO COM 175 GR | C128: UN | D128: 19.79
A129: 124 | B129: ADITIVO ACELERADOR DE PEGA E ENDURECIMENTO PARA ARGAMASSAS E CONCRETOS, LIQUIDO E ISENTO DE CLORETOS | C129: L | D129: 17.06
A130: 7334 | B130: ADITIVO ADESIVO LIQUIDO PARA ARGAMASSAS DE REVESTIMENTOS CIMENTICIOS | C130: L | D130: 16.96
A131: 45146 | B131: ADITIVO IMPERMEABILIZANTE CRISTALIZANTE PARA CONCRETO | C131: KG | D131: 32.71
A132: 123 | B132: ADITIVO IMPERMEABILIZANTE DE PEGA NORMAL PARA ARGAMASSAS E CONCRETOS SEM ARMACAO, LIQUIDO E ISENTO DE CLORETOS | C132: L | D132: 6.98
A133: 127 | B133: ADITIVO IMPERMEABILIZANTE DE PEGA ULTRARRAPIDA, LIQUIDO E ISENTO DE CLORETOS | C133: L | D133: 16.66
A134: 133 | B134: ADITIVO LIQUIDO INCORPORADOR DE AR PARA CONCRETO E ARGAMASSA, LIQUIDO E ISENTO DE CLORETOS | C134: L | D134: 6.92
A135: 43617 | B135: ADITIVO PLASTIFICANTE E ESTABILIZADOR PARA ARGAMASSAS DE ASSENTAMENTO E REBOCO, LIQUIDO E ISENTO DE CLORETOS | C135: L | D135: 7.73
A136: 132 | B136: ADITIVO PLASTIFICANTE RETARDADOR DE PEGA E REDUTOR DE AGUA PARA CONCRETO, LIQUIDO E ISENTO DE CLORETOS | C136: L | D136: 7.17
A137: 43618 | B137: ADITIVO SUPERPLASTIFICANTE DE PEGA NORMAL PARA CONCRETO, LIQUIDO E ISENTO DE CLORETOS | C137: KG | D137: 18.06
A138: 37476 | B138: ADUELA/ GALERIA PRE-MOLDADA DE CONCRETO ARMADO, SECAO QUADRADA INTERNA DE 1,50 X 1,50 M (L X A), MISULA DE 20 X 20 CM, C = 1,00 M, ESPESSURA MIN = 15 CM, TB-45 E FCK DO CONCRETO = 30 MPA | C138: UN | D138: 3841.2
A139: 37478 | B139: ADUELA/ GALERIA PRE-MOLDADA DE CONCRETO ARMADO, SECAO RETANGULAR INTERNA DE 2,00 X 2,00 M (L X A), MISULA DE 20 X 20 CM, C = 1,00 M, ESPESSURA MIN = 15 CM, TB-45 E FCK DO CONCRETO = 30 MPA | C139: UN | D139: 4811.19
A140: 37477 | B140: ADUELA/ GALERIA PRE-MOLDADA DE CONCRETO ARMADO, SECAO RETANGULAR INTERNA DE 2,50 X 2,50 M (L X A), MISULA DE 20 X 20 CM, C = 1,00 M, ESPESSURA MIN = 15 CM, TB-45 E FCK DO CONCRETO = 30 MPA | C140: UN | D140: 6518.39
A141: 37479 | B141: ADUELA/ GALERIA PRE-MOLDADA DE CONCRETO ARMADO, SECAO RETANGULAR INTERNA DE 3,00 X 3,00 M (L X A), MISULA DE 20 X 20 CM, C = 1.00 M, ESPESSURA MIN = 20 CM, TB-45 E FCK DO CONCRETO = 30 MPA | C141: UN | D141: 7730.9
A142: 4319 | B142: AFASTADOR PARA TELHA DE FIBROCIMENTO CANALETE 90 OU KALHETAO | C142: UN | D142: 1.73
A143: 42409 | B143: AGENTE DE CURA, PROTETOR DA EVAPORACAO DA AGUA DE HIDRATACAO DO CONCRETO | C143: KG | D143: 11.37
A144: 40553 | B144: AGREGADO RECICLADO, TIPO RACHAO RECICLADO CINZA, CLASSE A | C144: M3
A145: 6114 | B145: AJUDANTE DE ARMADOR (HORISTA) | C145: H | D145: 16.22
A146: 40912 | B146: AJUDANTE DE ARMADOR (MENSALISTA) | C146: MES | D146: 2834.85
A147: 247 | B147: AJUDANTE DE ELETRICISTA (HORISTA) | C147: H | D147: 16.22
A148: 40919 | B148: AJUDANTE DE ELETRICISTA (MENSALISTA) | C148: MES | D148: 2834.85
A149: 44499 | B149: AJUDANTE DE ESTRUTURAS METALICAS (HORISTA) | C149: H | D149: 16.22
A150: 40984 | B150: AJUDANTE DE ESTRUTURAS METALICAS (MENSALISTA) | C150: MES | D150: 2834.85
A151: 248 | B151: AJUDANTE DE OPERACAO EM GERAL (HORISTA) | C151: H | D151: 15.27
A152: 41086 | B152: AJUDANTE DE OPERACAO EM GERAL (MENSALISTA) | C152: MES | D152: 2669.94
A153: 34466 | B153: AJUDANTE DE PINTOR (HORISTA) | C153: H | D153: 16.22
A154: 41083 | B154: AJUDANTE DE PINTOR (MENSALISTA) | C154: MES | D154: 2834.85
A155: 252 | B155: AJUDANTE DE SERRALHEIRO (HORISTA) | C155: H | D155: 16.22
A156: 40909 | B156: AJUDANTE DE SERRALHEIRO (MENSALISTA) | C156: MES | D156: 2834.85
A157: 242 | B157: AJUDANTE ESPECIALIZADO (HORISTA) | C157: H | D157: 15.27
A158: 41085 | B158: AJUDANTE ESPECIALIZADO (MENSALISTA) | C158: MES | D158: 2669.94
A159: 427 | B159: ALCA PREFORMADA DE CONTRA POSTE, EM ACO GALVANIZADO, PARA CABO 3/16", COMPRIMENTO *860* MM | C159: UN
A160: 417 | B160: ALCA PREFORMADA DE DISTRIBUICAO, EM ACO GALVANIZADO, PARA CABO DE ALUMINIO DIAMETRO 16 A 25 MM | C160: UN
A161: 11273 | B161: ALCA PREFORMADA DE DISTRIBUICAO, EM ACO GALVANIZADO, PARA CONDUTORES DE ALUMINIO AWG 1/0 (CAA 6/1 OU CA 7 FIOS) | C161: UN
A162: 11272 | B162: ALCA PREFORMADA DE DISTRIBUICAO, EM ACO GALVANIZADO, PARA CONDUTORES DE ALUMINIO AWG 2 (CAA 6/1 OU CA 7 FIOS) | C162: UN
A163: 11275 | B163: ALCA PREFORMADA DE SERVICO, EM ACO GALVANIZADO, PARA CONDUTORES DE ALUMINIO AWG 4 (CAA 6/1) | C163: UN
A164: 11274 | B164: ALCA PREFORMADA DE SERVICO, EM ACO GALVANIZADO, PARA CONDUTORES DE ALUMINIO AWG 6 (CAA 6/1) | C164: UN
A165: 45250 | B165: ALICATE BICO LONGO (MEIA CANA) 6", COM ISOLAMENTO ATE 1000 V | C165: UN | D165: 38.33
A166: 38470 | B166: ALICATE DE CORTE DIAGONAL 6" COM ISOLAMENTO | C166: UN | D166: 42.4
A167: 38547 | B167: ALICATE DE CRIMPAR RJ11, RJ12 E RJ45, COM CATRACA | C167: UN | D167: 260.5
A168: 38467 | B168: ALICATE DE PRESSAO 11" PARA SOLDA, TIPO C | C168: UN | D168: 70
A169: 38468 | B169: ALICATE DE PRESSAO 11" PARA SOLDA, TIPO U | C169: UN | D169: 77.03
A170: 38469 | B170: ALICATE DE PRESSAO PARA SOLDA DE CHAPA 18" | C170: UN | D170: 248.73
A171: 45197 | B171: ALICATE DESENCAPADOR AUTOMATICO 8" | C171: UN | D171: 198.37
A172: 38471 | B172: ALICATE PARA ANEIS DE PISTAO, CAPACIDADE *50* A 100 MM | C172: UN | D172: 266.02
A173: 45206 | B173: ALICATE PROFISSIONAL 8", UNIVERSAL, COM ISOLAMENTO ATE 1000 V | C173: UN | D173: 52.56
A174: 37370 | B174: ALIMENTACAO - HORISTA (COLETADO CAIXA - ENCARGOS COMPLEMENTARES) | C174: H | D174: 3.04
A175: 40862 | B175: ALIMENTACAO - MENSALISTA (COLETADO CAIXA - ENCARGOS COMPLEMENTARES) | C175: MES | D175: 573.35
A176: 10658 | B176: ALISADORA DE CONCRETO COM MOTOR A GASOLINA DE 5,5 HP, PESO COM MOTOR DE 78 KG, 4 PAS | C176: UN
A177: 253 | B177: ALMOXARIFE (HORISTA) | C177: H | D177: 27.26
A178: 40809 | B178: ALMOXARIFE (MENSALISTA) | C178: MES | D178: 4762.55
A179: 42428 | B179: ALONGADOR COM TRES ALTURAS, EM TUBO DE ACO CARBONO, PINTURA NO PROCESSO ELETROSTATICO - EQUIPAMENTO DE GINASTICA PARA ACADEMIA AO AR LIVRE / ACADEMIA DA TERCEIRA IDADE - ATI | C179: UN
A180: 301 | B180: ANEL BORRACHA PARA TUBO ESGOTO PREDIAL, DN 100 MM (NBR 5688) | C180: UN | D180: 3.5
A181: 296 | B181: ANEL BORRACHA PARA TUBO ESGOTO PREDIAL, DN 50 MM (NBR 5688) | C181: UN | D181: 1.98
A182: 297 | B182: ANEL BORRACHA PARA TUBO ESGOTO PREDIAL, DN 75 MM (NBR 5688) | C182: UN | D182: 2.91
A183: 299 | B183: ANEL BORRACHA, DN 100 MM, PARA TUBO SERIE REFORCADA ESGOTO PREDIAL | C183: UN | D183: 4.1
A184: 300 | B184: ANEL BORRACHA, DN 150 MM, PARA TUBO SERIE REFORCADA ESGOTO PREDIAL | C184: UN | D184: 14.21
A185: 20085 | B185: ANEL BORRACHA, DN 50 MM, PARA TUBO SERIE REFORCADA ESGOTO PREDIAL | C185: UN | D185: 2.59
A186: 298 | B186: ANEL BORRACHA, DN 75 MM, PARA TUBO SERIE REFORCADA ESGOTO PREDIAL | C186: UN | D186: 3.15
A187: 311 | B187: ANEL BORRACHA, PARA TUBO PVC DEFOFO, DN 100 MM (NBR 7665) | C187: UN | D187: 11.71
A188: 318 | B188: ANEL BORRACHA, PARA TUBO PVC DEFOFO, DN 150 MM (NBR 7665) | C188: UN | D188: 23.59
A189: 319 | B189: ANEL BORRACHA, PARA TUBO PVC DEFOFO, DN 200 MM (NBR 7665) | C189: UN | D189: 37
A190: 303 | B190: ANEL BORRACHA, PARA TUBO PVC, REDE COLETOR ESGOTO, DN 100 MM (NBR 7362) | C190: UN | D190: 3.87
A191: 305 | B191: ANEL BORRACHA, PARA TUBO PVC, REDE COLETOR ESGOTO, DN 150 MM (NBR 7362) | C191: UN | D191: 12.2
A192: 306 | B192: ANEL BORRACHA, PARA TUBO PVC, REDE COLETOR ESGOTO, DN 200 MM (NBR 7362) | C192: UN | D192: 18.5
A193: 307 | B193: ANEL BORRACHA, PARA TUBO PVC, REDE COLETOR ESGOTO, DN 250 MM (NBR 7362) | C193: UN | D193: 46.73
A194: 309 | B194: ANEL BORRACHA, PARA TUBO PVC, REDE COLETOR ESGOTO, DN 350 MM (NBR 7362) | C194: UN | D194: 76.55
A195: 310 | B195: ANEL BORRACHA, PARA TUBO PVC, REDE COLETOR ESGOTO, DN 400 MM (NBR 7362) | C195: UN | D195: 106.11
A196: 308 | B196: ANEL BORRACHA, PARA TUBO, PVC REDE COLETOR ESGOTO, DN 300 MM (NBR 7362) | C196: UN | D196: 104.3
A197: 328 | B197: ANEL BORRACHA, PARA TUBO/CONEXAO PVC PBA, DN 100 MM, PARA REDE AGUA | C197: UN | D197: 9.28
A198: 325 | B198: ANEL BORRACHA, PARA TUBO/CONEXAO PVC PBA, DN 50 MM, PARA REDE AGUA | C198: UN | D198: 2.73
A199: 20326 | B199: ANEL BORRACHA, PARA TUBO/CONEXAO PVC PBA, DN 60 MM, PARA REDE AGUA | C199: UN | D199: 5.01
A200: 329 | B200: ANEL BORRACHA, PARA TUBO/CONEXAO PVC PBA, DN 75 MM, PARA REDE AGUA | C200: UN | D200: 7.76
... 4673 more rows

Sheet Orse (hidden)
A1: ORSE
A2: Database | B2: 2024-06-01
A3: Código | B3: Descrição | C3: Unidade | D3: Cuto unitário
A4: 13936 | B4: PERFIL AÇO EM T, ABAS IGUAIS - 1" x 1/8" (1,18 kg/m) | C4: KG | D4: 9.92

Sheet Cotação (hidden)
A1: Cotação
A2: Database: Agosto/2024
A3: Código | B3: Descrição | C3: Unidade | D3: Custo unitário
A4: COT-0001 | B4: Cisterna de polietileno 16.000l, com extravasor acoplado | C4: unid | D4: =#REF! -> 
A5: COT-0002 | B5: Placa de aluminio anodizado para numeração das cisternas | C5: unid | D5: =#REF! -> 
A6: COT-0003 | B6: Bomba dágua de membrana angular manual, produzida em plástico de engenharia atóxico, resistente a exposição prolongada ao sol | C6: unid | D6: =#REF! -> 
A7: COT-0004 | B7: Filtro separador de folhas e detritos | C7: unid | D7: =#REF! -> 
A8: COT-0005 | B8: Grelha hemisférica pvc flexível 88mm x 100 mm | C8: unid | D8: =#REF! ->  | F8: sbc 61280
A9: Sinapi Ins 11823 | B9: Torneira plastica de boia para caixa de descarga, 1/2", balao e torneira plasticos, com haste metalica | C9: unid | D9: =VLOOKUP(11823,'Sinapi-Ins'!A:D,4,FALSE) -> 5.73
A10: COT-0006 | B10: Abraçadeira rosca sem fim 1" | C10: unid | D10: =#REF! -> 
A11: COT-0007 | B11: Válvula de pé com crivo em pvc 1” | C11: unid | D11: =#REF! ->  | F11: sbc 53673
A12: Sinapi Ins 37460 | B12: Mangueira 1" pvc com reforço silicone espiralada (3,5m) | C12: m | D12: =VLOOKUP(37460,'Sinapi-Ins'!A:D,4,FALSE) -> 22.18 | F12: MANGUEIRA CRISTAL TRANCADA, PVC COM REFORCO, PRESSAO DE TRABALHO (PT) 250 LBS/POL2, DE 1" X *3,1* MM
A13: COT-0008 | B13: Conjunto de sucção flutuante composta de: boia 15cm com argolas de fixação, abraçadeira 1", mangueira 1" pvc com reforço silicone espiralada (3,5m) e válvula de pé com crivo em pvc 1” | C13: unid | D13: =(D9+(3*D10)+D11+(3.5*D12)) -> 
A14: COT-0009 | B14: Veículo leve - 53 kW (sem motorista) | C14: mês | D14: 2418.15 | F14: F030000201 - Embasa - 2418,15 - LOCAÇÃO DE VEÍCULO TIPO GOL OU SIMILAR
A15: COT-0010 | B15: Veículo 4x4 (sem motorista) | C15: mês | D15: 7795 | F15: F020000005 - Embasa - 7795,00 - LOCAÇÃO DE VEÍCULO PICK UP TIPO S10 CABINE DUPLA 4X4 (DIESEL) OU SIMILAR

Sheet RESUMOS
A1: SENSOR ULTRASSÔNICO | B1: SENSOR ELETROMAGNÉTICO | C1: TELEMETRIA | D1: CAPACITAÇÃO E TREINAMENTO
A2: =AVERAGE('[53]Item 1.1'!L37,'[53]Item 1.2'!L37,'[53]Item 1.3'!L37,'[53]Item 1.4'!L37) -> 42750 | B2: =AVERAGE('[53]Item 2.1'!L37,'[53]Item 2.2'!L37,'[53]Item 2.3'!L37) -> 26500.95833 | C2: =AVERAGE('[53]Item 3.1'!L37,'[53]Item 3.2'!L37,'[53]Item 3.3'!L37,'[53]Item 3.4'!L37,'[53]Item 3.5'!L37,'[53]Item 3.6'!L37) -> 94906.74171 | D2: =AVERAGE('[53]Item 4.1'!L37) -> 8707.2

Sheet Encargos Sociais SE
A1: Ministério da Integração e do Desenvolvimento Regional
A2: Companhia de Desenvolvimento dos Vales do São Francisco e do Parnaíba
A4: COMPOSIÇÃO DE ENCARGOS SOCIAIS SOBRE A MÃO DE OBRA
A5: =[54]MURICI!A5 -> OBRA: | B5: ='Orçamento Sintético - AL e SE'!B6 -> Instalação e certificação de sistemas de medição de vazão e telemetria de projetos públicos de irrigação com captação em corpos hídricos da União, conforme a Resolução ANA nº 188/2024 - Automonitoramento. Projetos: Boacica e Itiúba, situados em Alagoas; Protejos: Betume, Cotinguiba-Pindoba, Jacaré-Curitiba e Propriá, situados em Sergipe.
A6: =[54]MURICI!A6 -> LOCAL: | B6: Sergipe
A7: =[54]MURICI!A7 -> DATA BASE: | B7: 2025-09-01
A8: =[54]MURICI!A8 -> PRAZO:
A10: PERNAMBUCO
A11: Encargos Sociais – Sergipe VIGÊNCIA A PARTIR DE 01/2025
A12: ENCARGOS SOCIAIS SOBRE A MÃO DE OBRA
A13: CÓDIGO | B13: DESCRIÇÃO | C13: COM DESONERAÇÃO | E13: SEM DESONERAÇÃO
C14: HORISTA % | D14: MENSALISTA % | E14: HORISTA % | F14: MENSALISTA %
A15: GRUPO A
A16: A1 | B16: INSS | C16: 0.05 | D16: 0.05 | E16: 0.2 | F16: 0.2
A17: A2 | B17: SESI | C17: 0.015 | D17: 0.015 | E17: 0.015 | F17: 0.015
A18: A3 | B18: SENAI | C18: 0.01 | D18: 0.01 | E18: 0.01 | F18: 0.01
A19: A4 | B19: INCRA | C19: 0.002 | D19: 0.002 | E19: 0.002 | F19: 0.002
A20: A5 | B20: SEBRAE | C20: 0.006 | D20: 0.006 | E20: 0.006 | F20: 0.006
A21: A6 | B21: Salário Educação | C21: 0.025 | D21: 0.025 | E21: 0.025 | F21: 0.025
A22: A7 | B22: Seguro Contra Acidentes de Trabalho | C22: 0.03 | D22: 0.03 | E22: 0.03 | F22: 0.03
A23: A8 | B23: FGTS | C23: 0.08 | D23: 0.08 | E23: 0.08 | F23: 0.08
A24: A9 | B24: SECONCI | C24: 0 | D24: 0 | E24: 0 | F24: 0
A25: A | B25: Total | C25: =SUM(C16:C24) -> 0.218 | D25: =SUM(D16:D24) -> 0.218 | E25: =SUM(E16:E24) -> 0.368 | F25: =SUM(F16:F24) -> 0.368
A26: GRUPO B
A27: B1 | B27: Repouso Semanal Remunerado | C27: 0.1786 | D27: Não incide | E27: 0.1786 | F27: Não incide
A28: B2 | B28: Feriados | C28: 0.0393 | D28: Não incide | E28: 0.0393 | F28: Não incide
A29: B3 | B29: Auxílio - Enfermidade | C29: 0.0084 | D29: 0.0065 | E29: 0.0084 | F29: 0.0065
A30: B4 | B30: 13º Salário | C30: 0.108 | D30: 0.0833 | E30: 0.108 | F30: 0.0833
A31: B5 | B31: Licença Paternidade | C31: 0.0006 | D31: 0.0005 | E31: 0.0006 | F31: 0.0005
A32: B6 | B32: Faltas Justificadas | C32: 0.0072 | D32: 0.0056 | E32: 0.0072 | F32: 0.0056
A33: B7 | B33: Dias de Chuvas | C33: 0.0148 | D33: Não incide | E33: 0.0148 | F33: Não incide
A34: B8 | B34: Auxílio Acidente de Trabalho | C34: 0.0009 | D34: 0.0007 | E34: 0.0009 | F34: 0.0007
A35: B9 | B35: Férias Gozadas | C35: 0.0854 | D35: 0.066 | E35: 0.0854 | F35: 0.066
A36: B10 | B36: Salário Maternidade | C36: 0.0003 | D36: 0.0003 | E36: 0.0003 | F36: 0.0003
A37: B | B37: Total | C37: =SUM(C27:C36) -> 0.4435 | D37: =SUM(D27:D36) -> 0.1629 | E37: =SUM(E27:E36) -> 0.4435 | F37: =SUM(F27:F36) -> 0.1629
A38: GRUPO C
A39: C1 | B39: Aviso Prévio Indenizado | C39: 0.0475 | D39: 0.0367 | E39: 0.0475 | F39: 0.0367
A40: C2 | B40: Aviso Prévio Trabalhado | C40: 0.0011 | D40: 0.0009 | E40: 0.0011 | F40: 0.0009
A41: C3 | B41: Férias Indenizadas | C41: 0.0472 | D41: 0.0364 | E41: 0.0472 | F41: 0.0364
A42: C4 | B42: Depósito Rescisão Sem Justa Causa | C42: 0.0349 | D42: 0.027 | E42: 0.0349 | F42: 0.027
A43: C5 | B43: Indenização Adicional | C43: 0.004 | D43: 0.0031 | E43: 0.004 | F43: 0.0031
A44: C | B44: Total | C44: =SUM(C39:C43) -> 0.1347 | D44: =SUM(D39:D43) -> 0.1041 | E44: =SUM(E39:E43) -> 0.1347 | F44: =SUM(F39:F43) -> 0.1041
A45: GRUPO D
A46: D1 | B46: Reincidência de Grupo A sobre Grupo B | C46: 0.0913 | D46: 0.0313 | E46: 0.1632 | F46: 0.0599
A47: D2 | B47: Reincidência de Grupo A sobre Aviso Prévio Trabalhado e Reincidência do FGTS sobre Aviso Prévio Indenizado | C47: 0.004 | D47: 0.0031 | E47: 0.0042 | F47: 0.0033
A48: D | B48: Total | C48: =SUM(C46:C47) -> 0.0953 | D48: =SUM(D46:D47) -> 0.0344 | E48: =SUM(E46:E47) -> 0.1674 | F48: =SUM(F46:F47) -> 0.0632
A49: TOTAL(A+B+C+D) | C49: =C25+C37+C44+C48 -> 0.8915 | D49: =D25+D37+D44+D48 -> 0.5194 | E49: =E25+E37+E44+E48 -> 1.1136 | F49: =F25+F37+F44+F48 -> 0.6982
A50: Fonte: Informação Dias de Chuva – INMET

Sheet Dnit
A1: DNIT
A2: Database | B2: 2025-04-01
A3: Códugo | B3: Descrição | C3: Unidade | D3: Custo unitário produtivo | E3: Custo unitário improdutivo
A4: B8951 | B4: Imóveis comercial (2,60% do CMCC - SINAPI) | C4: m2 x mês | D4: 49.4
A5: B8959 | B5: Custos diversos escritório | C5: ocupante x mês | D5: 137.55

Sheet SINAPI COMP - SE
A1: SINAPI - Sistema Nacional de Pesquisa de Custos e Índices da Construção Civil
A2: RELATÓRIO DE CUSTOS DE COMPOSIÇÕES - ENCARGOS SOCIAIS SEM DESONERAÇÃO
A3: Mês de Referência: | B3: 07/2025 | D3: Encargos sociais sobre a mão de obra:
A4: Data de emissão: | B4: 12/08/2025 | D4: (SEM DESONERAÇÃO) | E4: SE
D5: Localidade | E5: ARACAJU
A6: Observação: | B6: %AS (porcentagem Atribuído São Paulo) corresponde a porcentagem do custo total da | D6: Horista | E6: 1.1136
B7: composição que foi obtida utilizando preços de insumos de São Paulo por indisponibilidade | D7: Mensalista | E7: 0.6982
B8: dos preços de insumos necessários à composição no estado em questão. Custo zerado (hífen)
B9: indica que pelo menos um dos itens da composição não tem custo/preço. | E9: SE
A10: Grupo | B10: Código da Composição | C10: Descrição | D10: Unidade | E10: Custo (R$) | F10: %AS
A11: Acessibilidade | B11: 104658 | C11: PISO PODOTÁTIL DE ALERTA OU DIRECIONAL, DE CONCRETO, ASSENTADO SOBRE ARGAMASSA. AF_03/2024 | D11: M2 | E11: 166.76 | F11: 0
A12: Acessibilidade | B12: 105002 | C12: RAMPA DE ACESSIBILIDADE EM CONCRETO MOLDADO IN LOCO, EM CALÇADA NOVA COM LARGURA MAIOR OU IGUAL À 3,00 M, FCK 25MPA, COM PISO PODOTÁTIL. AF_03/2024 | D12: UN | E12: 721.72 | F12: 0
A13: Acessibilidade | B13: 105004 | C13: RAMPA DE ACESSIBILIDADE EM CONCRETO MOLDADO IN LOCO, EM CALÇADA NOVA COM LARGURA MENOR À 3,00 M, FCK 25MPA, COM PISO PODOTÁTIL. AF_03/2024 | D13: M2 | E13: 122.13 | F13: 0
A14: Acessibilidade | B14: 105003 | C14: RAMPA DE ACESSIBILIDADE EM CONCRETO MOLDADO IN LOCO, EM CALÇADA PRÉ EXISTENTE COM LARGURA MAIOR OU IGUAL À 3,00 M, FCK 25MPA, COM PISO PODOTÁTIL. AF_03/2024 | D14: UN | E14: 1148.96 | F14: 0.0663
A15: Acessibilidade | B15: 105005 | C15: RAMPA DE ACESSIBILIDADE EM CONCRETO MOLDADO IN LOCO, EM CALÇADA PRÉ EXISTENTE COM LARGURA MENOR À 3,00 M, FCK 25MPA, COM PISO PODOTÁTIL. AF_03/2024 | D15: M2 | E15: 201.24 | F15: 0.07
A16: Acessibilidade | B16: 105006 | C16: RAMPA DE ACESSIBILIDADE EM CONCRETO PRÉ MOLDADO, EM CALÇADA NOVA COM LARGURA MAIOR OU IGUAL À 3,00 M, FCK 25MPA, COM PISO PODOTÁTIL. AF_03/2024 | D16: UN | E16: 0
A17: Acessibilidade | B17: 104999 | C17: RAMPA DE ACESSIBILIDADE EM CONCRETO PRÉ MOLDADO, EM CALÇADA PRÉ EXISTENTE COM LARGURA MAIOR OU IGUAL À 3,00 M, FCK 25MPA, COM PISO PODOTÁTIL. AF_03/2024 | D17: UN | E17: 0
A18: Acessibilidade | B18: 105000 | C18: RAMPA DE ACESSIBILIDADE PARA ACESSO A EDIFICAÇÕES COM INCLINAÇÃO DE 8,33% EM CONCRETO MOLDADO IN LOCO, COM LARGURA DE 1,20M, FCK 25MPA, NÃO ARMADA, COM JUNTA A CADA 2M COM CORTE À SECO. AF_03/2024 | D18: M | E18: 1337.66 | F18: 0.4916
A19: Acessibilidade | B19: 105001 | C19: RAMPA DE ACESSIBILIDADE PARA ACESSO A EDIFICAÇÕES COM INCLINAÇÃO DE 8,33% EM CONCRETO MOLDADO IN LOCO, COM LARGURA DE 1,50M, FCK 25MPA, NÃO ARMADA, COM JUNTA A CADA 2M COM CORTE À SECO. AF_03/2024 | D19: M | E19: 1369.26 | F19: 0.4802
A20: Alvenaria Estrutural - Blocos Cerâmicos | B20: 89306 | C20: ALVENARIA ESTRUTURAL DE BLOCOS CERÂMICOS 14X19X29, (ESPESSURA DE 14 CM), UTILIZANDO COLHER DE PEDREIRO E ARGAMASSA DE ASSENTAMENTO COM PREPARO EM BETONEIRA. AF_03/2023 | D20: M2 | E20: 83.74 | F20: 0
A21: Alvenaria Estrutural - Blocos Cerâmicos | B21: 89307 | C21: ALVENARIA ESTRUTURAL DE BLOCOS CERÂMICOS 14X19X29, (ESPESSURA DE 14 CM), UTILIZANDO COLHER DE PEDREIRO E ARGAMASSA DE ASSENTAMENTO COM PREPARO MANUAL. AF_03/2023 | D21: M2 | E21: 85.89 | F21: 0
A22: Alvenaria Estrutural - Blocos Cerâmicos | B22: 89290 | C22: ALVENARIA ESTRUTURAL DE BLOCOS CERÂMICOS 14X19X29, (ESPESSURA DE 14 CM), UTILIZANDO PALHETA E ARGAMASSA DE ASSENTAMENTO COM PREPARO EM BETONEIRA. AF_03/2023 | D22: M2 | E22: 68.19 | F22: 0
A23: Alvenaria Estrutural - Blocos Cerâmicos | B23: 89291 | C23: ALVENARIA ESTRUTURAL DE BLOCOS CERÂMICOS 14X19X29, (ESPESSURA DE 14 CM), UTILIZANDO PALHETA E ARGAMASSA DE ASSENTAMENTO COM PREPARO MANUAL. AF_03/2023 | D23: M2 | E23: 69.8 | F23: 0
A24: Alvenaria Estrutural - Blocos Cerâmicos | B24: 89298 | C24: ALVENARIA ESTRUTURAL DE BLOCOS CERÂMICOS 14X19X39, (ESPESSURA DE 14 CM), UTILIZANDO COLHER DE PEDREIRO E ARGAMASSA DE ASSENTAMENTO COM PREPARO EM BETONEIRA. AF_03/2023 | D24: M2 | E24: 71.44 | F24: 0
A25: Alvenaria Estrutural - Blocos Cerâmicos | B25: 89299 | C25: ALVENARIA ESTRUTURAL DE BLOCOS CERÂMICOS 14X19X39, (ESPESSURA DE 14 CM), UTILIZANDO COLHER DE PEDREIRO E ARGAMASSA DE ASSENTAMENTO COM PREPARO MANUAL. AF_03/2023 | D25: M2 | E25: 73.37 | F25: 0
A26: Alvenaria Estrutural - Blocos Cerâmicos | B26: 89282 | C26: ALVENARIA ESTRUTURAL DE BLOCOS CERÂMICOS 14X19X39, (ESPESSURA DE 14 CM), UTILIZANDO PALHETA E ARGAMASSA DE ASSENTAMENTO COM PREPARO EM BETONEIRA. AF_03/2023 | D26: M2 | E26: 60.45 | F26: 0
A27: Alvenaria Estrutural - Blocos Cerâmicos | B27: 89283 | C27: ALVENARIA ESTRUTURAL DE BLOCOS CERÂMICOS 14X19X39, (ESPESSURA DE 14 CM), UTILIZANDO PALHETA E ARGAMASSA DE ASSENTAMENTO COM PREPARO MANUAL. AF_03/2023 | D27: M2 | E27: 61.9 | F27: 0
A28: Alvenaria Estrutural - Blocos de Concreto | B28: 89480 | C28: ALVENARIA DE BLOCOS DE CONCRETO ESTRUTURAL 14X19X29 CM (ESPESSURA 14 CM), FBK = 14 MPA, UTILIZANDO COLHER DE PEDREIRO. AF_10/2022 | D28: M2 | E28: 143.08 | F28: 0
A29: Alvenaria Estrutural - Blocos de Concreto | B29: 89464 | C29: ALVENARIA DE BLOCOS DE CONCRETO ESTRUTURAL 14X19X29 CM (ESPESSURA 14 CM), FBK = 14,0 MPA, UTILIZANDO PALHETA. AF_10/2022 | D29: M2 | E29: 123.75 | F29: 0
A30: Alvenaria Estrutural - Blocos de Concreto | B30: 89478 | C30: ALVENARIA DE BLOCOS DE CONCRETO ESTRUTURAL 14X19X29 CM (ESPESSURA 14 CM), FBK = 4,5 MPA, UTILIZANDO COLHER DE PEDREIRO. AF_10/2022 | D30: M2 | E30: 123.65 | F30: 0
A31: Alvenaria Estrutural - Blocos de Concreto | B31: 89462 | C31: ALVENARIA DE BLOCOS DE CONCRETO ESTRUTURAL 14X19X29 CM (ESPESSURA 14 CM), FBK = 4,5 MPA, UTILIZANDO PALHETA. AF_10/2022 | D31: M2 | E31: 105.29 | F31: 0
A32: Alvenaria Estrutural - Blocos de Concreto | B32: 104444 | C32: ALVENARIA DE BLOCOS DE CONCRETO ESTRUTURAL 14X19X29 CM (ESPESSURA 14 CM), FBK = 8 MPA, UTILIZANDO COLHER DE PEDREIRO. AF_10/2022 | D32: M2 | E32: 0
A33: Alvenaria Estrutural - Blocos de Concreto | B33: 104442 | C33: ALVENARIA DE BLOCOS DE CONCRETO ESTRUTURAL 14X19X29 CM (ESPESSURA 14 CM), FBK = 8 MPA, UTILIZANDO PALHETA. AF_10/2022 | D33: M2 | E33: 0
A34: Alvenaria Estrutural - Blocos de Concreto | B34: 89472 | C34: ALVENARIA DE BLOCOS DE CONCRETO ESTRUTURAL 14X19X39 CM (ESPESSURA 14 CM), FBK = 14 MPA, UTILIZANDO COLHER DE PEDREIRO. AF_10/2022 | D34: M2 | E34: 108.64 | F34: 0
A35: Alvenaria Estrutural - Blocos de Concreto | B35: 89455 | C35: ALVENARIA DE BLOCOS DE CONCRETO ESTRUTURAL 14X19X39 CM (ESPESSURA 14 CM), FBK = 14 MPA, UTILIZANDO PALHETA. AF_10/2022 | D35: M2 | E35: 96.42 | F35: 0
A36: Alvenaria Estrutural - Blocos de Concreto | B36: 89470 | C36: ALVENARIA DE BLOCOS DE CONCRETO ESTRUTURAL 14X19X39 CM (ESPESSURA 14 CM), FBK = 4,5 MPA, UTILIZANDO COLHER DE PEDREIRO. AF_10/2022 | D36: M2 | E36: 90.98 | F36: 0
A37: Alvenaria Estrutural - Blocos de Concreto | B37: 89453 | C37: ALVENARIA DE BLOCOS DE CONCRETO ESTRUTURAL 14X19X39 CM (ESPESSURA 14 CM), FBK = 4,5 MPA, UTILIZANDO PALHETA. AF_10/2022 | D37: M2 | E37: 79.74 | F37: 0
A38: Alvenaria Estrutural - Blocos de Concreto | B38: 104443 | C38: ALVENARIA DE BLOCOS DE CONCRETO ESTRUTURAL 14X19X39 CM (ESPESSURA 14 CM), FBK = 8 MPA, UTILIZANDO COLHER DE PEDREIRO. AF_10/2022 | D38: M2 | E38: 0
A39: Alvenaria Estrutural - Blocos de Concreto | B39: 104441 | C39: ALVENARIA DE BLOCOS DE CONCRETO ESTRUTURAL 14X19X39 CM (ESPESSURA 14 CM), FBK = 8 MPA, UTILIZANDO PALHETA. AF_10/2022 | D39: M2 | E39: 0
A40: Alvenaria de Vedação | B40: 103354 | C40: ALVENARIA DE VEDAÇÃO DE BLOCOS CERÂMICOS FURADOS NA HORIZONTAL DE 11,5X14X24 CM (ESPESSURA 11,5 CM) E ARGAMASSA DE ASSENTAMENTO COM PREPARO EM BETONEIRA. AF_12/2021 | D40: M2 | E40: 78.57 | F40: 0.0265
A41: Alvenaria de Vedação | B41: 103355 | C41: ALVENARIA DE VEDAÇÃO DE BLOCOS CERÂMICOS FURADOS NA HORIZONTAL DE 11,5X14X24 CM (ESPESSURA 11,5 CM) E ARGAMASSA DE ASSENTAMENTO COM PREPARO MANUAL. AF_12/2021 | D41: M2 | E41: 79.82 | F41: 0.0261
A42: Alvenaria de Vedação | B42: 103330 | C42: ALVENARIA DE VEDAÇÃO DE BLOCOS CERÂMICOS FURADOS NA HORIZONTAL DE 11,5X19X19 CM (ESPESSURA 11,5 CM) E ARGAMASSA DE ASSENTAMENTO COM PREPARO EM BETONEIRA. AF_12/2021 | D42: M2 | E42: 72.3 | F42: 0.0206
A43: Alvenaria de Vedação | B43: 103331 | C43: ALVENARIA DE VEDAÇÃO DE BLOCOS CERÂMICOS FURADOS NA HORIZONTAL DE 11,5X19X19 CM (ESPESSURA 11,5 CM) E ARGAMASSA DE ASSENTAMENTO COM PREPARO MANUAL. AF_12/2021 | D43: M2 | E43: 73.48 | F43: 0.0203
A44: Alvenaria de Vedação | B44: 103358 | C44: ALVENARIA DE VEDAÇÃO DE BLOCOS CERÂMICOS FURADOS NA HORIZONTAL DE 11,5X19X29 CM (ESPESSURA 11,5 CM) E ARGAMASSA DE ASSENTAMENTO COM PREPARO EM BETONEIRA. AF_12/2021 | D44: M2 | E44: 60.78 | F44: 0.0245
A45: Alvenaria de Vedação | B45: 103359 | C45: ALVENARIA DE VEDAÇÃO DE BLOCOS CERÂMICOS FURADOS NA HORIZONTAL DE 11,5X19X29 CM (ESPESSURA 11,5 CM) E ARGAMASSA DE ASSENTAMENTO COM PREPARO MANUAL. AF_12/2021 | D45: M2 | E45: 61.78 | F45: 0.0241
A46: Alvenaria de Vedação | B46: 103366 | C46: ALVENARIA DE VEDAÇÃO DE BLOCOS CERÂMICOS FURADOS NA HORIZONTAL DE 11,5X19X39 CM (ESPESSURA 11,5 CM) E ARGAMASSA DE ASSENTAMENTO COM PREPARO EM BETONEIRA. AF_12/2021 | D46: M2 | E46: 52.54 | F46: 0.0284
A47: Alvenaria de Vedação | B47: 103367 | C47: ALVENARIA DE VEDAÇÃO DE BLOCOS CERÂMICOS FURADOS NA HORIZONTAL DE 11,5X19X39 CM (ESPESSURA 11,5 CM) E ARGAMASSA DE ASSENTAMENTO COM PREPARO MANUAL. AF_12/2021 | D47: M2 | E47: 53.45 | F47: 0.0279
A48: Alvenaria de Vedação | B48: 103360 | C48: ALVENARIA DE VEDAÇÃO DE BLOCOS CERÂMICOS FURADOS NA HORIZONTAL DE 14X19X29 CM (ESPESSURA 14 CM) E ARGAMASSA DE ASSENTAMENTO COM PREPARO EM BETONEIRA. AF_12/2021 | D48: M2 | E48: 71.12 | F48: 0.0245
A49: Alvenaria de Vedação | B49: 103361 | C49: ALVENARIA DE VEDAÇÃO DE BLOCOS CERÂMICOS FURADOS NA HORIZONTAL DE 14X19X29 CM (ESPESSURA 14 CM) E ARGAMASSA DE ASSENTAMENTO COM PREPARO MANUAL. AF_12/2021 | D49: M2 | E49: 72.38 | F49: 0.024
A50: Alvenaria de Vedação | B50: 103368 | C50: ALVENARIA DE VEDAÇÃO DE BLOCOS CERÂMICOS FURADOS NA HORIZONTAL DE 14X19X39 CM (ESPESSURA 14 CM) E ARGAMASSA DE ASSENTAMENTO COM PREPARO EM BETONEIRA. AF_12/2021 | D50: M2 | E50: 59.72 | F50: 0.0291
A51: Alvenaria de Vedação | B51: 103369 | C51: ALVENARIA DE VEDAÇÃO DE BLOCOS CERÂMICOS FURADOS NA HORIZONTAL DE 14X19X39 CM (ESPESSURA 14 CM) E ARGAMASSA DE ASSENTAMENTO COM PREPARO MANUAL. AF_12/2021 | D51: M2 | E51: 60.87 | F51: 0.0286
A52: Alvenaria de Vedação | B52: 103334 | C52: ALVENARIA DE VEDAÇÃO DE BLOCOS CERÂMICOS FURADOS NA HORIZONTAL DE 14X9X19 CM (ESPESSURA 14 CM, BLOCO DEITADO) E ARGAMASSA DE ASSENTAMENTO COM PREPARO EM BETONEIRA. AF_12/2021 | D52: M2 | E52: 128.21 | F52: 0.0261
A53: Alvenaria de Vedação | B53: 103335 | C53: ALVENARIA DE VEDAÇÃO DE BLOCOS CERÂMICOS FURADOS NA HORIZONTAL DE 14X9X19 CM (ESPESSURA 14 CM, BLOCO DEITADO) E ARGAMASSA DE ASSENTAMENTO COM PREPARO MANUAL. AF_12/2021 | D53: M2 | E53: 130.42 | F53: 0.0257
A54: Alvenaria de Vedação | B54: 103362 | C54: ALVENARIA DE VEDAÇÃO DE BLOCOS CERÂMICOS FURADOS NA HORIZONTAL DE 19X19X29 CM (ESPESSURA 19 CM) E ARGAMASSA DE ASSENTAMENTO COM PREPARO EM BETONEIRA. AF_12/2021 | D54: M2 | E54: 85.83 | F54: 0.0299
A55: Alvenaria de Vedação | B55: 103363 | C55: ALVENARIA DE VEDAÇÃO DE BLOCOS CERÂMICOS FURADOS NA HORIZONTAL DE 19X19X29 CM (ESPESSURA 19 CM) E ARGAMASSA DE ASSENTAMENTO COM PREPARO MANUAL. AF_12/2021 | D55: M2 | E55: 87.25 | F55: 0.0295
A56: Alvenaria de Vedação | B56: 103370 | C56: ALVENARIA DE VEDAÇÃO DE BLOCOS CERÂMICOS FURADOS NA HORIZONTAL DE 19X19X39 CM (ESPESSURA 19 CM) E ARGAMASSA DE ASSENTAMENTO COM PREPARO EM BETONEIRA. AF_12/2021 | D56: M2 | E56: 74.72 | F56: 0.0344
A57: Alvenaria de Vedação | B57: 103371 | C57: ALVENARIA DE VEDAÇÃO DE BLOCOS CERÂMICOS FURADOS NA HORIZONTAL DE 19X19X39 CM (ESPESSURA 19 CM) E ARGAMASSA DE ASSENTAMENTO COM PREPARO MANUAL. AF_12/2021 | D57: M2 | E57: 76.02 | F57: 0.0338
A58: Alvenaria de Vedação | B58: 103332 | C58: ALVENARIA DE VEDAÇÃO DE BLOCOS CERÂMICOS FURADOS NA HORIZONTAL DE 9X14X19 CM (ESPESSURA 9 CM) E ARGAMASSA DE ASSENTAMENTO COM PREPARO EM BETONEIRA. AF_12/2021 | D58: M2 | E58: 107.95 | F58: 0.0132
A59: Alvenaria de Vedação | B59: 103333 | C59: ALVENARIA DE VEDAÇÃO DE BLOCOS CERÂMICOS FURADOS NA HORIZONTAL DE 9X14X19 CM (ESPESSURA 9 CM) E ARGAMASSA DE ASSENTAMENTO COM PREPARO MANUAL. AF_12/2021 | D59: M2 | E59: 109.21 | F59: 0.0131
A60: Alvenaria de Vedação | B60: 103352 | C60: ALVENARIA DE VEDAÇÃO DE BLOCOS CERÂMICOS FURADOS NA HORIZONTAL DE 9X14X24 CM (ESPESSURA 9 CM) E ARGAMASSA DE ASSENTAMENTO COM PREPARO EM BETONEIRA. AF_12/2021 | D60: M2 | E60: 92.22 | F60: 0.0155
A61: Alvenaria de Vedação | B61: 103353 | C61: ALVENARIA DE VEDAÇÃO DE BLOCOS CERÂMICOS FURADOS NA HORIZONTAL DE 9X14X24 CM (ESPESSURA 9 CM) E ARGAMASSA DE ASSENTAMENTO COM PREPARO MANUAL. AF_12/2021 | D61: M2 | E61: 93.39 | F61: 0.0153
A62: Alvenaria de Vedação | B62: 103328 | C62: ALVENARIA DE VEDAÇÃO DE BLOCOS CERÂMICOS FURADOS NA HORIZONTAL DE 9X19X19 CM (ESPESSURA 9 CM) E ARGAMASSA DE ASSENTAMENTO COM PREPARO EM BETONEIRA. AF_12/2021 | D62: M2 | E62: 84.12 | F62: 0.0124
A63: Alvenaria de Vedação | B63: 103329 | C63: ALVENARIA DE VEDAÇÃO DE BLOCOS CERÂMICOS FURADOS NA HORIZONTAL DE 9X19X19 CM (ESPESSURA 9 CM) E ARGAMASSA DE ASSENTAMENTO COM PREPARO MANUAL. AF_12/2021 | D63: M2 | E63: 85.22 | F63: 0.0122
A64: Alvenaria de Vedação | B64: 103356 | C64: ALVENARIA DE VEDAÇÃO DE BLOCOS CERÂMICOS FURADOS NA HORIZONTAL DE 9X19X29 CM (ESPESSURA 9 CM) E ARGAMASSA DE ASSENTAMENTO COM PREPARO EM BETONEIRA. AF_12/2021 | D64: M2 | E64: 52.72 | F64: 0.0197
A65: Alvenaria de Vedação | B65: 103357 | C65: ALVENARIA DE VEDAÇÃO DE BLOCOS CERÂMICOS FURADOS NA HORIZONTAL DE 9X19X29 CM (ESPESSURA 9 CM) E ARGAMASSA DE ASSENTAMENTO COM PREPARO MANUAL. AF_12/2021 | D65: M2 | E65: 53.65 | F65: 0.0194
A66: Alvenaria de Vedação | B66: 103364 | C66: ALVENARIA DE VEDAÇÃO DE BLOCOS CERÂMICOS FURADOS NA HORIZONTAL DE 9X19X39 CM (ESPESSURA 9 CM) E ARGAMASSA DE ASSENTAMENTO COM PREPARO EM BETONEIRA. AF_12/2021 | D66: M2 | E66: 43.7 | F66: 0.0288
A67: Alvenaria de Vedação | B67: 103365 | C67: ALVENARIA DE VEDAÇÃO DE BLOCOS CERÂMICOS FURADOS NA HORIZONTAL DE 9X19X39 CM (ESPESSURA 9 CM) E ARGAMASSA DE ASSENTAMENTO COM PREPARO MANUAL. AF_12/2021 | D67: M2 | E67: 44.31 | F67: 0.0235
A68: Alvenaria de Vedação | B68: 103350 | C68: ALVENARIA DE VEDAÇÃO DE BLOCOS CERÂMICOS FURADOS NA HORIZONTAL DE 9X9X19 CM (ESPESSURA 9 CM) E ARGAMASSA DE ASSENTAMENTO COM PREPARO EM BETONEIRA. AF_12/2021 | D68: M2 | E68: 156 | F68: 0.0128
A69: Alvenaria de Vedação | B69: 103351 | C69: ALVENARIA DE VEDAÇÃO DE BLOCOS CERÂMICOS FURADOS NA HORIZONTAL DE 9X9X19 CM (ESPESSURA 9 CM) E ARGAMASSA DE ASSENTAMENTO COM PREPARO MANUAL. AF_12/2021 | D69: M2 | E69: 157.62 | F69: 0.0127
A70: Alvenaria de Vedação | B70: 103344 | C70: ALVENARIA DE VEDAÇÃO DE BLOCOS CERÂMICOS FURADOS NA VERTICAL DE 11,5X19X29 CM (ESPESSURA 11,5 CM) E ARGAMASSA DE ASSENTAMENTO COM PREPARO EM BETONEIRA. AF_12/2021 | D70: M2 | E70: 70.9 | F70: 0.021
A71: Alvenaria de Vedação | B71: 103345 | C71: ALVENARIA DE VEDAÇÃO DE BLOCOS CERÂMICOS FURADOS NA VERTICAL DE 11,5X19X29 CM (ESPESSURA 11,5 CM) E ARGAMASSA DE ASSENTAMENTO COM PREPARO MANUAL. AF_12/2021 | D71: M2 | E71: 72.37 | F71: 0.0206
A72: Alvenaria de Vedação | B72: 103348 | C72: ALVENARIA DE VEDAÇÃO DE BLOCOS CERÂMICOS FURADOS NA VERTICAL DE 11,5X19X39 CM (ESPESSURA 11,5 CM) E ARGAMASSA DE ASSENTAMENTO COM PREPARO EM BETONEIRA. AF_12/2021 | D72: M2 | E72: 59.51 | F72: 0.025
A73: Alvenaria de Vedação | B73: 103349 | C73: ALVENARIA DE VEDAÇÃO DE BLOCOS CERÂMICOS FURADOS NA VERTICAL DE 11,5X19X39 CM (ESPESSURA 11,5 CM) E ARGAMASSA DE ASSENTAMENTO COM PREPARO MANUAL. AF_12/2021 | D73: M2 | E73: 60.85 | F73: 0.0245
A74: Alvenaria de Vedação | B74: 103346 | C74: ALVENARIA DE VEDAÇÃO DE BLOCOS CERÂMICOS FURADOS NA VERTICAL DE 14X19X29 CM (ESPESSURA 14 CM) E ARGAMASSA DE ASSENTAMENTO COM PREPARO EM BETONEIRA. AF_12/2021 | D74: M2 | E74: 79.04 | F74: 0.022
A75: Alvenaria de Vedação | B75: 103347 | C75: ALVENARIA DE VEDAÇÃO DE BLOCOS CERÂMICOS FURADOS NA VERTICAL DE 14X19X29 CM (ESPESSURA 14 CM) E ARGAMASSA DE ASSENTAMENTO COM PREPARO MANUAL. AF_12/2021 | D75: M2 | E75: 80.61 | F75: 0.0216
A76: Alvenaria de Vedação | B76: 103324 | C76: ALVENARIA DE VEDAÇÃO DE BLOCOS CERÂMICOS FURADOS NA VERTICAL DE 14X19X39 CM (ESPESSURA 14 CM) E ARGAMASSA DE ASSENTAMENTO COM PREPARO EM BETONEIRA. AF_12/2021 | D76: M2 | E76: 67.37 | F76: 0.0258
A77: Alvenaria de Vedação | B77: 103325 | C77: ALVENARIA DE VEDAÇÃO DE BLOCOS CERÂMICOS FURADOS NA VERTICAL DE 14X19X39 CM (ESPESSURA 14 CM) E ARGAMASSA DE ASSENTAMENTO COM PREPARO MANUAL. AF_12/2021 | D77: M2 | E77: 68.79 | F77: 0.0253
A78: Alvenaria de Vedação | B78: 103326 | C78: ALVENARIA DE VEDAÇÃO DE BLOCOS CERÂMICOS FURADOS NA VERTICAL DE 19X19X39 CM (ESPESSURA 19 CM) E ARGAMASSA DE ASSENTAMENTO COM PREPARO EM BETONEIRA. AF_12/2021 | D78: M2 | E78: 79.25 | F78: 0.0324
A79: Alvenaria de Vedação | B79: 103327 | C79: ALVENARIA DE VEDAÇÃO DE BLOCOS CERÂMICOS FURADOS NA VERTICAL DE 19X19X39 CM (ESPESSURA 19 CM) E ARGAMASSA DE ASSENTAMENTO COM PREPARO MANUAL. AF_12/2021 | D79: M2 | E79: 80.91 | F79: 0.0318
A80: Alvenaria de Vedação | B80: 103322 | C80: ALVENARIA DE VEDAÇÃO DE BLOCOS CERÂMICOS FURADOS NA VERTICAL DE 9X19X39 CM (ESPESSURA 9 CM) E ARGAMASSA DE ASSENTAMENTO COM PREPARO EM BETONEIRA. AF_12/2021 | D80: M2 | E80: 50.23 | F80: 0.0207
A81: Alvenaria de Vedação | B81: 103323 | C81: ALVENARIA DE VEDAÇÃO DE BLOCOS CERÂMICOS FURADOS NA VERTICAL DE 9X19X39 CM (ESPESSURA 9 CM) E ARGAMASSA DE ASSENTAMENTO COM PREPARO MANUAL. AF_12/2021 | D81: M2 | E81: 51.48 | F81: 0.0202
A82: Alvenaria de Vedação | B82: 103338 | C82: ALVENARIA DE VEDAÇÃO DE BLOCOS VAZADOS DE CONCRETO APARENTE DE 14X19X39 CM (ESPESSURA 14 CM) E ARGAMASSA DE ASSENTAMENTO COM PREPARO EM BETONEIRA. AF_12/2021 | D82: M2 | E82: 103.72 | F82: 0.0168
A83: Alvenaria de Vedação | B83: 103339 | C83: ALVENARIA DE VEDAÇÃO DE BLOCOS VAZADOS DE CONCRETO APARENTE DE 14X19X39 CM (ESPESSURA 14 CM) E ARGAMASSA DE ASSENTAMENTO COM PREPARO MANUAL. AF_12/2021 | D83: M2 | E83: 104.95 | F83: 0.0166
A84: Alvenaria de Vedação | B84: 103340 | C84: ALVENARIA DE VEDAÇÃO DE BLOCOS VAZADOS DE CONCRETO APARENTE DE 19X19X39 CM (ESPESSURA 19 CM) E ARGAMASSA DE ASSENTAMENTO COM PREPARO EM BETONEIRA. AF_12/2021 | D84: M2 | E84: 125.33 | F84: 0.0205
A85: Alvenaria de Vedação | B85: 103341 | C85: ALVENARIA DE VEDAÇÃO DE BLOCOS VAZADOS DE CONCRETO APARENTE DE 19X19X39 CM (ESPESSURA 19 CM) E ARGAMASSA DE ASSENTAMENTO COM PREPARO MANUAL. AF_12/2021 | D85: M2 | E85: 126.88 | F85: 0.0203
A86: Alvenaria de Vedação | B86: 103336 | C86: ALVENARIA DE VEDAÇÃO DE BLOCOS VAZADOS DE CONCRETO APARENTE DE 9X19X39 CM (ESPESSURA 9 CM) E ARGAMASSA DE ASSENTAMENTO COM PREPARO EM BETONEIRA. AF_12/2021 | D86: M2 | E86: 78.92 | F86: 0.0132
A87: Alvenaria de Vedação | B87: 103337 | C87: ALVENARIA DE VEDAÇÃO DE BLOCOS VAZADOS DE CONCRETO APARENTE DE 9X19X39 CM (ESPESSURA 9 CM) E ARGAMASSA DE ASSENTAMENTO COM PREPARO MANUAL. AF_12/2021 | D87: M2 | E87: 79.97 | F87: 0.013
A88: Alvenaria de Vedação | B88: 103342 | C88: ALVENARIA DE VEDAÇÃO DE BLOCOS VAZADOS DE CONCRETO DE 14X19X29 CM (ESPESSURA 14 CM) E ARGAMASSA DE ASSENTAMENTO COM PREPARO EM BETONEIRA. AF_12/2021 | D88: M2 | E88: 105.96 | F88: 0.0164
A89: Alvenaria de Vedação | B89: 103343 | C89: ALVENARIA DE VEDAÇÃO DE BLOCOS VAZADOS DE CONCRETO DE 14X19X29 CM (ESPESSURA 14 CM) E ARGAMASSA DE ASSENTAMENTO COM PREPARO MANUAL. AF_12/2021 | D89: M2 | E89: 107.33 | F89: 0.0162
A90: Alvenaria de Vedação | B90: 103318 | C90: ALVENARIA DE VEDAÇÃO DE BLOCOS VAZADOS DE CONCRETO DE 14X19X39 CM (ESPESSURA 14 CM) E ARGAMASSA DE ASSENTAMENTO COM PREPARO EM BETONEIRA. AF_12/2021 | D90: M2 | E90: 90.81 | F90: 0.0192
A91: Alvenaria de Vedação | B91: 103319 | C91: ALVENARIA DE VEDAÇÃO DE BLOCOS VAZADOS DE CONCRETO DE 14X19X39 CM (ESPESSURA 14 CM) E ARGAMASSA DE ASSENTAMENTO COM PREPARO MANUAL. AF_12/2021 | D91: M2 | E91: 92.04 | F91: 0.0189
A92: Alvenaria de Vedação | B92: 103320 | C92: ALVENARIA DE VEDAÇÃO DE BLOCOS VAZADOS DE CONCRETO DE 19X19X39 CM (ESPESSURA 19 CM) E ARGAMASSA DE ASSENTAMENTO COM PREPARO EM BETONEIRA. AF_12/2021 | D92: M2 | E92: 109.02 | F92: 0.0236
A93: Alvenaria de Vedação | B93: 103321 | C93: ALVENARIA DE VEDAÇÃO DE BLOCOS VAZADOS DE CONCRETO DE 19X19X39 CM (ESPESSURA 19 CM) E ARGAMASSA DE ASSENTAMENTO COM PREPARO MANUAL. AF_12/2021 | D93: M2 | E93: 110.57 | F93: 0.0232
A94: Alvenaria de Vedação | B94: 103316 | C94: ALVENARIA DE VEDAÇÃO DE BLOCOS VAZADOS DE CONCRETO DE 9X19X39 CM (ESPESSURA 9 CM) E ARGAMASSA DE ASSENTAMENTO COM PREPARO EM BETONEIRA. AF_12/2021 | D94: M2 | E94: 70.07 | F94: 0.0148
A95: Alvenaria de Vedação | B95: 103317 | C95: ALVENARIA DE VEDAÇÃO DE BLOCOS VAZADOS DE CONCRETO DE 9X19X39 CM (ESPESSURA 9 CM) E ARGAMASSA DE ASSENTAMENTO COM PREPARO MANUAL. AF_12/2021 | D95: M2 | E95: 71.12 | F95: 0.0146
A96: Alvenarias Diversas | B96: 101166 | C96: ALVENARIA DE EMBASAMENTO COM BLOCO ESTRUTURAL DE CERÂMICA, DE 14X19X29CM E ARGAMASSA DE ASSENTAMENTO COM PREPARO EM BETONEIRA. AF_05/2020 | D96: M3 | E96: 576.99 | F96: 0
A97: Alvenarias Diversas | B97: 101165 | C97: ALVENARIA DE EMBASAMENTO COM BLOCO ESTRUTURAL DE CONCRETO, DE 14X19X29CM E ARGAMASSA DE ASSENTAMENTO COM PREPARO EM BETONEIRA. AF_05/2020 | D97: M3 | E97: 906.34 | F97: 0
A98: Alvenarias Diversas | B98: 101163 | C98: ALVENARIA DE VEDAÇÃO COM BLOCO DE VIDRO VAZADO, TIPO VENEZIANA, DE 6X20X20CM E ARGAMASSA DE ASSENTAMENTO COM PREPARO EM BETONEIRA. AF_05/2020 | D98: M2 | E98: 677.03 | F98: 0.7537
A99: Alvenarias Diversas | B99: 101164 | C99: ALVENARIA DE VEDAÇÃO COM BLOCO DE VIDRO, TIPO CANELADO, DE 8X19X19CM E ARGAMASSA DE ASSENTAMENTO COM PREPARO EM BETONEIRA. AF_05/2020 | D99: M2 | E99: 687.35 | F99: 0.7513
A100: Alvenarias Diversas | B100: 101162 | C100: ALVENARIA DE VEDAÇÃO COM ELEMENTO VAZADO DE CERÂMICA (COBOGÓ) DE 7X20X20CM E ARGAMASSA DE ASSENTAMENTO COM PREPARO EM BETONEIRA. AF_05/2020 | D100: M2 | E100: 136.07 | F100: 0
A101: Alvenarias Diversas | B101: 101161 | C101: ALVENARIA DE VEDAÇÃO COM ELEMENTO VAZADO DE CONCRETO (COBOGÓ) DE 7X50X50CM E ARGAMASSA DE ASSENTAMENTO COM PREPARO EM BETONEIRA. AF_05/2020 | D101: M2 | E101: 207.09 | F101: 0
A102: Alvenarias Diversas | B102: 101160 | C102: ALVENARIA DE VEDAÇÃO DE BLOCO DE SOLO-CIMENTO (TIJOLO ECOLÓGICO) DE 7X15X30CM (ESPESSURA 15CM). AF_05/2020 | D102: M2 | E102: 0
A103: Alvenarias Diversas | B103: 101159 | C103: ALVENARIA DE VEDAÇÃO DE BLOCOS CERÂMICOS MACIÇOS DE 5X10X20CM (ESPESSURA 10CM) E ARGAMASSA DE ASSENTAMENTO COM PREPARO EM BETONEIRA. AF_05/2020 | D103: M2 | E103: 120.33 | F103: 0
A104: Alvenarias Diversas | B104: 101154 | C104: ALVENARIA DE VEDAÇÃO DE BLOCOS DE CONCRETO CELULAR DE 10X30X60CM (ESPESSURA 10CM) E ARGAMASSA DE ASSENTAMENTO COM PREPARO EM BETONEIRA. AF_05/2020 | D104: M2 | E104: 128.32 | F104: 0.6933
A105: Alvenarias Diversas | B105: 101155 | C105: ALVENARIA DE VEDAÇÃO DE BLOCOS DE CONCRETO CELULAR DE 15X30X60CM (ESPESSURA 15CM) E ARGAMASSA DE ASSENTAMENTO COM PREPARO EM BETONEIRA. AF_05/2020 | D105: M2 | E105: 180.24 | F105: 0.7255
A106: Alvenarias Diversas | B106: 101156 | C106: ALVENARIA DE VEDAÇÃO DE BLOCOS DE CONCRETO CELULAR DE 20X30X60CM (ESPESSURA 20CM) E ARGAMASSA DE ASSENTAMENTO COM PREPARO EM BETONEIRA. AF_05/2020 | D106: M2 | E106: 264.48 | F106: 0.758
A107: Alvenarias Diversas | B107: 101158 | C107: ALVENARIA DE VEDAÇÃO DE BLOCOS DE GESSO DE 10X50X66CM (ESPESSURA 10CM). AF_05/2020 | D107: M2 | E107: 91.61 | F107: 0
A108: Alvenarias Diversas | B108: 101157 | C108: ALVENARIA DE VEDAÇÃO DE BLOCOS DE GESSO DE 7X50X66CM (ESPESSURA 7CM). AF_05/2020 | D108: M2 | E108: 69.71 | F108: 0
A109: Argamassas | B109: 87382 | C109: ARGAMASSA INDUSTRIALIZADA MULTIUSO PARA REVESTIMENTOS E ASSENTAMENTO DA ALVENARIA, PREPARO COM MISTURADOR DE EIXO HORIZONTAL DE 160 KG. AF_08/2019 | D109: M3 | E109: 1917.95 | F109: 0
A110: Argamassas | B110: 87383 | C110: ARGAMASSA INDUSTRIALIZADA MULTIUSO PARA REVESTIMENTOS E ASSENTAMENTO DA ALVENARIA, PREPARO COM MISTURADOR DE EIXO HORIZONTAL DE 300 KG. AF_08/2019 | D110: M3 | E110: 1912.68 | F110: 0
A111: Argamassas | B111: 87384 | C111: ARGAMASSA INDUSTRIALIZADA MULTIUSO PARA REVESTIMENTOS E ASSENTAMENTO DA ALVENARIA, PREPARO COM MISTURADOR DE EIXO HORIZONTAL DE 600 KG. AF_08/2019 | D111: M3 | E111: 1902.41 | F111: 0
A112: Argamassas | B112: 87398 | C112: ARGAMASSA INDUSTRIALIZADA MULTIUSO PARA REVESTIMENTOS E ASSENTAMENTO DA ALVENARIA, PREPARO MANUAL. AF_08/2019 | D112: M3 | E112: 2125.4 | F112: 0
A113: Argamassas | B113: 87395 | C113: ARGAMASSA INDUSTRIALIZADA PARA CHAPISCO COLANTE, PREPARO COM MISTURADOR DE EIXO HORIZONTAL DE 160 KG. AF_08/2019 | D113: M3 | E113: 3747.35 | F113: 0
A114: Argamassas | B114: 87396 | C114: ARGAMASSA INDUSTRIALIZADA PARA CHAPISCO COLANTE, PREPARO COM MISTURADOR DE EIXO HORIZONTAL DE 300 KG. AF_08/2019 | D114: M3 | E114: 3768.9 | F114: 0
A115: Argamassas | B115: 87397 | C115: ARGAMASSA INDUSTRIALIZADA PARA CHAPISCO COLANTE, PREPARO COM MISTURADOR DE EIXO HORIZONTAL DE 600 KG. AF_08/2019 | D115: M3 | E115: 3790.29 | F115: 0
A116: Argamassas | B116: 87402 | C116: ARGAMASSA INDUSTRIALIZADA PARA CHAPISCO COLANTE, PREPARO MANUAL. AF_08/2019 | D116: M3 | E116: 4013.22 | F116: 0
A117: Argamassas | B117: 87391 | C117: ARGAMASSA INDUSTRIALIZADA PARA CHAPISCO ROLADO, PREPARO COM MISTURADOR DE EIXO HORIZONTAL DE 160 KG. AF_08/2019 | D117: M3 | E117: 5917.37 | F117: 0
A118: Argamassas | B118: 87393 | C118: ARGAMASSA INDUSTRIALIZADA PARA CHAPISCO ROLADO, PREPARO COM MISTURADOR DE EIXO HORIZONTAL DE 300 KG. AF_08/2019 | D118: M3 | E118: 5968.06 | F118: 0
A119: Argamassas | B119: 87394 | C119: ARGAMASSA INDUSTRIALIZADA PARA CHAPISCO ROLADO, PREPARO COM MISTURADOR DE EIXO HORIZONTAL DE 600 KG. AF_08/2019 | D119: M3 | E119: 6017.29 | F119: 0
A120: Argamassas | B120: 87401 | C120: ARGAMASSA INDUSTRIALIZADA PARA CHAPISCO ROLADO, PREPARO MANUAL. AF_08/2019 | D120: M3 | E120: 6227.67 | F120: 0
A121: Argamassas | B121: 87407 | C121: ARGAMASSA INDUSTRIALIZADA PARA REVESTIMENTOS, MISTURA E PROJEÇÃO DE 1,5 M³/H DE ARGAMASSA. AF_08/2019 | D121: M3 | E121: 1958.53 | F121: 0
A122: Argamassas | B122: 87408 | C122: ARGAMASSA INDUSTRIALIZADA PARA REVESTIMENTOS, MISTURA E PROJEÇÃO DE 2 M³/H DE ARGAMASSA. AF_08/2019 | D122: M3 | E122: 1944.1 | F122: 0
A123: Argamassas | B123: 87404 | C123: ARGAMASSA PARA REVESTIMENTO DECORATIVO MONOCAMADA (MONOCAPA), MISTURA E PROJEÇÃO DE 1,5 M3/H DE ARGAMASSA. AF_08/2019 | D123: M3 | E123: 5542.49 | F123: 0
A124: Argamassas | B124: 87405 | C124: ARGAMASSA PARA REVESTIMENTO DECORATIVO MONOCAMADA (MONOCAPA), MISTURA E PROJEÇÃO DE 2 M3/H DE ARGAMASSA. AF_08/2019 | D124: M3 | E124: 5553.25 | F124: 0
A125: Argamassas | B125: 87388 | C125: ARGAMASSA PARA REVESTIMENTO DECORATIVO MONOCAMADA (MONOCAPA), PREPARO COM MISTURADOR DE EIXO HORIZONTAL DE 160 KG. AF_08/2019 | D125: M3 | E125: 5328.21 | F125: 0
A126: Argamassas | B126: 87389 | C126: ARGAMASSA PARA REVESTIMENTO DECORATIVO MONOCAMADA (MONOCAPA), PREPARO COM MISTURADOR DE EIXO HORIZONTAL DE 300 KG. AF_08/2019 | D126: M3 | E126: 5347.1 | F126: 0
A127: Argamassas | B127: 87390 | C127: ARGAMASSA PARA REVESTIMENTO DECORATIVO MONOCAMADA (MONOCAPA), PREPARO COM MISTURADOR DE EIXO HORIZONTAL DE 600 KG. AF_08/2019 | D127: M3 | E127: 5372.1 | F127: 0
A128: Argamassas | B128: 87385 | C128: ARGAMASSA PRONTA PARA CONTRAPISO, PREPARO COM MISTURADOR DE EIXO HORIZONTAL DE 160 KG. AF_08/2019 | D128: M3 | E128: 2232.76 | F128: 0
A129: Argamassas | B129: 87386 | C129: ARGAMASSA PRONTA PARA CONTRAPISO, PREPARO COM MISTURADOR DE EIXO HORIZONTAL DE 300 KG. AF_08/2019 | D129: M3 | E129: 2221.82 | F129: 0
A130: Argamassas | B130: 87387 | C130: ARGAMASSA PRONTA PARA CONTRAPISO, PREPARO COM MISTURADOR DE EIXO HORIZONTAL DE 600 KG. AF_08/2019 | D130: M3 | E130: 2213.64 | F130: 0
A131: Argamassas | B131: 87399 | C131: ARGAMASSA PRONTA PARA CONTRAPISO, PREPARO MANUAL. AF_08/2019 | D131: M3 | E131: 2441.9 | F131: 0
A132: Argamassas | B132: 88627 | C132: ARGAMASSA TRAÇO 1:0,5:4,5 (EM VOLUME DE CIMENTO, CAL E AREIA MÉDIA ÚMIDA) PARA ASSENTAMENTO DE ALVENARIA, PREPARO MANUAL. AF_08/2019 | D132: M3 | E132: 655.96 | F132: 0
A133: Argamassas | B133: 100463 | C133: ARGAMASSA TRAÇO 1:0,5:4,5 (EM VOLUME DE CIMENTO, CAL E AREIA MÉDIA ÚMIDA), PREPARO MECÂNICO COM BETONEIRA 250 L. AF_08/2019 | D133: M3 | E133: 0
A134: Argamassas | B134: 88626 | C134: ARGAMASSA TRAÇO 1:0,5:4,5 (EM VOLUME DE CIMENTO, CAL E AREIA MÉDIA ÚMIDA), PREPARO MECÂNICO COM BETONEIRA 400 L. AF_08/2019 | D134: M3 | E134: 561.86 | F134: 0
A135: Argamassas | B135: 100488 | C135: ARGAMASSA TRAÇO 1:0,5:4,5 (EM VOLUME DE CIMENTO, CAL E AREIA MÉDIA ÚMIDA), PREPARO MECÂNICO COM BETONEIRA 600 L. AF_08/2019 | D135: M3 | E135: 550.9 | F135: 0
A136: Argamassas | B136: 100464 | C136: ARGAMASSA TRAÇO 1:0,5:4,5 (EM VOLUME DE CIMENTO, CAL E AREIA MÉDIA ÚMIDA), PREPARO MECÂNICO COM MISTURADOR DE EIXO HORIZONTAL DE 160 KG. AF_08/2019 | D136: M3 | E136: 590.62 | F136: 0
A137: Argamassas | B137: 100465 | C137: ARGAMASSA TRAÇO 1:0,5:4,5 (EM VOLUME DE CIMENTO, CAL E AREIA MÉDIA ÚMIDA), PREPARO MECÂNICO COM MISTURADOR DE EIXO HORIZONTAL DE 300 KG. AF_08/2019 | D137: M3 | E137: 548.56 | F137: 0
A138: Argamassas | B138: 100466 | C138: ARGAMASSA TRAÇO 1:0,5:4,5 (EM VOLUME DE CIMENTO, CAL E AREIA MÉDIA ÚMIDA), PREPARO MECÂNICO COM MISTURADOR DE EIXO HORIZONTAL DE 600 KG. AF_08/2019 | D138: M3 | E138: 526.59 | F138: 0
A139: Argamassas | B139: 87368 | C139: ARGAMASSA TRAÇO 1:1,5:7,5 (EM VOLUME DE CIMENTO, CAL E AREIA MÉDIA ÚMIDA) PARA EMBOÇO/MASSA ÚNICA/ASSENTAMENTO DE ALVENARIA DE VEDAÇÃO, PREPARO MANUAL. AF_08/2019 | D139: M3 | E139: 693.05 | F139: 0
A140: Argamassas | B140: 100450 | C140: ARGAMASSA TRAÇO 1:1,5:7,5 (EM VOLUME DE CIMENTO, CAL E AREIA MÉDIA ÚMIDA) PARA EMBOÇO/MASSA ÚNICA/ASSENTAMENTO DE ALVENARIA DE VEDAÇÃO, PREPARO MECÂNICO COM BETONEIRA 250 L. AF_08/2019 | D140: M3 | E140: 0
A141: Argamassas | B141: 87289 | C141: ARGAMASSA TRAÇO 1:1,5:7,5 (EM VOLUME DE CIMENTO, CAL E AREIA MÉDIA ÚMIDA) PARA EMBOÇO/MASSA ÚNICA/ASSENTAMENTO DE ALVENARIA DE VEDAÇÃO, PREPARO MECÂNICO COM BETONEIRA 400 L. AF_08/2019 | D141: M3 | E141: 576.19 | F141: 0
A142: Argamassas | B142: 87290 | C142: ARGAMASSA TRAÇO 1:1,5:7,5 (EM VOLUME DE CIMENTO, CAL E AREIA MÉDIA ÚMIDA) PARA EMBOÇO/MASSA ÚNICA/ASSENTAMENTO DE ALVENARIA DE VEDAÇÃO, PREPARO MECÂNICO COM BETONEIRA 600 L. AF_08/2019 | D142: M3 | E142: 564.31 | F142: 0
A143: Argamassas | B143: 87333 | C143: ARGAMASSA TRAÇO 1:1,5:7,5 (EM VOLUME DE CIMENTO, CAL E AREIA MÉDIA ÚMIDA) PARA EMBOÇO/MASSA ÚNICA/ASSENTAMENTO DE ALVENARIA DE VEDAÇÃO, PREPARO MECÂNICO COM MISTURADOR DE EIXO HORIZONTAL DE 300 KG. AF_08/2019 | D143: M3 | E143: 581.66 | F143: 0
A144: Argamassas | B144: 87334 | C144: ARGAMASSA TRAÇO 1:1,5:7,5 (EM VOLUME DE CIMENTO, CAL E AREIA MÉDIA ÚMIDA) PARA EMBOÇO/MASSA ÚNICA/ASSENTAMENTO DE ALVENARIA DE VEDAÇÃO, PREPARO MECÂNICO COM MISTURADOR DE EIXO HORIZONTAL DE 600 KG. AF_08/2019 | D144: M3 | E144: 539.71 | F144: 0
A145: Argamassas | B145: 105515 | C145: ARGAMASSA TRAÇO 1:1,93 (EM VOLUME DE CIMENTO E AREIA MÉDIA ÚMIDA), FCK 20MPA, PREPARO MECÂNICO COM MISTURADOR DUPLO HORIZONTAL DE ALTA TURBULÊNCIA. AF_03/2020 | D145: M3 | E145: 824.48 | F145: 0
A146: Argamassas | B146: 87367 | C146: ARGAMASSA TRAÇO 1:1:6 (EM VOLUME DE CIMENTO, CAL E AREIA MÉDIA ÚMIDA) PARA EMBOÇO/MASSA ÚNICA/ASSENTAMENTO DE ALVENARIA DE VEDAÇÃO, PREPARO MANUAL. AF_08/2019 | D146: M3 | E146: 704.22 | F146: 0
A147: Argamassas | B147: 100449 | C147: ARGAMASSA TRAÇO 1:1:6 (EM VOLUME DE CIMENTO, CAL E AREIA MÉDIA ÚMIDA) PARA EMBOÇO/MASSA ÚNICA/ASSENTAMENTO DE ALVENARIA DE VEDAÇÃO, PREPARO MECÂNICO COM BETONEIRA 250 L. AF_08/2019 | D147: M3 | E147: 0
A148: Argamassas | B148: 87286 | C148: ARGAMASSA TRAÇO 1:1:6 (EM VOLUME DE CIMENTO, CAL E AREIA MÉDIA ÚMIDA) PARA EMBOÇO/MASSA ÚNICA/ASSENTAMENTO DE ALVENARIA DE VEDAÇÃO, PREPARO MECÂNICO COM BETONEIRA 400 L. AF_08/2019 | D148: M3 | E148: 592.21 | F148: 0
A149: Argamassas | B149: 87287 | C149: ARGAMASSA TRAÇO 1:1:6 (EM VOLUME DE CIMENTO, CAL E AREIA MÉDIA ÚMIDA) PARA EMBOÇO/MASSA ÚNICA/ASSENTAMENTO DE ALVENARIA DE VEDAÇÃO, PREPARO MECÂNICO COM BETONEIRA 600 L. AF_08/2019 | D149: M3 | E149: 570.65 | F149: 0
A150: Argamassas | B150: 87331 | C150: ARGAMASSA TRAÇO 1:1:6 (EM VOLUME DE CIMENTO, CAL E AREIA MÉDIA ÚMIDA) PARA EMBOÇO/MASSA ÚNICA/ASSENTAMENTO DE ALVENARIA DE VEDAÇÃO, PREPARO MECÂNICO COM MISTURADOR DE EIXO HORIZONTAL DE 300 KG. AF_08/2019 | D150: M3 | E150: 616.62 | F150: 0
A151: Argamassas | B151: 87332 | C151: ARGAMASSA TRAÇO 1:1:6 (EM VOLUME DE CIMENTO, CAL E AREIA MÉDIA ÚMIDA) PARA EMBOÇO/MASSA ÚNICA/ASSENTAMENTO DE ALVENARIA DE VEDAÇÃO, PREPARO MECÂNICO COM MISTURADOR DE EIXO HORIZONTAL DE 600 KG. AF_08/2019 | D151: M3 | E151: 548.42 | F151: 0
A152: Argamassas | B152: 87369 | C152: ARGAMASSA TRAÇO 1:2:8 (EM VOLUME DE CIMENTO, CAL E AREIA MÉDIA ÚMIDA) PARA EMBOÇO/MASSA ÚNICA/ASSENTAMENTO DE ALVENARIA DE VEDAÇÃO, PREPARO MANUAL. AF_08/2019 | D152: M3 | E152: 715.09 | F152: 0
A153: Argamassas | B153: 100451 | C153: ARGAMASSA TRAÇO 1:2:8 (EM VOLUME DE CIMENTO, CAL E AREIA MÉDIA ÚMIDA) PARA EMBOÇO/MASSA ÚNICA/ASSENTAMENTO DE ALVENARIA DE VEDAÇÃO, PREPARO MECÂNICO COM BETONEIRA 250 L. AF_08/2019 | D153: M3 | E153: 0
A154: Argamassas | B154: 87292 | C154: ARGAMASSA TRAÇO 1:2:8 (EM VOLUME DE CIMENTO, CAL E AREIA MÉDIA ÚMIDA) PARA EMBOÇO/MASSA ÚNICA/ASSENTAMENTO DE ALVENARIA DE VEDAÇÃO, PREPARO MECÂNICO COM BETONEIRA 400 L. AF_08/2019 | D154: M3 | E154: 594.32 | F154: 0
A155: Argamassas | B155: 87335 | C155: ARGAMASSA TRAÇO 1:2:8 (EM VOLUME DE CIMENTO, CAL E AREIA MÉDIA ÚMIDA) PARA EMBOÇO/MASSA ÚNICA/ASSENTAMENTO DE ALVENARIA DE VEDAÇÃO, PREPARO MECÂNICO COM MISTURADOR DE EIXO HORIZONTAL DE 300 KG. AF_08/2019 | D155: M3 | E155: 573.6 | F155: 0
A156: Argamassas | B156: 87336 | C156: ARGAMASSA TRAÇO 1:2:8 (EM VOLUME DE CIMENTO, CAL E AREIA MÉDIA ÚMIDA) PARA EMBOÇO/MASSA ÚNICA/ASSENTAMENTO DE ALVENARIA DE VEDAÇÃO, PREPARO MECÂNICO COM MISTURADOR DE EIXO HORIZONTAL DE 600 KG. AF_08/2019 | D156: M3 | E156: 562.8 | F156: 0
A157: Argamassas | B157: 87370 | C157: ARGAMASSA TRAÇO 1:2:9 (EM VOLUME DE CIMENTO, CAL E AREIA MÉDIA ÚMIDA) PARA EMBOÇO/MASSA ÚNICA/ASSENTAMENTO DE ALVENARIA DE VEDAÇÃO, PREPARO MANUAL. AF_08/2019 | D157: M3 | E157: 687.45 | F157: 0
A158: Argamassas | B158: 100452 | C158: ARGAMASSA TRAÇO 1:2:9 (EM VOLUME DE CIMENTO, CAL E AREIA MÉDIA ÚMIDA) PARA EMBOÇO/MASSA ÚNICA/ASSENTAMENTO DE ALVENARIA DE VEDAÇÃO, PREPARO MECÂNICO COM BETONEIRA 250 L. AF_08/2019 | D158: M3 | E158: 0
A159: Argamassas | B159: 88715 | C159: ARGAMASSA TRAÇO 1:2:9 (EM VOLUME DE CIMENTO, CAL E AREIA MÉDIA ÚMIDA) PARA EMBOÇO/MASSA ÚNICA/ASSENTAMENTO DE ALVENARIA DE VEDAÇÃO, PREPARO MECÂNICO COM BETONEIRA 400 L. AF_08/2019 | D159: M3 | E159: 559.46 | F159: 0
A160: Argamassas | B160: 87294 | C160: ARGAMASSA TRAÇO 1:2:9 (EM VOLUME DE CIMENTO, CAL E AREIA MÉDIA ÚMIDA) PARA EMBOÇO/MASSA ÚNICA/ASSENTAMENTO DE ALVENARIA DE VEDAÇÃO, PREPARO MECÂNICO COM BETONEIRA 600 L. AF_08/2019 | D160: M3 | E160: 564.32 | F160: 0
A161: Argamassas | B161: 87337 | C161: ARGAMASSA TRAÇO 1:2:9 (EM VOLUME DE CIMENTO, CAL E AREIA MÉDIA ÚMIDA) PARA EMBOÇO/MASSA ÚNICA/ASSENTAMENTO DE ALVENARIA DE VEDAÇÃO, PREPARO MECÂNICO COM MISTURADOR DE EIXO HORIZONTAL DE 300 KG. AF_08/2019 | D161: M3 | E161: 568.76 | F161: 0
A162: Argamassas | B162: 100487 | C162: ARGAMASSA TRAÇO 1:2:9 (EM VOLUME DE CIMENTO, CAL E AREIA MÉDIA ÚMIDA) PARA EMBOÇO/MASSA ÚNICA/ASSENTAMENTO DE ALVENARIA DE VEDAÇÃO, PREPARO MECÂNICO COM MISTURADOR DE EIXO HORIZONTAL DE 600 KG. AF_08/2019 | D162: M3 | E162: 531.05 | F162: 0
A163: Argamassas | B163: 87380 | C163: ARGAMASSA TRAÇO 1:3 (EM VOLUME DE CIMENTO E AREIA GROSSA ÚMIDA) COM ADIÇÃO DE EMULSÃO POLIMÉRICA PARA CHAPISCO ROLADO, PREPARO MANUAL. AF_08/2019 | D163: M3 | E163: 4673.67 | F163: 0
A164: Argamassas | B164: 100461 | C164: ARGAMASSA TRAÇO 1:3 (EM VOLUME DE CIMENTO E AREIA GROSSA ÚMIDA) COM ADIÇÃO DE EMULSÃO POLIMÉRICA PARA CHAPISCO ROLADO, PREPARO MECÂNICO COM BETONEIRA 250 L. AF_08/2019 | D164: M3 | E164: 0
A165: Argamassas | B165: 87322 | C165: ARGAMASSA TRAÇO 1:3 (EM VOLUME DE CIMENTO E AREIA GROSSA ÚMIDA) COM ADIÇÃO DE EMULSÃO POLIMÉRICA PARA CHAPISCO ROLADO, PREPARO MECÂNICO COM BETONEIRA 400 L. AF_08/2019 | D165: M3 | E165: 4597.48 | F165: 0
A166: Argamassas | B166: 87323 | C166: ARGAMASSA TRAÇO 1:3 (EM VOLUME DE CIMENTO E AREIA GROSSA ÚMIDA) COM ADIÇÃO DE EMULSÃO POLIMÉRICA PARA CHAPISCO ROLADO, PREPARO MECÂNICO COM BETONEIRA 600 L. AF_08/2019 | D166: M3 | E166: 4597.48 | F166: 0
A167: Argamassas | B167: 87360 | C167: ARGAMASSA TRAÇO 1:3 (EM VOLUME DE CIMENTO E AREIA GROSSA ÚMIDA) COM ADIÇÃO DE EMULSÃO POLIMÉRICA PARA CHAPISCO ROLADO, PREPARO MECÂNICO COM MISTURADOR DE EIXO HORIZONTAL DE 160 KG. AF_08/2019 | D167: M3 | E167: 4533.35 | F167: 0
A168: Argamassas | B168: 87361 | C168: ARGAMASSA TRAÇO 1:3 (EM VOLUME DE CIMENTO E AREIA GROSSA ÚMIDA) COM ADIÇÃO DE EMULSÃO POLIMÉRICA PARA CHAPISCO ROLADO, PREPARO MECÂNICO COM MISTURADOR DE EIXO HORIZONTAL DE 300 KG. AF_08/2019 | D168: M3 | E168: 4489.32 | F168: 0
A169: Argamassas | B169: 87362 | C169: ARGAMASSA TRAÇO 1:3 (EM VOLUME DE CIMENTO E AREIA GROSSA ÚMIDA) COM ADIÇÃO DE EMULSÃO POLIMÉRICA PARA CHAPISCO ROLADO, PREPARO MECÂNICO COM MISTURADOR DE EIXO HORIZONTAL DE 600 KG. AF_08/2019 | D169: M3 | E169: 4492.19 | F169: 0
A170: Argamassas | B170: 87377 | C170: ARGAMASSA TRAÇO 1:3 (EM VOLUME DE CIMENTO E AREIA GROSSA ÚMIDA) PARA CHAPISCO CONVENCIONAL, PREPARO MANUAL. AF_08/2019 | D170: M3 | E170: 655.54 | F170: 0
A171: Argamassas | B171: 100458 | C171: ARGAMASSA TRAÇO 1:3 (EM VOLUME DE CIMENTO E AREIA GROSSA ÚMIDA) PARA CHAPISCO CONVENCIONAL, PREPARO MECÂNICO COM BETONEIRA 250 L. AF_08/2019 | D171: M3 | E171: 0
A172: Argamassas | B172: 87313 | C172: ARGAMASSA TRAÇO 1:3 (EM VOLUME DE CIMENTO E AREIA GROSSA ÚMIDA) PARA CHAPISCO CONVENCIONAL, PREPARO MECÂNICO COM BETONEIRA 400 L. AF_08/2019 | D172: M3 | E172: 527.73 | F172: 0
A173: Argamassas | B173: 87314 | C173: ARGAMASSA TRAÇO 1:3 (EM VOLUME DE CIMENTO E AREIA GROSSA ÚMIDA) PARA CHAPISCO CONVENCIONAL, PREPARO MECÂNICO COM BETONEIRA 600 L. AF_08/2019 | D173: M3 | E173: 517.28 | F173: 0
A174: Argamassas | B174: 87352 | C174: ARGAMASSA TRAÇO 1:3 (EM VOLUME DE CIMENTO E AREIA GROSSA ÚMIDA) PARA CHAPISCO CONVENCIONAL, PREPARO MECÂNICO COM MISTURADOR DE EIXO HORIZONTAL DE 160 KG. AF_08/2019 | D174: M3 | E174: 617.51 | F174: 0
A175: Argamassas | B175: 87353 | C175: ARGAMASSA TRAÇO 1:3 (EM VOLUME DE CIMENTO E AREIA GROSSA ÚMIDA) PARA CHAPISCO CONVENCIONAL, PREPARO MECÂNICO COM MISTURADOR DE EIXO HORIZONTAL DE 300 KG. AF_08/2019 | D175: M3 | E175: 533.6 | F175: 0
A176: Argamassas | B176: 87354 | C176: ARGAMASSA TRAÇO 1:3 (EM VOLUME DE CIMENTO E AREIA GROSSA ÚMIDA) PARA CHAPISCO CONVENCIONAL, PREPARO MECÂNICO COM MISTURADOR DE EIXO HORIZONTAL DE 600 KG. AF_08/2019 | D176: M3 | E176: 494.68 | F176: 0
A177: Argamassas | B177: 100480 | C177: ARGAMASSA TRAÇO 1:3 (EM VOLUME DE CIMENTO E AREIA MÉDIA ÚMIDA) COM ADIÇÃO DE IMPERMEABILIZANTE, PREPARO MANUAL. AF_08/2019 | D177: M3 | E177: 857.35 | F177: 0
A178: Argamassas | B178: 100476 | C178: ARGAMASSA TRAÇO 1:3 (EM VOLUME DE CIMENTO E AREIA MÉDIA ÚMIDA) COM ADIÇÃO DE IMPERMEABILIZANTE, PREPARO MECÂNICO COM BETONEIRA 250 L. AF_08/2019 | D178: M3 | E178: 0
A179: Argamassas | B179: 100475 | C179: ARGAMASSA TRAÇO 1:3 (EM VOLUME DE CIMENTO E AREIA MÉDIA ÚMIDA) COM ADIÇÃO DE IMPERMEABILIZANTE, PREPARO MECÂNICO COM BETONEIRA 400 L. AF_08/2019 | D179: M3 | E179: 758.93 | F179: 0
A180: Argamassas | B180: 100491 | C180: ARGAMASSA TRAÇO 1:3 (EM VOLUME DE CIMENTO E AREIA MÉDIA ÚMIDA) COM ADIÇÃO DE IMPERMEABILIZANTE, PREPARO MECÂNICO COM BETONEIRA 600 L. AF_08/2019 | D180: M3 | E180: 756.59 | F180: 0
A181: Argamassas | B181: 100477 | C181: ARGAMASSA TRAÇO 1:3 (EM VOLUME DE CIMENTO E AREIA MÉDIA ÚMIDA) COM ADIÇÃO DE IMPERMEABILIZANTE, PREPARO MECÂNICO COM MISTURADOR DE EIXO HORIZONTAL DE 160 KG. AF_08/2019 | D181: M3 | E181: 826.91 | F181: 0
A182: Argamassas | B182: 100478 | C182: ARGAMASSA TRAÇO 1:3 (EM VOLUME DE CIMENTO E AREIA MÉDIA ÚMIDA) COM ADIÇÃO DE IMPERMEABILIZANTE, PREPARO MECÂNICO COM MISTURADOR DE EIXO HORIZONTAL DE 300 KG. AF_08/2019 | D182: M3 | E182: 744.51 | F182: 0
A183: Argamassas | B183: 100479 | C183: ARGAMASSA TRAÇO 1:3 (EM VOLUME DE CIMENTO E AREIA MÉDIA ÚMIDA) COM ADIÇÃO DE IMPERMEABILIZANTE, PREPARO MECÂNICO COM MISTURADOR DE EIXO HORIZONTAL DE 600 KG. AF_08/2019 | D183: M3 | E183: 725.89 | F183: 0
A184: Argamassas | B184: 87372 | C184: ARGAMASSA TRAÇO 1:3 (EM VOLUME DE CIMENTO E AREIA MÉDIA ÚMIDA) PARA CONTRAPISO, PREPARO MANUAL. AF_08/2019 | D184: M3 | E184: 806.12 | F184: 0
A185: Argamassas | B185: 100453 | C185: ARGAMASSA TRAÇO 1:3 (EM VOLUME DE CIMENTO E AREIA MÉDIA ÚMIDA) PARA CONTRAPISO, PREPARO MECÂNICO COM BETONEIRA 250 L. AF_08/2019 | D185: M3 | E185: 0
A186: Argamassas | B186: 87298 | C186: ARGAMASSA TRAÇO 1:3 (EM VOLUME DE CIMENTO E AREIA MÉDIA ÚMIDA) PARA CONTRAPISO, PREPARO MECÂNICO COM BETONEIRA 400 L. AF_08/2019 | D186: M3 | E186: 672.8 | F186: 0
A187: Argamassas | B187: 87299 | C187: ARGAMASSA TRAÇO 1:3 (EM VOLUME DE CIMENTO E AREIA MÉDIA ÚMIDA) PARA CONTRAPISO, PREPARO MECÂNICO COM BETONEIRA 600 L. AF_08/2019 | D187: M3 | E187: 440.35 | F187: 0
A188: Argamassas | B188: 87339 | C188: ARGAMASSA TRAÇO 1:3 (EM VOLUME DE CIMENTO E AREIA MÉDIA ÚMIDA) PARA CONTRAPISO, PREPARO MECÂNICO COM MISTURADOR DE EIXO HORIZONTAL DE 160 KG. AF_08/2019 | D188: M3 | E188: 807.99 | F188: 0
A189: Argamassas | B189: 87340 | C189: ARGAMASSA TRAÇO 1:3 (EM VOLUME DE CIMENTO E AREIA MÉDIA ÚMIDA) PARA CONTRAPISO, PREPARO MECÂNICO COM MISTURADOR DE EIXO HORIZONTAL DE 300 KG. AF_08/2019 | D189: M3 | E189: 672.1 | F189: 0
A190: Argamassas | B190: 87341 | C190: ARGAMASSA TRAÇO 1:3 (EM VOLUME DE CIMENTO E AREIA MÉDIA ÚMIDA) PARA CONTRAPISO, PREPARO MECÂNICO COM MISTURADOR DE EIXO HORIZONTAL DE 600 KG. AF_08/2019 | D190: M3 | E190: 636.81 | F190: 0
A191: Argamassas | B191: 88629 | C191: ARGAMASSA TRAÇO 1:3 (EM VOLUME DE CIMENTO E AREIA MÉDIA ÚMIDA), PREPARO MANUAL. AF_08/2019 | D191: M3 | E191: 660 | F191: 0
A192: Argamassas | B192: 100467 | C192: ARGAMASSA TRAÇO 1:3 (EM VOLUME DE CIMENTO E AREIA MÉDIA ÚMIDA), PREPARO MECÂNICO COM BETONEIRA 250 L. AF_08/2019 | D192: M3 | E192: 0
A193: Argamassas | B193: 88628 | C193: ARGAMASSA TRAÇO 1:3 (EM VOLUME DE CIMENTO E AREIA MÉDIA ÚMIDA), PREPARO MECÂNICO COM BETONEIRA 400 L. AF_08/2019 | D193: M3 | E193: 559.62 | F193: 0
A194: Argamassas | B194: 100489 | C194: ARGAMASSA TRAÇO 1:3 (EM VOLUME DE CIMENTO E AREIA MÉDIA ÚMIDA), PREPARO MECÂNICO COM BETONEIRA 600 L. AF_08/2019 | D194: M3 | E194: 556.26 | F194: 0
A195: Argamassas | B195: 100468 | C195: ARGAMASSA TRAÇO 1:3 (EM VOLUME DE CIMENTO E AREIA MÉDIA ÚMIDA), PREPARO MECÂNICO COM MISTURADOR DE EIXO HORIZONTAL DE 160 KG. AF_08/2019 | D195: M3 | E195: 688.49 | F195: 0
A196: Argamassas | B196: 100469 | C196: ARGAMASSA TRAÇO 1:3 (EM VOLUME DE CIMENTO E AREIA MÉDIA ÚMIDA), PREPARO MECÂNICO COM MISTURADOR DE EIXO HORIZONTAL DE 300 KG. AF_08/2019 | D196: M3 | E196: 549.85 | F196: 0
A197: Argamassas | B197: 100470 | C197: ARGAMASSA TRAÇO 1:3 (EM VOLUME DE CIMENTO E AREIA MÉDIA ÚMIDA), PREPARO MECÂNICO COM MISTURADOR DE EIXO HORIZONTAL DE 600 KG. AF_08/2019 | D197: M3 | E197: 497.65 | F197: 0
A198: Argamassas | B198: 87371 | C198: ARGAMASSA TRAÇO 1:3:12 (EM VOLUME DE CIMENTO, CAL E AREIA MÉDIA ÚMIDA) PARA EMBOÇO/MASSA ÚNICA/ASSENTAMENTO DE ALVENARIA DE VEDAÇÃO, PREPARO MANUAL. AF_08/2019 | D198: M3 | E198: 678.9 | F198: 0
A199: Argamassas | B199: 87295 | C199: ARGAMASSA TRAÇO 1:3:12 (EM VOLUME DE CIMENTO, CAL E AREIA MÉDIA ÚMIDA) PARA EMBOÇO/MASSA ÚNICA/ASSENTAMENTO DE ALVENARIA DE VEDAÇÃO, PREPARO MECÂNICO COM BETONEIRA 400 L. AF_08/2019 | D199: M3 | E199: 584.49 | F199: 0
A200: Argamassas | B200: 87296 | C200: ARGAMASSA TRAÇO 1:3:12 (EM VOLUME DE CIMENTO, CAL E AREIA MÉDIA ÚMIDA) PARA EMBOÇO/MASSA ÚNICA/ASSENTAMENTO DE ALVENARIA DE VEDAÇÃO, PREPARO MECÂNICO COM BETONEIRA 600 L. AF_08/2019 | D200: M3 | E200: 552.17 | F200: 0
... 9533 more rows

Sheet CPU-VEICULO_Leve
A2: Composição de Preços de Locação de Veículos
B3: 2023-08-23 | C3: Data de atualização: | D3: 2025-01-22 | F3: CV | G3: Média | H3: Mediana | L3: CV | M3: Média | N3: Mediana | X3: CV | Y3: Média | Z3: Mediana
A4: CODEVASF | F4: =_xlfn.STDEV.S(F7:I7)/AVERAGE(F7:I7) -> 0.1466333998 | G4: =AVERAGE(F7:I7) -> 75224.5 | H4: =MEDIAN(F7:I7) -> 74407.5 | L4: =_xlfn.STDEV.S(M6:U6)/AVERAGE(M6:U6) -> 0.1572234728 | M4: =AVERAGE(M6:U6) -> 26.76888889 | N4: =MEDIAN(M6:U6) -> 27.12 | X4: =_xlfn.STDEV.S(Y6:AG6)/AVERAGE(Y6:AG6) -> 0.1621894985 | Y4: =AVERAGE(Y6:AG6) -> 329.1444444 | Z4: =MEDIAN(Y6:AG6) -> 334.75
A5: OBS: Preço sem BDI e sem motorista BDI= | F5: Preço FIPE | K5: PRODUTO | L5: MENOR | M5: COT. 1 | N5: COT. 2 | O5: COT. 3 | P5: COT. 4 | Q5: COT. 5 | R5: COT. 6 | S5: COT. 7 | T5: COT. 8 | U5: COT. 9 | W5: PRODUTO | X5: MENOR | Y5: COT. 1 | Z5: COT. 2 | AA5: COT. 3 | AB5: COT. 4 | AC5: COT. 5 | AD5: COT. 6 | AE5: COT. 7 | AF5: COT. 8 | AG5: COT. 9
A6: Veículo Leve 1.0 T. Flex 12V 5p | F6: Renault Kwid Zen 1.0 | G6: Hyndai HB20 Sense 1.0 | H6: ONIX HATCH LT 1.0 12V Flex 5p Mec. | I6: MOBI TREKKING 1.0 Flex 5p. | K6: LUBRIFICANTE 15W40 | L6: =SMALL(M4:N4,1) -> 26.76888889 | M6: 27.12 | N6: 19.01 | O6: 28.9 | P6: 23.9 | Q6: 28.76 | R6: 33.9 | S6: 29.44 | T6: 24.9 | U6: 24.99 | W6: Pneu 185/65 R14 | X6: =SMALL(Y4:Z4,1) -> 329.1444444 | Y6: 289.9 | Z6: =1255.8/4 -> 313.95 | AA6: 289 | AB6: =1339/4 -> 334.75 | AC6: =1519.6/4 -> 379.9 | AD6: 231 | AE6: 364.9 | AF6: =718/2 -> 359 | AG6: =799.8/2 -> 399.9
C7: Custo Mensal (R$): | D7: =D48 -> 1833.94855 | F7: 63868 | G7: 80150 | H7: 88215 | I7: 68665
C8: Custo Diário (R$): | D8: =D7/30 -> 61.13161832
C9: Custo Horário (R$): | D9: =D7/176 -> 10.42016221
A10: A | C10: Depreciação mensal do equipamento
A11: A1 | C11: Preço de Aquisição | D11: =SMALL(G4:H4,1) -> 74407.5
A12: A2 | C12: Tempo previsto de vida útil (meses) | D12: 36
A13: A3 | C13: Previsão de recup. Na venda do bem usado | D13: 0.7
A14: A4 | C14: Custo mensal [A1-(A3xA1)]/A2 | D14: =(D11-(D13*D11))/D12 -> 620.0625
A15: B | C15: Juros pelo Capital empregado
A16: B1 | C16: Taxa mensal de Juros * | D16: =POWER(1+D53,1/12)-1 -> 0.01034852829
A17: B2 | C17: Juros s/depreciação/aluguel (B1xA4) | D17: =D16*D14 -> 6.416734322
A18: C | C18: Conservação e manutenção ** | D18: 0.75
A19: C1 | C19: Taxa de gastos s/a deprec. Inc. seguros (%) | D19: =D18 -> 0.75
A20: C2 | C20: Incidência mensal (C1xA4) | D20: =D19*D14 -> 465.046875
A21: D | C21: Combustível
A22: D1 | C22: Média mensal de quilômetro por veículo | D22: =70*22 -> 1540
A23: D2 | C23: Preço do litro de combustível | D23: =G82 -> 6.14
A24: D3 | C24: Quilômetros rodados com um litro combustivel | D24: =(12.8+13.3+15.3+15)/4 -> 14.1
A25: D4 | C25: Combustivel (D1/D3)*D2 | D25: =(D22/D24)*D23 -> 670.6099291
A26: E | C26: Lubrificantes
A27: E1 | C27: Quilometragem do Contrato (D1*12) | D27: =D22*36 -> 55440
A28: E2 | C28: Franquia por troca de óleo (km) | D28: 10000
A29: E3 | C29: Preço do litro de óleo | D29: =L6 -> 26.76888889
A30: E4 | C30: Quantidade de litros de óleo por troca | D30: 4
A31: E5 | C31: Quantidade de dias do Contrato | D31: =365*3 -> 1095
A32: E6 | C32: Lubrificantes E = (E1*E3*E4*30)/E2*E5 | D32: =(D27*D29*D30*30)/(D28*D31) -> 16.26375014
A33: F | C33: Pneus
A34: F1 | C34: Quilometragem do Contrato | D34: =D27 -> 55440
A35: F2 | C35: Vida do Pneu em quilômetros | D35: 45000
A36: F3 | C36: Quantidade de pneus | D36: 5
A37: F4 | C37: Preço do Pneu | D37: =X6 -> 329.1444444
A38: F5 | C38: Quantidade de dias do contrato | D38: =D31 -> 1095
A39: F6 | C39: Pneus = (F1*F3*F4*30)/(F2*F5) | D39: =(D34*D36*D37*30)/(D35*D38) -> 55.54876104
A40: G | C40: Motorista
A41: G1 | C41: Salário com encargos sociais | D41: 0
A42: H | C42: Custo Mensal | K42: https://www.google.com/search?q=lubrificante+15w40+1l&sa=X&biw=1600&bih=757&tbm=shop&sxsrf=AJOqlzUezMM_9i0M4NKjKqAMycLuOygp_g%3A1677158931166&ei=E2r3Y5e2CcH31sQPsK67CA&ved=0ahUKEwjXi8vy36v9AhXBu5UCHTDXDgEQ4dUDCAg&uact=5&oq=lubrificante+15w40+1l&gs_lcp=Cgtwcm9kdWN0cy1jYxADMgsIABAWEB4Q8QQQGDoICAAQgAQQsAM6CQgAEAcQHhCwAzoJCAAQCBAeELADOgkIABAeELADEBg6DggAEAUQHhDxBBCwAxAYOgUIABCABDoGCAAQFhAeOggIABAWEB4QGEoECEEYAVDeBFi3DWD0D2gBcAB4AIABpQWIAZAIkgEHMy0xLjAuMZgBAKABAcgBCsABAQ&sclient=products-cc
C43: Sem Motorista (A4+B2+C2+D4+E6+F6) | D43: =D14+D17+D20+D25+D32+D39 -> 1833.94855
C44: Com Motorista (A4+B2+C2+D4+E6+F6+G1) | D44: =D14+D17+D20+D25+D32+D39+D41 -> 1833.94855
A45: I | C45: Custo Direto p/ km Rodado
C46: Sem Motorista | D46: =D43/D22 -> 1.190875682 | V46: https://www.google.com/search?q=Pneu+185%2F65+R14&sa=X&hl=pt-BR&biw=1600&bih=757&tbm=shop&sxsrf=AJOqlzVJW-LYM1ZPHImwhsD-4UwyAvTluQ%3A1677158863331&ei=z2n3Y-uxE-zT1sQP0r-OmAs&ved=0ahUKEwir1Z7S36v9AhXsqZUCHdKfA7MQ4dUDCAg&uact=5&oq=Pneu+185%2F65+R14&gs_lcp=Cgtwcm9kdWN0cy1jYxADMgsIABCABBCxAxCDATIFCAAQgAQyBQgAEIAEMgUIABCABDIFCAAQgAQyBQgAEIAEMgUIABCABDIFCAAQgAQyBQgAEIAEMgUIABCABEoECEEYAFD5A1jGCWC1EGgAcAB4AIABrQmIAdcbkgEHNS0yLjAuMpgBAKABAcABAQ&sclient=products-cc
C47: Com Motorista | D47: =D44/D22 -> 1.190875682
A48: J | C48: Preço cobrado sem BDI | D48: =D43*(1+D5) -> 1833.94855
A49: J1 | C49: Sem Motorista | D49: =D48 -> 1833.94855
A50: J2 | C50: Com Motorista | D50: =D44 -> 1833.94855
A53: * | C53: Calculado com base na taxa SELIC JANEIRO/2025: | D53: 0.1315
A55: ** | C55: Conservação e manutenção - é calculado com o uso de um coeficiente multiplicador "k", conforme tabela abaixo, sobre a
C56: depreciação mensal do equipamento (Item A da planilha de composição de preços). Os valores de K são fornecidos por
C57: fabricantes.
C58: Metodologia conforme a bibliografia "Como Preparar Orçamentos de Obras", 3 edição, Aldo Dórea Mattos, 2019.
F82: PREÇO DA GASOLINA | G82: 6.14
F84: https://precos.petrobras.com.br/sele%C3%A7%C3%A3o-de-estados-gasolina

Sheet CPU HOSPEDAGEM
B2: Engenharia Consultiva da Codevasf
B3: CPU - HOSPEDAGEM EQUIPE DE CAMPO (4 PESSOAS/MÊS) | D3: Código/Referencia
B4: ALUGUEL | C4: 3074.56 | D4: F020003334/EMBASA insumo
B5: Aquisição de Mobiliário | C5: =42.11*C16 -> 168.44 | D5: B8954/DNIT
B6: Material de limpeza e diarista | C6: =131.07+(123*8) -> 1115.07 | D6: 10563/ORSE - E200300131/EMBASA
B7: manutenção da casa alugada - Serviços Gerais/Vigia | C7: 2205.56 | D7: 41096/SINAPI
B8: Energia | C8: 180 | D8: 10555/ORSE
B9: Água | C9: 394.99 | D9: 10554/ORSE
B10: telefone/Internet | C10: =154.99+89 -> 243.99 | D10: 10557/10558/ORSE
B11: IPTU (mês) | C11: =(C4*0.5)/12 -> 128.1066667
B13: Custo Mensal: | C13: =SUM(C4:C12) -> 7510.716667
B14: Custo Mensal por pessoa: | C14: =C13/C16 -> 1877.679167
B15: Custo diário por pessoa: | C15: =C14/22 -> 85.34905303
B16: número de pessoas: | C16: 4

Sheet Cotação Voos SE
A1: COTAÇÕES - IDA DIA 03/11/2025 E VOLTA DIA 28/11/2025
A2: Localidade: | B2: Aracaju
A4: Origem | B4: Destino
A5: BSB | B5: =B2 -> Aracaju | C5: Cia 1 | D5: Cia 2 | E5: Cia 3 | F5: Média
C6: 1273 | D6: 1237 | E6: 2164 | F6: =AVERAGE(C6:E6) -> 1558
A31: SP | B31: =B2 -> Aracaju | C31: Cia 1 | D31: Cia 2 | E31: Cia 3 | F31: Média
C32: 1019 | D32: 1019 | E32: 1683 | F32: =AVERAGE(C32:E32) -> 1240.333333
A57: Curitiba | B57: =B2 -> Aracaju | C57: Cia 1 | D57: Cia 2 | E57: Cia 3 | F57: Média
C58: 1303 | D58: 1303 | E58: 1346 | F58: =AVERAGE(C58:E58) -> 1317.333333
A82: Recife | B82: =B2 -> Aracaju | C82: Cia 1 | D82: Cia 2 | E82: Cia 3 | F82: Média
C83: 1264 | D83: 2160 | E83: 2250 | F83: =AVERAGE(C83:E83) -> 1891.333333
A106: VALOR ADOTADO: | C106: =AVERAGE(F6:F83) -> 1501.75

Sheet Pesquisa de preços 02 (hidden)
B1: RN
B2: Empresa | C2: Veículo leve | D2: Empresa | E2: 4x4
B3: Rentcars | C3: 3403.39 | D3: Localiza | E3: =559.95*30 -> 16798.5
B4: Movida | C4: 3004.86 | D4: Expedia | E4: =(3037/4)*30 -> 22777.5
B5: Unidas | C5: 2461.2 | D5: Decolar | E5: =(2904/4)*30 -> 21780
B6: Decolar | C6: 3300
B13: Média | C13: =AVERAGE(C3:C12) -> 3042.3625 | E13: =AVERAGE(E3:E12) -> 20452
B14: Mediana | C14: =MEDIAN(C3:C12) -> 3152.43 | E14: =MEDIAN(E3:E12) -> 21780
B15: Adotado | C15: =IF(C13<C14,C13,C14) -> 3042.3625 | E15: 20452
